{"text_format":"1","workbook":"xlsx","n_sheets":6,"sheets":["COACHES WORKSHEET","NYS Place finishers","ROSTER REVIEW","Points Verification","Sec 6 Place Finishers 2022-23","Class Tournament info"],"not_rendered":{"charts":0,"images":0,"macros":1,"external_links":0,"defined_names":12,"comments":0,"pivot_tables":0},"unopened":[],"bounds":{"document_bytes":16777216,"sheet_cells":100000,"rows_first":2000,"rows_last":500,"rows_between":2000,"halvings":0,"cell_chars":16384,"cell_head_chars":4096},"cells_cut":0,"cells_raw":0,"read":"whole","date_system":"1900"}

{"sheet":"COACHES WORKSHEET","index":0,"n_rows":453,"n_cols":42,"rows_kept":453,"cut":false,"hidden":false,"merged":[]}
[null,"School:","Enter School Here",null,null,null,"Win/Loss Points",null,"Placement Points",null,"Sec. 6 Competition pts",null,"NY Competition Points","Class Tourn Place pts","Class Tourn Bonus pts"]
[null,"Weight","Wrestlers","GR","W","L",null,"2022 Place Finishes",null,"Sect. 6 Competition Pts.",null,"NYS Competition Points",null,null,null,"Total pts."]
[1,null,null,null,null,null,{"$f":"IFERROR(IF(AND((E3+F3)>0,(E3+F3)<10),ROUND(E3/SUM(E3+F3)*50,0),IF((E3+F3)<20,ROUND(E3/SUM(E3+F3)*75,0),IF((E3+F3)>19,ROUND(E3/SUM(E3+F3)*100,0)))),\"0\")","v":"0"},"Did Not Place",{"$f":"VLOOKUP(H3,$Q$4:$R$37,2,FALSE)","v":0},"NO WINS OVER SEC 6 PLACERS",{"$f":"VLOOKUP(J3,$Z$3:$AH$152,9,FALSE)","v":0},"NO WINS OVER STATE COMPETITION",{"$f":"VLOOKUP(L3,$AJ$3:$AN$287,5,FALSE)","v":0},0,0,{"$f":"SUM(G3,I3,K3,K4,K5,K6,K7,K8,K9,K10,M3,M4,M5,M6,N3,O3)","v":0},null,null,null,"Enter School Here",null,null,null,null,null,"NO WINS OVER SEC 6 PLACERS",null,null,null,null,null,null,null,0,null,"NO WINS OVER STATE COMPETITION",null,null,null,0]
[null,null,null,null,null,null,1,null,null,"NO WINS OVER SEC 6 PLACERS",0,"NO WINS OVER STATE COMPETITION",0,null,null,null," ",0,null,"AKR",null,null,7,101,null,"NATE COHEN - AMH",null,null,null,null,null,null,null,2,null,"CADE SANDS  - ADDISON",null,null,null,18]
[null,"Head to head wins over potentially",null,null,null,null,2,null,null,"NO WINS OVER SEC 6 PLACERS",0,"NO WINS OVER STATE COMPETITION",0,null,null,null,"Did Not Place",0,null,"ALD",null,null,8,108,null,"MUSTAFA NATIQ - AMH",null,null,null,null,null,null,null,6,null,"COLE CRONISER  -ADIRON",null,null,null,12]
[null,"seedable wrestlers in this weight class.",null,null,null,null,3,null,null,"NO WINS OVER SEC 6 PLACERS",0,"NO WINS OVER STATE COMPETITION",0,null,null,null,"1st in NYS",120,120,"ALB",null,null,9,116,null,"JOE MAGNANO - AMH",null,null,null,null,null,null,null,4,null,"DILLON ARRICK - ARLING",null,null,null,30]
[null,null,null,null,null,null,4,null,null,"NO WINS OVER SEC 6 PLACERS",0,null,null,null,null,null,"2nd in NYS",110,100,"AMH",null,null,10,124,null,"RILEY KIRST - AMH",null,null,null,null,null,null,null,6,null,"CASPER STEWART  -ATTICA",null,null,null,30]
[null,null,null,null,null,null,5,null,null,"NO WINS OVER SEC 6 PLACERS",0,null,null,null,null,null,"3rd in NYS",100,90,"CHAUT",null,null,11,131,null,"ZAK SAEED - AMH",null,null,null,null,null,null,null,4,null,"DOMINICK LAPIER - AUSABLE",null,null,null,12]
[null,null,null,null,null,null,6,null,null,"NO WINS OVER SEC 6 PLACERS",0,null,null,null,null,null,"4th in NYS",90,87,"CHEEK",null,null,12,138,null,"CALE MENEGAUX - AMH",null,null,null,null,null,null,null,1,null,"JOHN (LJ) WELCOME - AVERILL",null,null,null,12]
[null,null,null,null,null,null,7,null,null,"NO WINS OVER SEC 6 PLACERS",0,null,null,null,null,null,"5th in NYS",80,84,"CLAR",null,null,null,145,null,"KILLIAN SIMONSON - AMH",null,null,null,null,null,null,null,1,null,"RALPH KEENEY - BALL SPA",null,null,null,26]
[null,null,null,null,"W","L",8,null,null,null,null,null,null,null,null,null,"6th in NYS",70,81,"CSAT",null,null,null,152,null,"JOSH KNOBLACH - AMH",null,null,null,null,null,null,null,4,null,"KYLE BARBER - BAYPORT",null,null,null,12]
[2,null,null,null,null,null,{"$f":"IFERROR(IF(AND((E12+F12)>0,(E12+F12)<10),ROUND(E12/SUM(E12+F12)*50,0),IF((E12+F12)<20,ROUND(E12/SUM(E12+F12)*75,0),IF((E12+F12)>19,ROUND(E12/SUM(E12+F12)*100,0)))),\"0\")","v":"0"},"Did Not Place",{"$f":"VLOOKUP(H12,$Q$4:$R$37,2,FALSE)","v":0},"NO WINS OVER SEC 6 PLACERS",{"$f":"VLOOKUP(J12,$Z$3:$AH$152,9,FALSE)","v":0},"NO WINS OVER STATE COMPETITION",{"$f":"VLOOKUP(L12,$AJ$3:$AN$287,5,FALSE)","v":0},0,0,{"$f":"SUM(G12,I12,K12,K13,K14,K15,K16,K17,K18,K19,M12,M13,M14,M15,N12,O12)","v":0},"7th in NYS",65,78,"DUNK",null,null,null,160,null,"TREVOR MUELLER - CLAR",null,null,null,null,null,null,null,6,null,"DEREK WALSEMAN - BEAVER",null,null,null,22]
[null,null,null,null,null,null,1,null,null,"NO WINS OVER SEC 6 PLACERS",0,"NO WINS OVER STATE COMPETITION",0,null,null,null,"8th in NYS",60,75,"EA HOLL",null,null,null,170,null,"AJ DIDAS - CLAR",null,null,null,null,null,null,null,10,null,"DOMINIC ROES - BEAVER",null,null,null,12]
[null,"Head to head wins over potentially",null,null,null,null,2,null,null,"NO WINS OVER SEC 6 PLACERS",0,"NO WINS OVER STATE COMPETITION",0,null,null,null,"1st in NYS >2 Wts",110,72,"EDEN",null,null,null,190,null,"JOEY KELLER - CLAR",null,null,null,null,null,null,null,8,null,"SAWYER BELL - BEEK",null,null,null,12]
[null,"seedable wrestlers in this weight class.",null,null,null,null,3,null,null,"NO WINS OVER SEC 6 PLACERS",0,"NO WINS OVER STATE COMPETITION",0,null,null,null,"2nd in NYS >2 Wts",100,69,"FALC",null,null,null,215,null,"CLAYTON FELTZ - CLAR",null,null,null,null,null,null,null,4,null,"JACK BROWN - BEEK",null,null,null,12]
[null,null,null,null,null,null,4,null,null,"NO WINS OVER SEC 6 PLACERS",0,null,null,null,null,null,"3rd in NYS >2 Wts",90,66,"FRANK",null,null,null,285,null,"BRYCE HAWES - CLAR",null,null,null,null,null,null,null,10,null,"CONNOR BUSHEY - BEEK",null,null,null,18]
[null,null,null,null,null,null,5,null,null,"NO WINS OVER SEC 6 PLACERS",0,null,null,null,null,null,"4th in NYS >2 Wts",80,63,"FRED",null,null,null,null,null,"ZACK DIDAS - CLAR",null,null,null,null,null,null,null,1,null,"BRANDON GOLDSTEIN - BELL JFK",null,null,null,12]
[null,null,null,null,null,null,6,null,null,"NO WINS OVER SEC 6 PLACERS",0,null,null,null,null,null,"5th in NYS >2 Wts",70,60,"FREWS",null,null,null,null,null,"BEN GOMBOS - FRONT",null,null,null,null,null,null,null,6,null,"CAMRYN HOWARD - BELLPORT",null,null,null,14]
[null,null,null,null,null,null,7,null,null,"NO WINS OVER SEC 6 PLACERS",0,null,null,null,null,null,"6th in NYS >2 Wts",60,57,"FRONT",null,null,null,null,null,"DAVID SEBRING - FRONT",null,null,null,null,null,null,null,2,null,"QUINCY BONVILLE - BETH",null,null,null,12]
[null,null,null,null,"W","L",8,null,null,null,null,null,null,null,null,null,"7th in NYS >2 Wts",55,54,"GOW",null,null,null,null,null,"TREY ABRAMS - FRONT",null,null,null,null,null,null,null,1,null,"DARREN FLORENCE - BGAH",null,null,null,40]
[3,null,null,null,null,null,{"$f":"IFERROR(IF(AND((E21+F21)>0,(E21+F21)<10),ROUND(E21/SUM(E21+F21)*50,0),IF((E21+F21)<20,ROUND(E21/SUM(E21+F21)*75,0),IF((E21+F21)>19,ROUND(E21/SUM(E21+F21)*100,0)))),\"0\")","v":"0"},"Did Not Place",{"$f":"VLOOKUP(H21,$Q$4:$R$37,2,FALSE)","v":0},"NO WINS OVER SEC 6 PLACERS",{"$f":"VLOOKUP(J21,$Z$3:$AH$152,9,FALSE)","v":0},"NO WINS OVER STATE COMPETITION",{"$f":"VLOOKUP(L21,$AJ$3:$AN$287,5,FALSE)","v":0},0,0,{"$f":"SUM(G21,I21,K21,K22,K23,K24,K25,K26,K27,K28,M21,M22,M23,M24,N21,O21)","v":0},"8th in NYS >2 Wts",50,51,"GI",null,null,null,null,null,"ZAK MASSARO - GI",null,null,null,null,null,null,null,6,null,"GARY MCDOWELL JR - BOLIV",null,null,null,16]
[null,null,null,null,null,null,1,null,null,"NO WINS OVER SEC 6 PLACERS",0,"NO WINS OVER STATE COMPETITION",0,null,null,null,"1st in Section",50,48,"HAM",null,null,null,null,null,"DYLAN CASTIGLIA - GI",null,null,null,null,null,null,null,8,null,"TREY BUCHHOLZ - BOLIV",null,null,null,12]
[null,"Head to head wins over potentially",null,null,null,null,2,null,null,"NO WINS OVER SEC 6 PLACERS",0,"NO WINS OVER STATE COMPETITION",0,null,null,null,"2nd in Section",40,45,"HEALTH SCI",null,null,null,null,null,"ELIJAH LINSENFELSER - GI",null,null,null,null,null,null,null,4,null,"TAYVN MCDONELL - BOLIV",null,null,null,34]
[null,"seedable wrestlers in this weight class.",null,null,null,null,3,null,null,"NO WINS OVER SEC 6 PLACERS",0,"NO WINS OVER STATE COMPETITION",0,null,null,null,"3rd in Section",30,42,"IRQ",null,null,null,null,null,"TIM BENTLEY - GI",null,null,null,null,null,null,null,1,null,"CADEN ALLEN - BOLIV",null,null,null,22]
[null,null,null,null,null,null,4,null,null,"NO WINS OVER SEC 6 PLACERS",0,null,null,null,null,null,"4th in Section",20,39,"JAMES",null,null,null,null,null,"SAM BERTI - HAM",null,null,null,null,null,null,null,8,null,"JASON EUCEDA - BRENT",null,null,null,12]
[null,null,null,null,null,null,5,null,null,"NO WINS OVER SEC 6 PLACERS",0,null,null,null,null,null,"5th in Section",10,36,"KENTON",null,null,null,null,null,"EVAN BRAUNSCHEIDEL - HAM",null,null,null,null,null,null,null,8,null,"NICHOLAS FORTUGNO - BBHV",null,null,null,12]
[null,null,null,null,null,null,6,null,null,"NO WINS OVER SEC 6 PLACERS",0,null,null,null,null,null,"6th in Section",5,33,"LACK",null,null,null,null,null,"ROBBIE SCHAEFER - HAM",null,null,null,null,null,null,null,1,null,"RICHARD WOOD - BROCK",null,null,null,16]
[null,null,null,null,null,null,7,null,null,"NO WINS OVER SEC 6 PLACERS",0,null,null,null,null,null,"7th in Section",2,null,"LAF - BUFFALO",null,null,null,null,null,"LEO HALEY - HAM",null,null,null,null,null,null,null,1,null,"DINO BATTISTI - BROCK",null,null,null,12]
[null,null,null,null,"W","L",8,null,null,null,null,null,null,null,null,null,"8th in Section",2,null,"LAKE SH",null,null,null,null,null,"CONNOR BUSH - JAMES",null,null,null,null,null,null,null,2,null,"LEO GAO - BROOK TECH",null,null,null,12]
[4,null,null,null,null,null,{"$f":"IFERROR(IF(AND((E30+F30)>0,(E30+F30)<10),ROUND(E30/SUM(E30+F30)*50,0),IF((E30+F30)<20,ROUND(E30/SUM(E30+F30)*75,0),IF((E30+F30)>19,ROUND(E30/SUM(E30+F30)*100,0)))),\"0\")","v":"0"},"Did Not Place",{"$f":"VLOOKUP(H30,$Q$4:$R$37,2,FALSE)","v":0},"NO WINS OVER SEC 6 PLACERS",{"$f":"VLOOKUP(J30,$Z$3:$AH$152,9,FALSE)","v":0},"NO WINS OVER STATE COMPETITION",{"$f":"VLOOKUP(L30,$AJ$3:$AN$287,5,FALSE)","v":0},0,0,{"$f":"SUM(G30,I30,K30,K31,K32,K33,K34,K35,K36,K37,M30,M31,M32,M33,N30,O30)","v":0},"1st in Sect. >2 Wts",40,30,"LANC",null,null,null,null,null,"COLE BLOOMQUIST - JAMES",null,null,null,null,null,null,null,6,null,"TYLER WHITELEY - BURNT H",null,null,null,22]
[null,null,null,null,null,null,1,null,null,"NO WINS OVER SEC 6 PLACERS",0,"NO WINS OVER STATE COMPETITION",0,null,null,null,"2nd in Sect. >2 Wts",30,27,"LEW PORT",null,null,null,null,null,"CARSEN BANE - JAMES",null,null,null,null,null,null,null,6,null,"LIAM CARLIN - BURNT H",null,null,null,34]
[null,"Head to head wins over potentially",null,null,null,null,2,null,null,"NO WINS OVER SEC 6 PLACERS",0,"NO WINS OVER STATE COMPETITION",0,null,null,null,"3rd in Sect. >2 Wts",20,24,"LOCK",null,null,null,null,null,"KEITH MILLER - JAMES",null,null,null,null,null,null,null,1,null,"MALACHI SMITH - BYRON",null,null,null,18]
[null,"seedable wrestlers in this weight class.",null,null,null,null,3,null,null,"NO WINS OVER SEC 6 PLACERS",0,"NO WINS OVER STATE COMPETITION",0,null,null,null,"4th in Sect. >2 Wts",10,21,"MAPLE",null,null,null,null,null,"ZANE ELIFRITZ - JAMES",null,null,null,null,null,null,null,1,null,"KOLTON KELLEY - CAMDEN",null,null,null,16]
[null,null,null,null,null,null,4,null,null,"NO WINS OVER SEC 6 PLACERS",0,null,null,null,null,null,"5th in Sect. >2 Wts",5,18,"MARY",null,null,null,null,null,"SAWYER DICKINSON - KENTON",null,null,null,null,null,null,null,8,null,"MASON DEPEW - CANAN ACA",null,null,null,12]
[null,null,null,null,null,null,5,null,null,"NO WINS OVER SEC 6 PLACERS",0,null,null,null,null,null,"6th in Sect. >2 Wts",3,15,"MED",null,null,null,null,null,"ALEX GROHMAN - KENTON",null,null,null,null,null,null,null,4,null,"AUSTIN HALL - CAN-GREEN",null,null,null,14]
[null,null,null,null,null,null,6,null,null,"NO WINS OVER SEC 6 PLACERS",0,null,null,null,null,null,"7th in Sect.>2 Wts.",1,null,"NEW",null,null,null,null,null,"RICKY ANDRES - LANC",null,null,null,null,null,null,null,4,null,"GAVIN BOB - CAN-GREEN",null,null,null,12]
[null,null,null,null,null,null,7,null,null,"NO WINS OVER SEC 6 PLACERS",0,null,null,null,null,null,"8th in Sect. >2 Wts.",1,null,"NF",null,null,null,null,null,"JOEY FRIEBERG - LANC",null,null,null,null,null,null,null,2,null,"COLTON HAVENS - CAN-GREEN",null,null,null,26]
[null,null,null,null,"W","L",8,null,null,null,null,null,null,null,null,null,null,null,null,"NW",null,null,null,null,null,"MIKEY SCHAEFER - LANC",null,null,null,null,null,null,null,10,null,"BEAU ZEH - CAN-GREEN",null,null,null,22]
[5,null,null,null,null,null,{"$f":"IFERROR(IF(AND((E39+F39)>0,(E39+F39)<10),ROUND(E39/SUM(E39+F39)*50,0),IF((E39+F39)<20,ROUND(E39/SUM(E39+F39)*75,0),IF((E39+F39)>19,ROUND(E39/SUM(E39+F39)*100,0)))),\"0\")","v":"0"},"Did Not Place",{"$f":"VLOOKUP(H39,$Q$4:$R$37,2,FALSE)","v":0},"NO WINS OVER SEC 6 PLACERS",{"$f":"VLOOKUP(J39,$Z$3:$AH$152,9,FALSE)","v":0},"NO WINS OVER STATE COMPETITION",{"$f":"VLOOKUP(L39,$AJ$3:$AN$287,5,FALSE)","v":0},0,0,{"$f":"SUM(G39,I39,K39,K40,K41,K42,K43,K44,K45,K46,M39,M40,M41,M42,N39,O39)","v":0},null,null,null,"NT",null,null,null,null,null,"LIAM WHALEN - LOCK",null,null,null,null,null,null,null,8,null,"NICK MORETTA - CARLE PLACE",null,null,null,12]
[null,null,null,null,null,null,1,null,null,"NO WINS OVER SEC 6 PLACERS",0,"NO WINS OVER STATE COMPETITION",0,null,null,null,null,null,null,"OLEAN/ALL-LIMESTONE",null,null,null,null,null,"VINCENZO FALSETTI - NF",null,null,null,null,null,null,null,2,null,"LEO VENABLES - CARMEL",null,null,null,26]
[null,"Head to head wins over potentially",null,null,null,null,2,null,null,"NO WINS OVER SEC 6 PLACERS",0,"NO WINS OVER STATE COMPETITION",0,null,null,null,null,null,null,"OP",null,null,null,null,null,"GABRIELLA BARONE - NW",null,null,null,null,null,null,null,2,null,"RYAN MUNN - CARTHAGE",null,null,null,18]
[null,"seedable wrestlers in this weight class.",null,null,null,null,3,null,null,"NO WINS OVER SEC 6 PLACERS",0,"NO WINS OVER STATE COMPETITION",0,null,null,null,null,null,null,"PION",null,null,null,null,null,"JACOB SWEENEY - NW",null,null,null,null,null,null,null,1,null,"SHAY SINITIERE - CARTHAGE",null,null,null,12]
[null,null,null,null,null,null,4,null,null,"NO WINS OVER SEC 6 PLACERS",0,null,null,null,null,null,null,null,null,"PORT",null,null,null,null,null,"EVAN AZBELL - NW",null,null,null,null,null,null,null,10,null,"LANDON COPLEY - CARTHAGE",null,null,null,12]
[null,null,null,null,null,null,5,null,null,"NO WINS OVER SEC 6 PLACERS",0,null,null,null,null,null,null,null,null,"RAND",null,null,null,null,null,"EIAN PETERSON - NW",null,null,null,null,null,null,null,12,null,"CALLUM JONES - CEN MORICH",null,null,null,12]
[null,null,null,null,null,null,6,null,null,"NO WINS OVER SEC 6 PLACERS",0,null,null,null,null,null,null,null,null,"ROYHART",null,null,null,null,null,"MUNTATHAR ABBAS - NW",null,null,null,null,null,null,null,8,null,"ROCKY FILES - CENT SQ",null,null,null,14]
[null,null,null,null,null,null,7,null,null,"NO WINS OVER SEC 6 PLACERS",0,null,null,null,null,null,null,null,null,"SAL",null,null,null,null,null,"TE'SHAUN MATHEWS - NW",null,null,null,null,null,null,null,22,null,"JACOB HURD - CVA",null,null,null,12]
[null,null,null,null,"W","L",8,null,null,null,null,null,null,null,null,null,null,null,null,"SOUTH",null,null,null,null,null,"CHASE RICHARDS - NW",null,null,null,null,null,null,null,10,null,"GENE EDWARDS - CAV",null,null,null,26]
[6,null,null,null,null,null,{"$f":"IFERROR(IF(AND((E48+F48)>0,(E48+F48)<10),ROUND(E48/SUM(E48+F48)*50,0),IF((E48+F48)<20,ROUND(E48/SUM(E48+F48)*75,0),IF((E48+F48)>19,ROUND(E48/SUM(E48+F48)*100,0)))),\"0\")","v":"0"},"Did Not Place",{"$f":"VLOOKUP(H48,$Q$4:$R$37,2,FALSE)","v":0},"NO WINS OVER SEC 6 PLACERS",{"$f":"VLOOKUP(J48,$Z$3:$AH$152,9,FALSE)","v":0},"NO WINS OVER STATE COMPETITION",{"$f":"VLOOKUP(L48,$AJ$3:$AN$287,5,FALSE)","v":0},0,0,{"$f":"SUM(G48,I48,K48,K49,K50,K51,K52,K53,K54,K55,M48,M49,M50,M51,N48,O48)","v":0},null,null,null,"SPRING",null,null,null,null,null,"GARRETT CHASE - NW",null,null,null,null,null,null,null,10,null,"COOPER REED - CVA",null,null,null,16]
[null,null,null,null,null,null,1,null,null,"NO WINS OVER SEC 6 PLACERS",0,"NO WINS OVER STATE COMPETITION",0,null,null,null,null,null,null,"STAR",null,null,null,null,null,"JOSEPH CICCO - NW",null,null,null,null,null,null,null,10,null,"PEYTON HUBBARD - CHEN FORKS",null,null,null,12]
[null,"Head to head wins over potentially",null,null,null,null,2,null,null,"NO WINS OVER SEC 6 PLACERS",0,"NO WINS OVER STATE COMPETITION",0,null,null,null,null,null,null,"SWEET",null,null,null,null,null,"DANTE DIFIGLIA - NW",null,null,null,null,null,null,null,4,null,"RYAN FERRARA - CHEN FORKS",null,null,null,18]
[null,"seedable wrestlers in this weight class.",null,null,null,null,3,null,null,"NO WINS OVER SEC 6 PLACERS",0,"NO WINS OVER STATE COMPETITION",0,null,null,null,null,null,null,"TON",null,null,null,null,null,"IAIN O'DONNELL - NW",null,null,null,null,null,null,null,2,null,"CONNOR MIKA - CHEN VAL",null,null,null,12]
[null,null,null,null,null,null,4,null,null,"NO WINS OVER SEC 6 PLACERS",0,null,null,null,null,null,null,null,null,"WSW/E DEP",null,null,null,null,null,"JOHN FIKE - NW",null,null,null,null,null,null,null,2,null,"CAEL RAINES - CHURCH",null,null,null,12]
[null,null,null,null,null,null,5,null,null,"NO WINS OVER SEC 6 PLACERS",0,null,null,null,null,null,null,null,null,"WILL N/E",null,null,null,null,null,"ETHAN AZBELL - NW",null,null,null,null,null,null,null,1,null,"COY RAINES - CHURCH",null,null,null,18]
[null,null,null,null,null,null,6,null,null,"NO WINS OVER SEC 6 PLACERS",0,null,null,null,null,null,null,null,null,"WILL SO",null,null,null,null,null,"DYLAN GAGNON - NT",null,null,null,null,null,null,null,12,null,"KENNEDY THOMAS - CNS",null,null,null,12]
[null,null,null,null,null,null,7,null,null,"NO WINS OVER SEC 6 PLACERS",0,null,null,null,null,null,null,null,null,"WILSON",null,null,null,null,null,"AARON BATCH - NT",null,null,null,null,null,null,null,1,null,"ASHTEN HALEY - COBLE",null,null,null,18]
[null,null,null,null,"W","L",8,null,null,null,null,null,null,null,null,null,null,null,null,null,null,null,null,null,null,"JONATHAN LANDON - NT",null,null,null,null,null,null,null,1,null,"LIAM ENGLISH - COBLE",null,null,null,22]
[7,null,null,null,null,null,{"$f":"IFERROR(IF(AND((E57+F57)>0,(E57+F57)<10),ROUND(E57/SUM(E57+F57)*50,0),IF((E57+F57)<20,ROUND(E57/SUM(E57+F57)*75,0),IF((E57+F57)>19,ROUND(E57/SUM(E57+F57)*100,0)))),\"0\")","v":"0"},"Did Not Place",{"$f":"VLOOKUP(H57,$Q$4:$R$37,2,FALSE)","v":0},"NO WINS OVER SEC 6 PLACERS",{"$f":"VLOOKUP(J57,$Z$3:$AH$152,9,FALSE)","v":0},"NO WINS OVER STATE COMPETITION",{"$f":"VLOOKUP(L57,$AJ$3:$AN$287,5,FALSE)","v":0},0,0,{"$f":"SUM(G57,I57,K57,K58,K59,K60,K61,K62,K63,K64,M57,M58,M59,M60,N57,O57)","v":0},null,null,null,null,null,null,null,null,null,"BILAL MUHKTASIMOV - NT",null,null,null,null,null,null,null,1,null,"KYBER HENRY - COBLE",null,null,null,12]
[null,null,null,null,null,null,1,null,null,"NO WINS OVER SEC 6 PLACERS",0,"NO WINS OVER STATE COMPETITION",0,null,null,null,null,null,null,null,null,null,null,null,null,"CHAD HIMMLEBACK - NT",null,null,null,null,null,null,null,1,null,"RAYMOND MCNULTY - CSH",null,null,null,12]
[null,"Head to head wins over potentially",null,null,null,null,2,null,null,"NO WINS OVER SEC 6 PLACERS",0,"NO WINS OVER STATE COMPETITION",0,null,null,null,null,null,null,null,null,null,null,null,null,"LUCAS ACUNA - OP",null,null,null,null,null,null,null,6,null,"GREYSON MEAK - CSH",null,null,null,34]
[null,"seedable wrestlers in this weight class.",null,null,null,null,3,null,null,"NO WINS OVER SEC 6 PLACERS",0,"NO WINS OVER STATE COMPETITION",0,null,null,null,null,null,null,null,null,null,null,null,null,"JACK MACDONALD - OP",null,null,null,null,null,null,null,16,null,"LEO TANSEY - COLLEGIATE",null,null,null,12]
[null,null,null,null,null,null,4,null,null,"NO WINS OVER SEC 6 PLACERS",0,null,null,null,null,null,null,null,null,null,null,null,null,null,null,"BLAKE PAPKE - OP",null,null,null,null,null,null,null,1,null,"VINCENT MASTRIANNI - COLONIE",null,null,null,12]
[null,null,null,null,null,null,5,null,null,"NO WINS OVER SEC 6 PLACERS",0,null,null,null,null,null,null,null,null,null,null,null,null,null,null,"JONATHAN LOPEZ - SWEET",null,null,null,null,null,null,null,1,null,"MASON MANGIALINO - COMSE",null,null,null,16]
[null,null,null,null,null,null,6,null,null,"NO WINS OVER SEC 6 PLACERS",0,null,null,null,null,null,null,null,null,null,null,null,null,null,null,"JONATHAN JONES - SWEET",null,null,null,null,null,null,null,1,null,"CHASE NEVILLS - COPEN",null,null,null,40]
[null,null,null,null,null,null,7,null,null,"NO WINS OVER SEC 6 PLACERS",0,null,null,null,null,null,null,null,null,null,null,null,null,null,null,"LUKE OSMANSKI - WSWE",null,null,null,null,null,null,null,8,null,"TAVIAN CAMPER - COPEN",null,null,null,30]
[null,null,null,null,"W","L",8,null,null,null,null,null,null,null,null,null,null,null,null,null,null,null,null,null,null,"ROBERT MUNDORFF - WSWE",null,null,null,null,null,null,null,1,null,"JOSEPH MARTINEZ - COX ATHENS",null,null,null,12]
[8,null,null,null,null,null,{"$f":"IFERROR(IF(AND((E66+F66)>0,(E66+F66)<10),ROUND(E66/SUM(E66+F66)*50,0),IF((E66+F66)<20,ROUND(E66/SUM(E66+F66)*90,0),IF((E66+F66)>19,ROUND(E66/SUM(E66+F66)*100,0)))),\"0\")","v":"0"},"Did Not Place",{"$f":"VLOOKUP(H66,$Q$4:$R$37,2,FALSE)","v":0},"NO WINS OVER SEC 6 PLACERS",{"$f":"VLOOKUP(J66,$Z$3:$AH$152,9,FALSE)","v":0},"NO WINS OVER STATE COMPETITION",{"$f":"VLOOKUP(L66,$AJ$3:$AN$287,5,FALSE)","v":0},0,0,{"$f":"SUM(G66,I66,K66,K67,K68,K69,K70,K71,K72,K73,M66,M67,M68,M69,N66,O66)","v":0},null,null,null,null,null,null,null,null,null,"TANNER CATRABONE - WILLNE",null,null,null,null,null,null,null,8,null,"WYATT SARTORI - DANS WC",null,null,null,12]
[null,null,null,null,null,null,1,null,null,"NO WINS OVER SEC 6 PLACERS",0,"NO WINS OVER STATE COMPETITION",0,null,null,null,null,null,null,null,null,null,null,null,null,"NICK RODRIGUEZ - WILLNE",null,null,null,null,null,null,null,4,null,"LANDEN ESTUS - DEP HAN",null,null,null,12]
[null,"Head to head wins over potentially",null,null,null,null,2,null,null,"NO WINS OVER SEC 6 PLACERS",0,"NO WINS OVER STATE COMPETITION",0,null,null,null,null,null,null,null,null,null,null,null,null,"CAMERON CATRABONE - WILLNE",null,null,null,null,null,null,null,40,null,"SCOTT NICOLELLA - DUANES",null,null,null,12]
[null,"seedable wrestlers in this weight class.",null,null,null,null,3,null,null,"NO WINS OVER SEC 6 PLACERS",0,"NO WINS OVER STATE COMPETITION",0,null,null,null,null,null,null,null,null,null,null,null,null,"JOSEPH SANKOH JR - WILLNE",null,null,null,null,null,null,null,2,null,"DANIEL STEALEY - DUANES",null,null,null,12]
[null,null,null,null,null,null,4,null,null,"NO WINS OVER SEC 6 PLACERS",0,null,null,null,null,null,null,null,null,null,null,null,null,null,null,"MAX SMITH - WILLNE",null,null,null,null,null,null,null,8,null,"TYSON GILLARD - EAGLE",null,null,null,12]
[null,null,null,null,null,null,5,null,null,"NO WINS OVER SEC 6 PLACERS",0,null,null,null,null,null,null,null,null,null,null,null,null,null,null,"ZAID NASSER - WILLNE",null,null,null,null,null,null,null,8,null,"KIMONI GILES - EAGLE",null,null,null,12]
[null,null,null,null,null,null,6,null,null,"NO WINS OVER SEC 6 PLACERS",0,null,null,null,null,null,null,null,null,null,null,null,null,null,null,"ROCCO URBANZYCK - WILLNE",null,null,null,null,null,null,null,1,null,"CHRISTIAN SOLANO - EAGLE",null,null,null,22]
[null,null,null,null,null,null,7,null,null,"NO WINS OVER SEC 6 PLACERS",0,null,null,null,null,null,null,null,null,null,null,null,null,null,null,"HUSSEIN ZENKI - WILLNE",null,null,null,null,null,null,null,1,null,"ANTHONY AVITABILE - EAST ISLIP",null,null,null,12]
[null,null,null,null,"W","L",8,null,null,null,null,null,null,null,null,null,null,null,null,null,null,null,null,null,null,"BRADY CROSETTA - WILLSO",null,null,null,null,null,null,null,2,null,"SEBASTIAN REGIS - EAST ISLIP",null,null,null,40]
[9,null,null,null,null,null,{"$f":"IFERROR(IF(AND((E75+F75)>0,(E75+F75)<10),ROUND(E75/SUM(E75+F75)*50,0),IF((E75+F75)<20,ROUND(E75/SUM(E75+F75)*75,0),IF((E75+F75)>19,ROUND(E75/SUM(E75+F75)*100,0)))),\"0\")","v":"0"},"Did Not Place",{"$f":"VLOOKUP(H75,$Q$4:$R$37,2,FALSE)","v":0},"NO WINS OVER SEC 6 PLACERS",{"$f":"VLOOKUP(J75,$Z$3:$AH$152,9,FALSE)","v":0},"NO WINS OVER STATE COMPETITION",{"$f":"VLOOKUP(L75,$AJ$3:$AN$287,5,FALSE)","v":0},0,0,{"$f":"SUM(G75,I75,K75,K76,K77,K78,K79,K80,K81,K82,M75,M76,M77,M78,N75,O75)","v":0},null,null,null,null,null,null,null,null,null,"JOSEPH LIPSKI - WILLSO",null,null,null,null,null,null,null,4,null,"MATTHEW RODRIGUEZ - EAST MEAD",null,null,null,12]
[null,null,null,null,null,null,1,null,null,"NO WINS OVER SEC 6 PLACERS",0,"NO WINS OVER STATE COMPETITION",0,null,null,null,null,null,null,null,null,null,null,null,null,"JACKSON HEWSON - WILLSO",null,null,null,null,null,null,null,1,null,"JOSEPH ARBITELLO - EAST MEAD",null,null,null,12]
[null,"Head to head wins over potentially",null,null,null,null,2,null,null,"NO WINS OVER SEC 6 PLACERS",0,"NO WINS OVER STATE COMPETITION",0,null,null,null,null,null,null,null,null,null,null,null,null,"DIVISION 2",null,null,null,null,null,null,null,null,null,"SAM BRENEN-BUSECK - ELMIRE",null,null,null,12]
[null,"seedable wrestlers in this weight class.",null,null,null,null,3,null,null,"NO WINS OVER SEC 6 PLACERS",0,"NO WINS OVER STATE COMPETITION",0,null,null,null,null,null,null,null,null,null,null,null,null,"CHRISTIAN KLONOWSKI - AKRON",null,null,null,null,null,null,null,2,null,"TREY LECHASE - FAIR",null,null,null,12]
[null,null,null,null,null,null,4,null,null,"NO WINS OVER SEC 6 PLACERS",0,null,null,null,null,null,null,null,null,null,null,null,null,null,null,"GAVIN BURCHANOWSKI - CHAUT",null,null,null,null,null,null,null,8,null,"ALEXANDER BERISHA - FOX",null,null,null,12]
[null,null,null,null,null,null,5,null,null,"NO WINS OVER SEC 6 PLACERS",0,null,null,null,null,null,null,null,null,null,null,null,null,null,null,"THANDON BENSINK - CHAUT",null,null,null,null,null,null,null,8,null,"JOHNATHAN CLOHECY - FULT",null,null,null,22]
[null,null,null,null,null,null,6,null,null,"NO WINS OVER SEC 6 PLACERS",0,null,null,null,null,null,null,null,null,null,null,null,null,null,null,"JORDAN JOSLYN - CHAUT",null,null,null,null,null,null,null,40,null,"PAUL MINCKLER - GOUV",null,null,null,12]
[null,null,null,null,null,null,7,null,null,"NO WINS OVER SEC 6 PLACERS",0,null,null,null,null,null,null,null,null,null,null,null,null,null,null,"JOHN WATSON - CHAUT",null,null,null,null,null,null,null,18,null,"JAMES MINCKLER - GOUV",null,null,null,12]
[null,null,null,null,"W","L",8,null,null,null,null,null,null,null,null,null,null,null,null,null,null,null,null,null,null,"JAYDEN MALECKI - CHAUT",null,null,null,null,null,null,null,8,null,"CYLER BAER - GOUV",null,null,null,12]
[10,null,null,null,null,null,{"$f":"IFERROR(IF(AND((E84+F84)>0,(E84+F84)<10),ROUND(E84/SUM(E84+F84)*50,0),IF((E84+F84)<20,ROUND(E84/SUM(E84+F84)*75,0),IF((E84+F84)>19,ROUND(E84/SUM(E84+F84)*100,0)))),\"0\")","v":"0"},"Did Not Place",{"$f":"VLOOKUP(H84,$Q$4:$R$37,2,FALSE)","v":0},"NO WINS OVER SEC 6 PLACERS",{"$f":"VLOOKUP(J84,$Z$3:$AH$152,9,FALSE)","v":0},"NO WINS OVER STATE COMPETITION",{"$f":"VLOOKUP(L84,$AJ$3:$AN$287,5,FALSE)","v":0},0,0,{"$f":"SUM(G84,I84,K84,K85,K86,K87,K88,K89,K90,K91,M84,M85,M86,M87,N84,O84)","v":0},null,null,null,null,null,null,null,null,null,"MASON MARING - CHAUT",null,null,null,null,null,null,null,10,null,"ZOE GRIFFITH - GOUV",null,null,null,12]
[null,null,null,null,null,null,1,null,null,"NO WINS OVER SEC 6 PLACERS",0,"NO WINS OVER STATE COMPETITION",0,null,null,null,null,null,null,null,null,null,null,null,null,"ISON SHIRLEY - CHAUT",null,null,null,null,null,null,null,10,null,"TURNER SOCHIA - GOUV",null,null,null,12]
[null,"Head to head wins over potentially",null,null,null,null,2,null,null,"NO WINS OVER SEC 6 PLACERS",0,"NO WINS OVER STATE COMPETITION",0,null,null,null,null,null,null,null,null,null,null,null,null,"MOHAMMAD NOOR - CHEEK",null,null,null,null,null,null,null,2,null,"HUNTER MASHAW - GOUV",null,null,null,12]
[null,"seedable wrestlers in this weight class.",null,null,null,null,3,null,null,"NO WINS OVER SEC 6 PLACERS",0,"NO WINS OVER STATE COMPETITION",0,null,null,null,null,null,null,null,null,null,null,null,null,"JERMAINE PARSONS - CHEEK",null,null,null,null,null,null,null,2,null,"VANDAVIAN WAY - GOUV",null,null,null,26]
[null,null,null,null,null,null,4,null,null,"NO WINS OVER SEC 6 PLACERS",0,null,null,null,null,null,null,null,null,null,null,null,null,null,null,"MICHAEL HANLON - DUNK",null,null,null,null,null,null,null,2,null,"DREW GATES - GOUV",null,null,null,12]
[null,null,null,null,null,null,5,null,null,"NO WINS OVER SEC 6 PLACERS",0,null,null,null,null,null,null,null,null,null,null,null,null,null,null,"CHRISTIAN HERNANDEZ - DUNK",null,null,null,null,null,null,null,2,null,"DWAYNE HARRIS - GRAND ST",null,null,null,12]
[null,null,null,null,null,null,6,null,null,"NO WINS OVER SEC 6 PLACERS",0,null,null,null,null,null,null,null,null,null,null,null,null,null,null,"CONOR JAKUBOWICZ - DUNK",null,null,null,null,null,null,null,1,null,"KIERAN CULLEN - GREENVILLE",null,null,null,22]
[null,null,null,null,null,null,7,null,null,"NO WINS OVER SEC 6 PLACERS",0,null,null,null,null,null,null,null,null,null,null,null,null,null,null,"RHETT KRIEGER - EAHOLLAND",null,null,null,null,null,null,null,1,null,"AIDAN SHUFELT - GROT",null,null,null,30]
[null,null,null,null,"W","L",8,null,null,null,null,null,null,null,null,null,null,null,null,null,null,null,null,null,null,"TREVOR DELLAPENTA - EDEN",null,null,null,null,null,null,null,14,null,"CONNOR SHERIDAN - HAUPP",null,null,null,34]
[11,null,null,null,null,null,{"$f":"IFERROR(IF(AND((E93+F93)>0,(E93+F93)<10),ROUND(E93/SUM(E93+F93)*50,0),IF((E93+F93)<20,ROUND(E93/SUM(E93+F93)*75,0),IF((E93+F93)>19,ROUND(E93/SUM(E93+F93)*100,0)))),\"0\")","v":"0"},"Did Not Place",{"$f":"VLOOKUP(H93,$Q$4:$R$37,2,FALSE)","v":0},"NO WINS OVER SEC 6 PLACERS",{"$f":"VLOOKUP(J93,$Z$3:$AH$152,9,FALSE)","v":0},"NO WINS OVER STATE COMPETITION",{"$f":"VLOOKUP(L93,$AJ$3:$AN$287,5,FALSE)","v":0},0,0,{"$f":"SUM(G93,I93,K93,K94,K95,K96,K97,K98,K99,K100,M93,M94,M95,M96,N93,O93)","v":0},null,null,null,null,null,null,null,null,null,"BRYCE DELLAPENTA - EDEN",null,null,null,null,null,null,null,10,null,"GINO MANTA - HAUPP",null,null,null,12]
[null,null,null,null,null,null,1,null,null,"NO WINS OVER SEC 6 PLACERS",0,"NO WINS OVER STATE COMPETITION",0,null,null,null,null,null,null,null,null,null,null,null,null,"DYLAN NEWMAN - FALC",null,null,null,null,null,null,null,10,null,"KYLE PESKE - HENDRICK",null,null,null,12]
[null,"Head to head wins over potentially",null,null,null,null,2,null,null,"NO WINS OVER SEC 6 PLACERS",0,"NO WINS OVER STATE COMPETITION",0,null,null,null,null,null,null,null,null,null,null,null,null,"EVAN NEWMAN - FALC",null,null,null,null,null,null,null,2,null,"MASON DIETZ - HENDRICK",null,null,null,12]
[null,"seedable wrestlers in this weight class.",null,null,null,null,3,null,null,"NO WINS OVER SEC 6 PLACERS",0,"NO WINS OVER STATE COMPETITION",0,null,null,null,null,null,null,null,null,null,null,null,null,"KARSEN LUNDGREN - FALC",null,null,null,null,null,null,null,6,null,"CARLOS SALAZAR - HEW",null,null,null,12]
[null,null,null,null,null,null,4,null,null,"NO WINS OVER SEC 6 PLACERS",0,null,null,null,null,null,null,null,null,null,null,null,null,null,null,"GABE LUNDMARK - FALC",null,null,null,null,null,null,null,1,null,"JON TESTA - HILT",null,null,null,12]
[null,null,null,null,null,null,5,null,null,"NO WINS OVER SEC 6 PLACERS",0,null,null,null,null,null,null,null,null,null,null,null,null,null,null,"HUNTER PAULISICK - FALC",null,null,null,null,null,null,null,1,null,"TYLER SIMONS - HILT",null,null,null,12]
[null,null,null,null,null,null,6,null,null,"NO WINS OVER SEC 6 PLACERS",0,null,null,null,null,null,null,null,null,null,null,null,null,null,null,"CHARLIE REICHENBACH - FALC",null,null,null,null,null,null,null,1,null,"LANDON LAZAREK - HILT",null,null,null,26]
[null,null,null,null,null,null,7,null,null,"NO WINS OVER SEC 6 PLACERS",0,null,null,null,null,null,null,null,null,null,null,null,null,null,null,"THI VANGUILDER - FALC",null,null,null,null,null,null,null,4,null,"ELIJAH DIAKOMIHALIS - HILT",null,null,null,34]
[null,null,null,null,"W","L",8,null,null,null,null,null,null,null,null,null,null,null,null,null,null,null,null,null,null,"EVAN LEONARD - FRANK",null,null,null,null,null,null,null,6,null,"TRENT TRUE - HOLL PAT",null,null,null,12]
[12,null,null,null,null,null,{"$f":"IFERROR(IF(AND((E102+F102)>0,(E102+F102)<10),ROUND(E102/SUM(E102+F102)*50,0),IF((E102+F102)<20,ROUND(E102/SUM(E102+F102)*75,0),IF((E102+F102)>19,ROUND(E102/SUM(E102+F102)*100,0)))),\"0\")","v":"0"},"Did Not Place",{"$f":"VLOOKUP(H102,$Q$4:$R$37,2,FALSE)","v":0},"NO WINS OVER SEC 6 PLACERS",{"$f":"VLOOKUP(J102,$Z$3:$AH$152,9,FALSE)","v":0},"NO WINS OVER STATE COMPETITION",{"$f":"VLOOKUP(L102,$AJ$3:$AN$287,5,FALSE)","v":0},0,0,{"$f":"SUM(G102,I102,K102,K103,K104,K105,K106,K107,K108,K109,M102,M103,M104,M105,N102,O102)","v":0},null,null,null,null,null,null,null,null,null,"CAMERON INGRAM - FRED",null,null,null,null,null,null,null,1,null,"CHRIS NOTO - HFA",null,null,null,22]
[null,null,null,null,null,null,1,null,null,"NO WINS OVER SEC 6 PLACERS",0,"NO WINS OVER STATE COMPETITION",0,null,null,null,null,null,null,null,null,null,null,null,null,"ISSIAH RUIZ - DUNK",null,null,null,null,null,null,null,4,null,"JACOB  MCVIGE - HFA",null,null,null,12]
[null,"List the names of head to head wins over",null,null,null,null,2,null,null,"NO WINS OVER SEC 6 PLACERS",0,"NO WINS OVER STATE COMPETITION",0,null,null,null,null,null,null,null,null,null,null,null,null,"QINLAND SMATHERS - FREWS",null,null,null,null,null,null,null,4,null,"ANDREW SPAULDING - HFA",null,null,null,12]
[null,"potential wrestlers in this weight class.",null,null,null,null,3,null,null,"NO WINS OVER SEC 6 PLACERS",0,"NO WINS OVER STATE COMPETITION",0,null,null,null,null,null,null,null,null,null,null,null,null,"GREG REID - GOW",null,null,null,null,null,null,null,2,null,"WAYLAN WINSEMAN - HFA",null,null,null,12]
[null,null,null,null,null,null,4,null,null,"NO WINS OVER SEC 6 PLACERS",0,null,null,null,null,null,null,null,null,null,null,null,null,null,null,"NATHAN WARRIOR - GOW",null,null,null,null,null,null,null,1,null,"KRISH GANDHI - HORACE",null,null,null,12]
[null,null,null,null,null,null,5,null,null,"NO WINS OVER SEC 6 PLACERS",0,null,null,null,null,null,null,null,null,null,null,null,null,null,null,"MICHAEL HORTH - GOW",null,null,null,null,null,null,null,4,null,"JOVANNY NAZARIO - HORACE",null,null,null,12]
[null,null,null,null,null,null,6,null,null,"NO WINS OVER SEC 6 PLACERS",0,null,null,null,null,null,null,null,null,null,null,null,null,null,null,"JOSH PFEIFFER - IRQ",null,null,null,null,null,null,null,1,null,"WILL CHOI - HORACE",null,null,null,12]
[null,null,null,null,null,null,7,null,null,"NO WINS OVER SEC 6 PLACERS",0,null,null,null,null,null,null,null,null,null,null,null,null,null,null,"TREY PFEIFFER - IRQ",null,null,null,null,null,null,null,1,null,"IVAN DOLPHAN - HORACE",null,null,null,12]
[null,null,null,null,"W","L",8,null,null,null,null,null,null,null,null,null,null,null,null,null,null,null,null,null,null,"SAM DONOVAN - IRQ",null,null,null,null,null,null,null,6,null,"JOEL SCIBEK - HORSEHEADS",null,null,null,12]
[13,null,null,null,null,null,{"$f":"IFERROR(IF(AND((E111+F111)>0,(E111+F111)<10),ROUND(E111/SUM(E111+F111)*50,0),IF((E111+F111)<20,ROUND(E111/SUM(E111+F111)*75,0),IF((E111+F111)>19,ROUND(E111/SUM(E111+F111)*100,0)))),\"0\")","v":"0"},"Did Not Place",{"$f":"VLOOKUP(H111,$Q$4:$R$37,2,FALSE)","v":0},"NO WINS OVER SEC 6 PLACERS",{"$f":"VLOOKUP(J111,$Z$3:$AH$152,9,FALSE)","v":0},"NO WINS OVER STATE COMPETITION",{"$f":"VLOOKUP(L111,$AJ$3:$AN$287,5,FALSE)","v":0},0,0,{"$f":"SUM(G111,I111,K111,K112,K113,K114,K115,K116,K117,K118,M111,M112,M113,M114,N111,O111)","v":0},null,null,null,null,null,null,null,null,null,"BRADY WILKINSON - IRQ",null,null,null,null,null,null,null,8,null,"CODY DALE - HORSEHEADS",null,null,null,12]
[null,null,null,null,null,null,1,null,null,"NO WINS OVER SEC 6 PLACERS",0,"NO WINS OVER STATE COMPETITION",0,null,null,null,null,null,null,null,null,null,null,null,null,"ALEX SCHIFFHAUER - IRQ",null,null,null,null,null,null,null,10,null,"COLETON OWEN - HORSEHEADS",null,null,null,12]
[null,"Head to head wins over potentially",null,null,null,null,2,null,null,"NO WINS OVER SEC 6 PLACERS",0,"NO WINS OVER STATE COMPETITION",0,null,null,null,null,null,null,null,null,null,null,null,null,"TREVOR BARRY - IRQ",null,null,null,null,null,null,null,30,null,"HUNTER LAVIGNE - HORSEHEADS",null,null,null,12]
[null,"seedable wrestlers in this weight class.",null,null,null,null,3,null,null,"NO WINS OVER SEC 6 PLACERS",0,"NO WINS OVER STATE COMPETITION",0,null,null,null,null,null,null,null,null,null,null,null,null,"ADAM ALGAWANI - LACK",null,null,null,null,null,null,null,1,null,"JUSTIN MULLIS - HUDS FALLS",null,null,null,12]
[null,null,null,null,null,null,4,null,null,"NO WINS OVER SEC 6 PLACERS",0,null,null,null,null,null,null,null,null,null,null,null,null,null,null,"JAYKWON TORRES - LACK",null,null,null,null,null,null,null,1,null,"JESSE MULLIS - HUDS FALLS",null,null,null,22]
[null,null,null,null,null,null,5,null,null,"NO WINS OVER SEC 6 PLACERS",0,null,null,null,null,null,null,null,null,null,null,null,null,null,null,"JAXON KRAFT - MAPLE",null,null,null,null,null,null,null,1,null,"MAX CASIANO - HUNT",null,null,null,12]
[null,null,null,null,null,null,6,null,null,"NO WINS OVER SEC 6 PLACERS",0,null,null,null,null,null,null,null,null,null,null,null,null,null,null,"MATT TRIM - MAPLE",null,null,null,null,null,null,null,14,null,"TOMAH GUMMOW - INDIAN",null,null,null,12]
[null,null,null,null,null,null,7,null,null,"NO WINS OVER SEC 6 PLACERS",0,null,null,null,null,null,null,null,null,null,null,null,null,null,null,"CODY FREYBURGER - MARY",null,null,null,null,null,null,null,4,null,"JUSTIN SHAY - IONA",null,null,null,30]
[null,null,null,null,"W","L",8,null,null,null,null,null,null,null,null,null,null,null,null,null,null,null,null,null,null,"REECE SENSKE - MED",null,null,null,null,null,null,null,6,null,"PAOLO CIATTO - IONA",null,null,null,14]
[14,null,null,null,null,null,{"$f":"IFERROR(IF(AND((E120+F120)>0,(E120+F120)<10),ROUND(E120/SUM(E120+F120)*50,0),IF((E120+F120)<20,ROUND(E120/SUM(E120+F120)*75,0),IF((E120+F120)>19,ROUND(E120/SUM(E120+F120)*100,0)))),\"0\")","v":"0"},"Did Not Place",{"$f":"VLOOKUP(H120,$Q$4:$R$334,2,FALSE)","v":0},"NO WINS OVER SEC 6 PLACERS",{"$f":"VLOOKUP(J120,$Z$3:$AH$152,9,FALSE)","v":0},"NO WINS OVER STATE COMPETITION",{"$f":"VLOOKUP(L120,$AJ$3:$AN$287,5,FALSE)","v":0},0,0,{"$f":"SUM(G120,I120,K120,K121,K122,K123,K124,K125,K126,K127,M120,M121,M122,M123,N120)","v":0},null,null,null,null,null,null,null,null,null,"LUKE DUFFINA - MED",null,null,null,null,null,null,null,1,null,"ERIC GRANT - IONA",null,null,null,12]
[null,null,null,null,null,null,1,null,null,"NO WINS OVER SEC 6 PLACERS",0,"NO WINS OVER STATE COMPETITION",0,null,null,null,null,null,null,null,null,null,null,null,null,"CONOR CRANDALL - MED",null,null,null,null,null,null,null,1,null,"GABRIEL GARIBALDI - IONA",null,null,null,18]
[null,"Head to head wins over potentially",null,null,null,null,2,null,null,"NO WINS OVER SEC 6 PLACERS",0,"NO WINS OVER STATE COMPETITION",0,null,null,null,null,null,null,null,null,null,null,null,null,"BRODY FRY - MED",null,null,null,null,null,null,null,2,null,"KEVIN CUSKER - ISLAND TREES",null,null,null,12]
[null,"seedable wrestlers in this weight class.",null,null,null,null,3,null,null,"NO WINS OVER SEC 6 PLACERS",0,"NO WINS OVER STATE COMPETITION",0,null,null,null,null,null,null,null,null,null,null,null,null,"SAWYER KINGSBURY - MED",null,null,null,null,null,null,null,4,null,"JOHN MIGNANELLI - ISLAND TREES",null,null,null,12]
[null,null,null,null,null,null,4,null,null,"NO WINS OVER SEC 6 PLACERS",0,null,null,null,null,null,null,null,null,null,null,null,null,null,null,"JAKOB LUCINSKI - NEW",null,null,null,null,null,null,null,26,null,"JEFRY TREJO-PACHECHO - ISLAND TREES",null,null,null,12]
[null,null,null,null,null,null,5,null,null,"NO WINS OVER SEC 6 PLACERS",0,null,null,null,null,null,null,null,null,null,null,null,null,null,null,"AIDAN GILLINGS - NEW",null,null,null,null,null,null,null,34,null,"JOESEPH FILOCAMO - ISLAND TREES",null,null,null,12]
[null,null,null,null,null,null,6,null,null,"NO WINS OVER SEC 6 PLACERS",0,null,null,null,null,null,null,null,null,null,null,null,null,null,null,"AYDEN BUTTERY - NEW",null,null,null,null,null,null,null,18,null,"JARED SPAHN - ISLIP",null,null,null,18]
[null,null,null,null,null,null,7,null,null,"NO WINS OVER SEC 6 PLACERS",0,null,null,null,null,null,null,null,null,null,null,null,null,null,null,"DOMINICK HIRLIMAN - OLEAN",null,null,null,null,null,null,null,1,null,"QUENTIN GETZIN - ITHACA",null,null,null,12]
[null,null,null,null,"W","L",8,null,null,null,null,null,null,null,null,null,null,null,null,null,null,null,null,null,null,"EVAN WRIGHT - PION",null,null,null,null,null,null,null,2,null,"DANIEL PARKER - ITHACA",null,null,null,12]
[15,null,null,null,null,null,{"$f":"IFERROR(IF(AND((E129+F129)>0,(E129+F129)<10),ROUND(E129/SUM(E129+F129)*50,0),IF((E129+F129)<20,ROUND(E129/SUM(E129+F129)*75,0),IF((E129+F129)>19,ROUND(E129/SUM(E129+F129)*100,0)))),\"0\")","v":"0"},"Did Not Place",{"$f":"VLOOKUP(H129,$Q$4:$R$334,2,FALSE)","v":0},"NO WINS OVER SEC 6 PLACERS",{"$f":"VLOOKUP(J129,$Z$3:$AH$152,9,FALSE)","v":0},"NO WINS OVER STATE COMPETITION",{"$f":"VLOOKUP(L129,$AJ$3:$AN$287,5,FALSE)","v":0},0,0,{"$f":"SUM(G129,I129,K129,K130,K131,K132,K133,K134,K135,K136,M129,M130,M131,M132,N129)","v":0},null,null,null,null,null,null,null,null,null,"WYATT OPFERBECK - PION",null,null,null,null,null,null,null,6,null,"DIKOTA HAMILTON - ITHACA",null,null,null,12]
[null,null,null,null,null,null,1,null,null,"NO WINS OVER SEC 6 PLACERS",0,"NO WINS OVER STATE COMPETITION",{"$f":"VLOOKUP(L130,$AJ$3:$AN$287,5,FALSE)","v":0},null,null,null,null,null,null,null,null,null,null,null,null,"BRANDON DOYLE - PION",null,null,null,null,null,null,null,2,null,"JORDAN LEE - JAMES MAD",null,null,null,12]
[null,"Head to head wins over potentially",null,null,null,null,2,null,null,"NO WINS OVER SEC 6 PLACERS",0,"NO WINS OVER STATE COMPETITION",0,null,null,null,null,null,null,null,null,null,null,null,null,"TAKOTA SMITH - PION",null,null,null,null,null,null,null,1,null,"AMIR AVAZOV - JAMES MAD",null,null,null,26]
[null,"seedable wrestlers in this weight class.",null,null,null,null,3,null,null,"NO WINS OVER SEC 6 PLACERS",0,"NO WINS OVER STATE COMPETITION",0,null,null,null,null,null,null,null,null,null,null,null,null,"CHRIS HOWATT - PION",null,null,null,null,null,null,null,1,null,"AIDAN GUBAREV - JAMES MAD",null,null,null,14]
[null,null,null,null,null,null,4,null,null,"NO WINS OVER SEC 6 PLACERS",0,null,null,null,null,null,null,null,null,null,null,null,null,null,null,"LUKE MATHEIS - PION",null,null,null,null,null,null,null,8,null,"BEN PAUL - JAMES DEWITT",null,null,null,12]
[null,null,null,null,null,null,5,null,null,"NO WINS OVER SEC 6 PLACERS",0,null,null,null,null,null,null,null,null,null,null,null,null,null,null,"MEKHI MUHYEE - PORT",null,null,null,null,null,null,null,6,null,"TOMMY AIELLO - JOHN GLENN",null,null,null,40]
[null,null,null,null,null,null,6,null,null,"NO WINS OVER SEC 6 PLACERS",0,null,null,null,null,null,null,null,null,null,null,null,null,null,null,"MAXX DEYOE - PORT",null,null,null,null,null,null,null,6,null,"KARAHN KING - JOHN GLENN",null,null,null,12]
[null,null,null,null,null,null,7,null,null,"NO WINS OVER SEC 6 PLACERS",0,null,null,null,null,null,null,null,null,null,null,null,null,null,null,"HAYDEN EMLEY - PORT",null,null,null,null,null,null,null,1,null,"ANTHONY BELL - JOHN GLENN",null,null,null,12]
[null,null,null,null,null,null,8,null,null,null,null,null,null,null,null,null,null,null,null,null,null,null,null,null,null,"HENRY CHAMBERLAIN - PORT",null,null,null,null,null,null,null,6,null,"CARMINE GERBINO - JOHN GLENN",null,null,null,12]
[null,null,null,null,null,null,null,null,null,null,null,null,null,null,null,null,null,null,null,null,null,null,null,null,null,"CADEN INKLEY - RAND",null,null,null,null,null,null,null,8,null,"ELIJAH PORPORA - JOHN GLENN",null,null,null,12]
[null,null,null,null,"Bottom of form",null,null,null,null,null,null,null,null,null,null,null,null,null,null,null,null,null,null,null,null,"DOMANIK CLARK - RAND",null,null,null,null,null,null,null,1,null,"CAMERON WIERL - JONH JAY",null,null,null,12]
[null,null,null,null,null,null,null,null,null,null,null,null,null,null,null,null,null,null,null,null,null,null,null,null,null,"LUCAS KIMBER - ROYHART",null,null,null,null,null,null,null,4,null,"JACK LAMSON - JORD ELB",null,null,null,14,null," "]
[null,null,null,null,null,null,null,null,null,null,null,null,null,null,null,null,null,null,null,null,null,null,null,null,null,"LUKE FAY - ROYHART",null,null,null,null,null,null,null,2,null,"DEAN RENNA - KINGS PARK",null,null,null,12]
[null,null,null,null,null,null,null,null,null,null,null,null,null,null,null,null,null,null,null,null,null,null,null,null,null,"KENJI WALTERS - SOUTH",null,null,null,null,null,null,null,12,null,"OWEN CLARK - LANSING",null,null,null,12]
[null,null,null,null,null,null,null,null,null,null,null,null,null,null,null,null,null,null,null,null,null,null,null,null,null,"CARMINE CALIMERI - SOUTH",null,null,null,null,null,null,null,16,null,"OWEN EMMICK - LANSING",null,null,null,12]
[null,null,null,null,null,null,null,null,null,null,null,null,null,null,null,null,null,null,null,null,null,null,null,null,null,"NEVES HOOSE - SOUTH",null,null,null,null,null,null,null,8,null,"ARMANDO ESPINAL - LAWR",null,null,null,12]
[null,null,null,null,null,null,null,null,null,null,null,null,null,null,null,null,null,null,null,null,null,null,null,null,null,"TAVIO HOOSE - SOUTH",null,null,null,null,null,null,null,40,null,"JOE SCOTT - LETCH",null,null,null,16]
[null,null,null,null,null,null,null,null,null,null,null,null,null,null,null,null,null,null,null,null,null,null,null,null,null,"BRAYDEN POTTER - SOUTH",null,null,null,null,null,null,null,4,null,"BRYAN AULINO - LINDEN",null,null,null,12]
[null,null,null,null,null,null,null,null,null,null,null,null,null,null,null,null,null,null,null,null,null,null,null,null,null,"GRIFFIN MCKINSEY - SPRING",null,null,null,null,null,null,null,4,null,"JACE BLISS - LIVERPOOL",null,null,null,12,null," "]
[null,null,null,null,null,null,null,null,null,null,null,null,null,null,null,null,null,null,null,null,null,null,null,null,null,"VICTOR CUSATIS - WILSON",null,null,null,null,null,null,null,10,null,"JUSTIN DVORAK - LOCUST",null,null,null,12]
[null,null,null,null,null,null,null,null,null,null,null,null,null,null,null,null,null,null,null,null,null,null,null,null,null,"JACOB STEPHENSON - WILSON",null,null,null,null,null,null,null,12,null,"JESSE FIRESTONE - LOCUST",null,null,null,12]
[null,null,null,null,null,null,null,null,null,null,null,null,null,null,null,null,null,null,null,null,null,null,null,null,null,"HAMZA MERRICK - WILSON",null,null,null,null,null,null,null,14,null,"CHARLES KELLY - LOCUST",null,null,null,12]
[null,null,null,null,null,null,null,null,null,null,null,null,null,null,null,null,null,null,null,null,null,null,null,null,null,"WILLIAM WORTKOETTER - WILSON",null,null,null,null,null,null,null,6,null,"ETHAN ANDRULA - LONG BEACH",null,null,null,16]
[null,null,null,null,null,null,null,null,null,null,null,null,null,null,null,null,null,null,null,null,null,null,null,null,null,null,null,null,null,null,null,null,null,null,null,"DUNIA SIBOMANA - LONG BEACH",null,null,null,30]
[null,null,null,null,null,null,null,null,null,null,null,null,null,null,null,null,null,null,null,null,null,null,null,null,null,null,null,null,null,null,null,null,null,null,null,"BRODY FRANKLIN - LONG BEACH",null,null,null,12]
[null,null,null,null,null,null,null,null,null,null,null,null,null,null,null,null,null,null,null,null,null,null,null,null,null,null,null,null,null,null,null,null,null,null,null,"ANTHONY LAGELA-RYAN - LONGWOOD",null,null,null,22]
[null,null,null,null,null,null,null,null,null,null,null,null,null,null,null,null,null,null,null,null,null,null,null,null,null,null,null,null,null,null,null,null,null,null,null,"PATRICK GRIMSEY - LOWVILLE",null,null,null,22]
[null,null,null,null,null,null,null,null,null,null,null,null,null,null,null,null,null,null,null,null,null,null,null,null,null,null,null,null,null,null,null,null,null,null,null,"SEAN KELLY - LOWVILLE",null,null,null,26]
[null,null,null,null,null,null,null,null,null,null,null,null,null,null,null,null,null,null,null,null,null,null,null,null,null,null,null,null,null,null,null,null,null,null,null,"DYLAN VANEGAS - LINBROOK",null,null,null,12]
[null,null,null,null,null,null,null,null,null,null,null,null,null,null,null,null,null,null,null,null,null,null,null,null,null,null,null,null,null,null,null,null,null,null,null,"SEBASTIAN TEMICH - LYND",null,null,null,12]
[null,null,null,null,null,null,null,null,null,null,null,null,null,null,null,null,null,null,null,null,null,null,null,null,null,null,null,null,null,null,null,null,null,null,null,"VINCENT ORANDELLO - MAC",null,null,null,12]
[null,null,null,null,null,null,null,null,null,null,null,null,null,null,null,null,null,null,null,null,null,null,null,null,null,null,null,null,null,null,null,null,null,null,null,"CHARLES BERGONZI - MAC",null,null,null,12]
[null,null,null,null,null,null,null,null,null,null,null,null,null,null,null,null,null,null,null,null,null,null,null,null,null,null,null,null,null,null,null,null,null,null,null,"CHARLES PRYMYSKY - MAHOP",null,null,null,12]
[null,null,null,null,null,null,null,null,null,null,null,null,null,null,null,null,null,null,null,null,null,null,null,null,null,null,null,null,null,null,null,null,null,null,null,"TANNER KING - MALONE",null,null,null,12]
[null,null,null,null,null,null,null,null,null,null,null,null,null,null,null,null,null,null,null,null,null,null,null,null,null,null,null,null,null,null,null,null,null,null,null,"COOPER FUNK - MALONE",null,null,null,12]
[null,null,null,null,null,null,null,null,null,null,null,null,null,null,null,null,null,null,null,null,null,null,null,null,null,null,null,null,null,null,null,null,null,null,null,"COLIN SCHERER - MARCELLUS",null,null,null,12]
[null,null,null,null,null,null,null,null,null,null,null,null,null,null,null,null,null,null,null,null,null,null,null,null,null,null,null,null,null,null,null,null,null,null,null,"BRYSON TIBBS - MIDDLE",null,null,null,18]
[null,null,null,null,null,null,null,null,null,null,null,null,null,null,null,null,null,null,null,null,null,null,null,null,null,null,null,null,null,null,null,null,null,null,null,"STEPHAN MONCHERY - MIDDLE",null,null,null,34]
[null,null,null,null,null,null,null,null,null,null,null,null,null,null,null,null,null,null,null,null,null,null,null,null,null,null,null,null,null,null,null,null,null,null,null,"RAHMIERE BRADLEY - MIDDLE",null,null,null,16]
[null,null,null,null,null,null,null,null,null,null,null,null,null,null,null,null,null,null,null,null,null,null,null,null,null,null,null,null,null,null,null,null,null,null,null,"EVIN GURSOY - MIDWOOD",null,null,null,34]
[null,null,null,null,null,null,null,null,null,null,null,null,null,null,null,null,null,null,null,null,null,null,null,null,null,null,null,null,null,null,null,null,null,null,null,"MICHAEL GIUGLIANO - MILLER",null,null,null,18]
[null,null,null,null,null,null,null,null,null,null,null,null,null,null,null,null,null,null,null,null,null,null,null,null,null,null,null,null,null,null,null,null,null,null,null,"WYATT BOICE - MIN VALLEY",null,null,null,12]
[null,null,null,null,null,null,null,null,null,null,null,null,null,null,null,null,null,null,null,null,null,null,null,null,null,null,null,null,null,null,null,null,null,null,null,"ANTHONY TRESCH - MIN VALLEY",null,null,null,12]
[null,null,null,null,null,null,null,null,null,null,null,null,null,null,null,null,null,null,null,null,null,null,null,null,null,null,null,null,null,null,null,null,null,null,null,"LUKE GRENIER - MIN VALLEY",null,null,null,12]
[null,null,null,null,null,null,null,null,null,null,null,null,null,null,null,null,null,null,null,null,null,null,null,null,null,null,null,null,null,null,null,null,null,null,null,"ZACH FILIP - MIN VALLEY",null,null,null,12]
[null,null,null,null,null,null,null,null,null,null,null,null,null,null,null,null,null,null,null,null,null,null,null,null,null,null,null,null,null,null,null,null,null,null,null,"QUIENTEN MORGAN - MIN VALLEY",null,null,null,12]
[null,null,null,null,null,null,null,null,null,null,null,null,null,null,null,null,null,null,null,null,null,null,null,null,null,null,null,null,null,null,null,null,null,null,null,"ZACK RYDER - MIN VALLEY",null,null,null,40]
[null,null,null,null,null,null,null,null,null,null,null,null,null,null,null,null,null,null,null,null,null,null,null,null,null,null,null,null,null,null,null,null,null,null,null,"NICO RIVERA - MOHON",null,null,null,12]
[null,null,null,null,null,null,null,null,null,null,null,null,null,null,null,null,null,null,null,null,null,null,null,null,null,null,null,null,null,null,null,null,null,null,null,"ANTONIO FALDETTA - MT SIN",null,null,null,12]
[null,null,null,null,null,null,null,null,null,null,null,null,null,null,null,null,null,null,null,null,null,null,null,null,null,null,null,null,null,null,null,null,null,null,null,"BRAYDEN FAHRBACH - MT SIN",null,null,null,40]
[null,null,null,null,null,null,null,null,null,null,null,null,null,null,null,null,null,null,null,null,null,null,null,null,null,null,null,null,null,null,null,null,null,null,null,"JOHN BRACKEN - MT SIN",null,null,null,12]
[null,null,null,null,null,null,null,null,null,null,null,null,null,null,null,null,null,null,null,null,null,null,null,null,null,null,null,null,null,null,null,null,null,null,null,"JOHN PARISI - NANUET",null,null,null,12]
[null,null,null,null,null,null,null,null,null,null,null,null,null,null,null,null,null,null,null,null,null,null,null,null,null,null,null,null,null,null,null,null,null,null,null,"ETHAN BADILLO - NANUET",null,null,null,12]
[null,null,null,null,null,null,null,null,null,null,null,null,null,null,null,null,null,null,null,null,null,null,null,null,null,null,null,null,null,null,null,null,null,null,null,"ROBERT HARDWICK - NANUET",null,null,null,12]
[null,null,null,null,null,null,null,null,null,null,null,null,null,null,null,null,null,null,null,null,null,null,null,null,null,null,null,null,null,null,null,null,null,null,null,"CHRIS BELMONTE - NEW HART",null,null,null,12]
[null,null,null,null,null,null,null,null,null,null,null,null,null,null,null,null,null,null,null,null,null,null,null,null,null,null,null,null,null,null,null,null,null,null,null,"JUSTIN COITEUX - NEW PAL",null,null,null,12]
[null,null,null,null,null,null,null,null,null,null,null,null,null,null,null,null,null,null,null,null,null,null,null,null,null,null,null,null,null,null,null,null,null,null,null,"COOPER MERLI - NEW FREE",null,null,null,40]
[null,null,null,null,null,null,null,null,null,null,null,null,null,null,null,null,null,null,null,null,null,null,null,null,null,null,null,null,null,null,null,null,null,null,null,"WILLIAM SOTO - NEW FREE",null,null,null,30]
[null,null,null,null,null,null,null,null,null,null,null,null,null,null,null,null,null,null,null,null,null,null,null,null,null,null,null,null,null,null,null,null,null,null,null,"DREW SCHIAVO - NISK",null,null,null,12]
[null,null,null,null,null,null,null,null,null,null,null,null,null,null,null,null,null,null,null,null,null,null,null,null,null,null,null,null,null,null,null,null,null,null,null,"ISSAC BRATTER - N SHORE",null,null,null,12]
[null,null,null,null,null,null,null,null,null,null,null,null,null,null,null,null,null,null,null,null,null,null,null,null,null,null,null,null,null,null,null,null,null,null,null,"DYLAN GAGNON - N TON",null,null,null,12]
[null,null,null,null,null,null,null,null,null,null,null,null,null,null,null,null,null,null,null,null,null,null,null,null,null,null,null,null,null,null,null,null,null,null,null,"JACKSON LABARGE - N ADIR",null,null,null,12]
[null,null,null,null,null,null,null,null,null,null,null,null,null,null,null,null,null,null,null,null,null,null,null,null,null,null,null,null,null,null,null,null,null,null,null,"TRENT SNIDE-HASELTON - N ADIR",null,null,null,12]
[null,null,null,null,null,null,null,null,null,null,null,null,null,null,null,null,null,null,null,null,null,null,null,null,null,null,null,null,null,null,null,null,null,null,null,"TREY MCGEE - N ADIR",null,null,null,12]
[null,null,null,null,null,null,null,null,null,null,null,null,null,null,null,null,null,null,null,null,null,null,null,null,null,null,null,null,null,null,null,null,null,null,null,"MATT MARLOW - N PORT",null,null,null,40]
[null,null,null,null,null,null,null,null,null,null,null,null,null,null,null,null,null,null,null,null,null,null,null,null,null,null,null,null,null,null,null,null,null,null,null,"MAVERICK BECKWITH - NORW",null,null,null,30]
[null,null,null,null,null,null,null,null,null,null,null,null,null,null,null,null,null,null,null,null,null,null,null,null,null,null,null,null,null,null,null,null,null,null,null,"YANNI DRAPANIOTIS - NORW",null,null,null,12]
[null,null,null,null,null,null,null,null,null,null,null,null,null,null,null,null,null,null,null,null,null,null,null,null,null,null,null,null,null,null,null,null,null,null,null,"SAM SZERLIP - NYACK",null,null,null,30]
[null,null,null,null,null,null,null,null,null,null,null,null,null,null,null,null,null,null,null,null,null,null,null,null,null,null,null,null,null,null,null,null,null,null,null,"THOMAS SHIELDS - ONTE",null,null,null,12]
[null,null,null,null,null,null,null,null,null,null,null,null,null,null,null,null,null,null,null,null,null,null,null,null,null,null,null,null,null,null,null,null,null,null,null,"ANTHONY LOFARO - OSSIN",null,null,null,12]
[null,null,null,null,null,null,null,null,null,null,null,null,null,null,null,null,null,null,null,null,null,null,null,null,null,null,null,null,null,null,null,null,null,null,null,"CODY QUICK - PAL MAC",null,null,null,12]
[null,null,null,null,null,null,null,null,null,null,null,null,null,null,null,null,null,null,null,null,null,null,null,null,null,null,null,null,null,null,null,null,null,null,null,"JARED HAERS - PAL MAC",null,null,null,12]
[null,null,null,null,null,null,null,null,null,null,null,null,null,null,null,null,null,null,null,null,null,null,null,null,null,null,null,null,null,null,null,null,null,null,null,"LUKE HERENDEEN - PAL MAC",null,null,null,12]
[null,null,null,null,null,null,null,null,null,null,null,null,null,null,null,null,null,null,null,null,null,null,null,null,null,null,null,null,null,null,null,null,null,null,null,"MASON JACOBELLIS - PATCH",null,null,null,12]
[null,null,null,null,null,null,null,null,null,null,null,null,null,null,null,null,null,null,null,null,null,null,null,null,null,null,null,null,null,null,null,null,null,null,null,"BRENDAN O'SULLIVAN - PEARL",null,null,null,12]
[null,null,null,null,null,null,null,null,null,null,null,null,null,null,null,null,null,null,null,null,null,null,null,null,null,null,null,null,null,null,null,null,null,null,null,"MICHAEL MALFITANO - PEARL",null,null,null,12]
[null,null,null,null,null,null,null,null,null,null,null,null,null,null,null,null,null,null,null,null,null,null,null,null,null,null,null,null,null,null,null,null,null,null,null,"NICHOLAS ESPINAL - PEARL",null,null,null,12]
[null,null,null,null,null,null,null,null,null,null,null,null,null,null,null,null,null,null,null,null,null,null,null,null,null,null,null,null,null,null,null,null,null,null,null,"HOLDEN KELLY - PERRY",null,null,null,12]
[null,null,null,null,null,null,null,null,null,null,null,null,null,null,null,null,null,null,null,null,null,null,null,null,null,null,null,null,null,null,null,null,null,null,null,"NOAH LEITTEN - PERRY",null,null,null,12]
[null,null,null,null,null,null,null,null,null,null,null,null,null,null,null,null,null,null,null,null,null,null,null,null,null,null,null,null,null,null,null,null,null,null,null,"CALEB STARKE - PERU",null,null,null,12]
[null,null,null,null,null,null,null,null,null,null,null,null,null,null,null,null,null,null,null,null,null,null,null,null,null,null,null,null,null,null,null,null,null,null,null,"BRANDEN MUNOZ - PETRIDES",null,null,null,12]
[null,null,null,null,null,null,null,null,null,null,null,null,null,null,null,null,null,null,null,null,null,null,null,null,null,null,null,null,null,null,null,null,null,null,null,"ROCKY MOLINARE - PETRIDES",null,null,null,12]
[null,null,null,null,null,null,null,null,null,null,null,null,null,null,null,null,null,null,null,null,null,null,null,null,null,null,null,null,null,null,null,null,null,null,null,"LOGAN PENNELL - PINE BUSH",null,null,null,12]
[null,null,null,null,null,null,null,null,null,null,null,null,null,null,null,null,null,null,null,null,null,null,null,null,null,null,null,null,null,null,null,null,null,null,null,"SAMSON MCKISSICK STALE - PITTS",null,null,null,18]
[null,null,null,null,null,null,null,null,null,null,null,null,null,null,null,null,null,null,null,null,null,null,null,null,null,null,null,null,null,null,null,null,null,null,null,"SHANE DOBBINS - PLAIN",null,null,null,12]
[null,null,null,null,null,null,null,null,null,null,null,null,null,null,null,null,null,null,null,null,null,null,null,null,null,null,null,null,null,null,null,null,null,null,null,"LUKE NIETO - PLAIN",null,null,null,22]
[null,null,null,null,null,null,null,null,null,null,null,null,null,null,null,null,null,null,null,null,null,null,null,null,null,null,null,null,null,null,null,null,null,null,null,"DEVIN DOWNES - PLAIN",null,null,null,12]
[null,null,null,null,null,null,null,null,null,null,null,null,null,null,null,null,null,null,null,null,null,null,null,null,null,null,null,null,null,null,null,null,null,null,null,"VINCENT PETZOLD - PLAIN",null,null,null,12]
[null,null,null,null,null,null,null,null,null,null,null,null,null,null,null,null,null,null,null,null,null,null,null,null,null,null,null,null,null,null,null,null,null,null,null,"CHASE DAVIS - PORT JEFF",null,null,null,12]
[null,null,null,null,null,null,null,null,null,null,null,null,null,null,null,null,null,null,null,null,null,null,null,null,null,null,null,null,null,null,null,null,null,null,null,"PRESTON BIEDENKAPP - PORT JEFF",null,null,null,12]
[null,null,null,null,null,null,null,null,null,null,null,null,null,null,null,null,null,null,null,null,null,null,null,null,null,null,null,null,null,null,null,null,null,null,null,"CHARLIE WYLIE - PORT JERV",null,null,null,18]
[null,null,null,null,null,null,null,null,null,null,null,null,null,null,null,null,null,null,null,null,null,null,null,null,null,null,null,null,null,null,null,null,null,null,null,"RICHARD O'LENA - PORT JERV",null,null,null,12]
[null,null,null,null,null,null,null,null,null,null,null,null,null,null,null,null,null,null,null,null,null,null,null,null,null,null,null,null,null,null,null,null,null,null,null,"MADDOX MCCORMICK - PORT JERV",null,null,null,12]
[null,null,null,null,null,null,null,null,null,null,null,null,null,null,null,null,null,null,null,null,null,null,null,null,null,null,null,null,null,null,null,null,null,null,null,"MATTHEW OOSTEROM - PORT JERV",null,null,null,26]
[null,null,null,null,null,null,null,null,null,null,null,null,null,null,null,null,null,null,null,null,null,null,null,null,null,null,null,null,null,null,null,null,null,null,null,"ESUAR ORDONEZ - PUT VALL",null,null,null,14]
[null,null,null,null,null,null,null,null,null,null,null,null,null,null,null,null,null,null,null,null,null,null,null,null,null,null,null,null,null,null,null,null,null,null,null,"LUCAS SCHELL - QUEENS",null,null,null,12]
[null,null,null,null,null,null,null,null,null,null,null,null,null,null,null,null,null,null,null,null,null,null,null,null,null,null,null,null,null,null,null,null,null,null,null,"EWAN CELESTINE - RED HOOK",null,null,null,12]
[null,null,null,null,null,null,null,null,null,null,null,null,null,null,null,null,null,null,null,null,null,null,null,null,null,null,null,null,null,null,null,null,null,null,null,"JACKSON KOPPERS - RUSH H",null,null,null,12]
[null,null,null,null,null,null,null,null,null,null,null,null,null,null,null,null,null,null,null,null,null,null,null,null,null,null,null,null,null,null,null,null,null,null,null,"JOSEPH RAFFERTY - RYE",null,null,null,12]
[null,null,null,null,null,null,null,null,null,null,null,null,null,null,null,null,null,null,null,null,null,null,null,null,null,null,null,null,null,null,null,null,null,null,null,"MIKEY TIETJEN - SACH EAST",null,null,null,12]
[null,null,null,null,null,null,null,null,null,null,null,null,null,null,null,null,null,null,null,null,null,null,null,null,null,null,null,null,null,null,null,null,null,null,null,"LUKE LEBLANC - SALEM CAM",null,null,null,12]
[null,null,null,null,null,null,null,null,null,null,null,null,null,null,null,null,null,null,null,null,null,null,null,null,null,null,null,null,null,null,null,null,null,null,null,"ALEX CLANCY - SARAN",null,null,null,16]
[null,null,null,null,null,null,null,null,null,null,null,null,null,null,null,null,null,null,null,null,null,null,null,null,null,null,null,null,null,null,null,null,null,null,null,"TAYLOR BEAURY - SARATOGA",null,null,null,16]
[null,null,null,null,null,null,null,null,null,null,null,null,null,null,null,null,null,null,null,null,null,null,null,null,null,null,null,null,null,null,null,null,null,null,null,"PAT MCKINLEY - SARATOGA",null,null,null,12]
[null,null,null,null,null,null,null,null,null,null,null,null,null,null,null,null,null,null,null,null,null,null,null,null,null,null,null,null,null,null,null,null,null,null,null,"LEO MONGIELLO - SAYVILLE",null,null,null,12]
[null,null,null,null,null,null,null,null,null,null,null,null,null,null,null,null,null,null,null,null,null,null,null,null,null,null,null,null,null,null,null,null,null,null,null,"THOMAS IASIELLO - SCARS",null,null,null,12]
[null,null,null,null,null,null,null,null,null,null,null,null,null,null,null,null,null,null,null,null,null,null,null,null,null,null,null,null,null,null,null,null,null,null,null,"DYLAN DEVINE - SCHAL",null,null,null,14]
[null,null,null,null,null,null,null,null,null,null,null,null,null,null,null,null,null,null,null,null,null,null,null,null,null,null,null,null,null,null,null,null,null,null,null,"DAVID ENSMINGER - SHEN",null,null,null,12]
[null,null,null,null,null,null,null,null,null,null,null,null,null,null,null,null,null,null,null,null,null,null,null,null,null,null,null,null,null,null,null,null,null,null,null,"LANDON ANDRADE - SHERB",null,null,null,12]
[null,null,null,null,null,null,null,null,null,null,null,null,null,null,null,null,null,null,null,null,null,null,null,null,null,null,null,null,null,null,null,null,null,null,null,"GAVIN MANGANO - SHORE",null,null,null,34]
[null,null,null,null,null,null,null,null,null,null,null,null,null,null,null,null,null,null,null,null,null,null,null,null,null,null,null,null,null,null,null,null,null,null,null,"CHRIS COLON - SHORE",null,null,null,22]
[null,null,null,null,null,null,null,null,null,null,null,null,null,null,null,null,null,null,null,null,null,null,null,null,null,null,null,null,null,null,null,null,null,null,null,"RYAN BALL - SOMERS",null,null,null,12]
[null,null,null,null,null,null,null,null,null,null,null,null,null,null,null,null,null,null,null,null,null,null,null,null,null,null,null,null,null,null,null,null,null,null,null,"BROCK FREDERICK - S JEFF",null,null,null,12]
[null,null,null,null,null,null,null,null,null,null,null,null,null,null,null,null,null,null,null,null,null,null,null,null,null,null,null,null,null,null,null,null,null,null,null,"RYLEY MONICA - S JEFF",null,null,null,12]
[null,null,null,null,null,null,null,null,null,null,null,null,null,null,null,null,null,null,null,null,null,null,null,null,null,null,null,null,null,null,null,null,null,null,null,"RYAN CIESLINSKI - SPENCE",null,null,null,14]
[null,null,null,null,null,null,null,null,null,null,null,null,null,null,null,null,null,null,null,null,null,null,null,null,null,null,null,null,null,null,null,null,null,null,null,"AUSTIN ZIMMERMAN - ST JOES",null,null,null,22]
[null,null,null,null,null,null,null,null,null,null,null,null,null,null,null,null,null,null,null,null,null,null,null,null,null,null,null,null,null,null,null,null,null,null,null,"NIKOLAS MASSARO - ST JOES",null,null,null,22]
[null,null,null,null,null,null,null,null,null,null,null,null,null,null,null,null,null,null,null,null,null,null,null,null,null,null,null,null,null,null,null,null,null,null,null,"BRETT CRAWFORD - ST ANTH",null,null,null,12]
[null,null,null,null,null,null,null,null,null,null,null,null,null,null,null,null,null,null,null,null,null,null,null,null,null,null,null,null,null,null,null,null,null,null,null,"TREVOR BISHOP - TAMAR",null,null,null,30]
[null,null,null,null,null,null,null,null,null,null,null,null,null,null,null,null,null,null,null,null,null,null,null,null,null,null,null,null,null,null,null,null,null,null,null,"LOGAN BELLIS - TIOGA",null,null,null,34]
[null,null,null,null,null,null,null,null,null,null,null,null,null,null,null,null,null,null,null,null,null,null,null,null,null,null,null,null,null,null,null,null,null,null,null,"JAYDEN  DUNCANSON - TIOGA",null,null,null,30]
[null,null,null,null,null,null,null,null,null,null,null,null,null,null,null,null,null,null,null,null,null,null,null,null,null,null,null,null,null,null,null,null,null,null,null,"GIANNI SILVESTRI - TIOGA",null,null,null,34]
[null,null,null,null,null,null,null,null,null,null,null,null,null,null,null,null,null,null,null,null,null,null,null,null,null,null,null,null,null,null,null,null,null,null,null,"DEAKON BAILEY - TIOGA",null,null,null,18]
[null,null,null,null,null,null,null,null,null,null,null,null,null,null,null,null,null,null,null,null,null,null,null,null,null,null,null,null,null,null,null,null,null,null,null,"TYLER ROE - TIOGA",null,null,null,12]
[null,null,null,null,null,null,null,null,null,null,null,null,null,null,null,null,null,null,null,null,null,null,null,null,null,null,null,null,null,null,null,null,null,null,null,"CADEN BELLIS - TIOGA",null,null,null,40]
[null,null,null,null,null,null,null,null,null,null,null,null,null,null,null,null,null,null,null,null,null,null,null,null,null,null,null,null,null,null,null,null,null,null,null,"DREW MCCUMBER - TIOGA",null,null,null,18]
[null,null,null,null,null,null,null,null,null,null,null,null,null,null,null,null,null,null,null,null,null,null,null,null,null,null,null,null,null,null,null,null,null,null,null,"OUSMANE DUNCANSON - TIOGA",null,null,null,40]
[null,null,null,null,null,null,null,null,null,null,null,null,null,null,null,null,null,null,null,null,null,null,null,null,null,null,null,null,null,null,null,null,null,null,null,"TRISTAN LEVIN - TOTTEN",null,null,null,12]
[null,null,null,null,null,null,null,null,null,null,null,null,null,null,null,null,null,null,null,null,null,null,null,null,null,null,null,null,null,null,null,null,null,null,null,"CALEB COLE - UNATEGO",null,null,null,26]
[null,null,null,null,null,null,null,null,null,null,null,null,null,null,null,null,null,null,null,null,null,null,null,null,null,null,null,null,null,null,null,null,null,null,null,"WYATT MEADE - UNATEGO",null,null,null,22]
[null,null,null,null,null,null,null,null,null,null,null,null,null,null,null,null,null,null,null,null,null,null,null,null,null,null,null,null,null,null,null,null,null,null,null,"JAYLON YEARWOOD - UE",null,null,null,12]
[null,null,null,null,null,null,null,null,null,null,null,null,null,null,null,null,null,null,null,null,null,null,null,null,null,null,null,null,null,null,null,null,null,null,null,"QYMANI VIERA-POWELL - UE",null,null,null,12]
[null,null,null,null,null,null,null,null,null,null,null,null,null,null,null,null,null,null,null,null,null,null,null,null,null,null,null,null,null,null,null,null,null,null,null,"LUKE SATRIANO - VALLEY",null,null,null,40]
[null,null,null,null,null,null,null,null,null,null,null,null,null,null,null,null,null,null,null,null,null,null,null,null,null,null,null,null,null,null,null,null,null,null,null,"RICHIE DEGON - VALLEY",null,null,null,12]
[null,null,null,null,null,null,null,null,null,null,null,null,null,null,null,null,null,null,null,null,null,null,null,null,null,null,null,null,null,null,null,null,null,null,null,"CHARLIE FOSTER - VVS",null,null,null,22]
[null,null,null,null,null,null,null,null,null,null,null,null,null,null,null,null,null,null,null,null,null,null,null,null,null,null,null,null,null,null,null,null,null,null,null,"ANTHONY CLEM - WANT",null,null,null,34]
[null,null,null,null,null,null,null,null,null,null,null,null,null,null,null,null,null,null,null,null,null,null,null,null,null,null,null,null,null,null,null,null,null,null,null,"JOSEPH CLEM - WANT",null,null,null,34]
[null,null,null,null,null,null,null,null,null,null,null,null,null,null,null,null,null,null,null,null,null,null,null,null,null,null,null,null,null,null,null,null,null,null,null,"JESSE VANORDEN - WANT",null,null,null,30]
[null,null,null,null,null,null,null,null,null,null,null,null,null,null,null,null,null,null,null,null,null,null,null,null,null,null,null,null,null,null,null,null,null,null,null,"BRADY JUDD - WARWICK",null,null,null,12]
[null,null,null,null,null,null,null,null,null,null,null,null,null,null,null,null,null,null,null,null,null,null,null,null,null,null,null,null,null,null,null,null,null,null,null,"GRIFFIN PETZOLD - WARWICK",null,null,null,12]
[null,null,null,null,null,null,null,null,null,null,null,null,null,null,null,null,null,null,null,null,null,null,null,null,null,null,null,null,null,null,null,null,null,null,null,"MATTHIAS WELLES  - WAVERLY",null,null,null,12]
[null,null,null,null,null,null,null,null,null,null,null,null,null,null,null,null,null,null,null,null,null,null,null,null,null,null,null,null,null,null,null,null,null,null,null,"KAM HILLS - WAVERLY",null,null,null,16]
[null,null,null,null,null,null,null,null,null,null,null,null,null,null,null,null,null,null,null,null,null,null,null,null,null,null,null,null,null,null,null,null,null,null,null,"TROY BEEMAN - WAVERLY",null,null,null,12]
[null,null,null,null,null,null,null,null,null,null,null,null,null,null,null,null,null,null,null,null,null,null,null,null,null,null,null,null,null,null,null,null,null,null,null,"AVERY BUSTAMANTE - WAYNE",null,null,null,12]
[null,null,null,null,null,null,null,null,null,null,null,null,null,null,null,null,null,null,null,null,null,null,null,null,null,null,null,null,null,null,null,null,null,null,null,"CONNOR GUFFEY - WEB THOM",null,null,null,12]
[null,null,null,null,null,null,null,null,null,null,null,null,null,null,null,null,null,null,null,null,null,null,null,null,null,null,null,null,null,null,null,null,null,null,null,"AUSTIN FESINGER - W GEN",null,null,null,12]
[null,null,null,null,null,null,null,null,null,null,null,null,null,null,null,null,null,null,null,null,null,null,null,null,null,null,null,null,null,null,null,null,null,null,null,"MAXX FESINGER - W GEN",null,null,null,12]
[null,null,null,null,null,null,null,null,null,null,null,null,null,null,null,null,null,null,null,null,null,null,null,null,null,null,null,null,null,null,null,null,null,null,null,"TIM BOYCE - WINDSOR",null,null,null,12]
[null,null,null,null,null,null,null,null,null,null,null,null,null,null,null,null,null,null,null,null,null,null,null,null,null,null,null,null,null,null,null,null,null,null,null,"MASON MCCOMBS - WINDSOR",null,null,null,26]
[null,null,null,null,null,null,null,null,null,null,null,null,null,null,null,null,null,null,null,null,null,null,null,null,null,null,null,null,null,null,null,null,null,null,null,"JOSEPH TORNAMBE - YORK",null,null,null,12]
[]
[]
[]
[]
[]
[]
[]
[]
[]
[]
[]
[]
[]
[]
[]
[]
[]
[]
[]
[]
[]
[]
[]
[]
[]
[]
[]
[]
[]
[]
[]
[]
[]
[]
[]
[]
[]
[]
[]
[]
[]
[]
[]
[]
[]
[]
[]
[]
[]
[]
[]
[]
[]
[]
[]
[]
[]
[]
[]
[]
[]
[]
[]
[]
[]
[]
[]
[]
[]
[]
[]
[]
[]
[]
[]
[]
[]
[]
[]
[]
[]
[]
[]
[]
[]
[]
[]
[]
[]
[]
[]
[]
[]
[]
[]
[]
[null,null,null,null,null,null,null,null,null,null,null,null,null,null,null,null,null,null,null,null,null,null,null,null,null,null,null,null,null,null,null,null,null,0]
[null,null,null,null,null,null,null,null,null,null,null,null,null,null,null,null,null,null,null,null,null,null,null,null,null,null,null,null,null,null,null,null,null,0]
[null,null,null,null,null,null,null,null,null,null,null,null,null,null,null,null,null,null,null,null,null,null,null,null,null,null,null,null,null,null,null,null,null,0]
[null,null,null,null,null,null,null,null,null,null,null,null,null,null,null,null,null,null,null,null,null,null,null,null,null,null,null,null,null,null,null,null,null,0]
[null,null,null,null,null,null,null,null,null,null,null,null,null,null,null,null,null,null,null,null,null,null,null,null,null,null,null,null,null,null,null,null,null,0]
[null,null,null,null,null,null,null,null,null,null,null,null,null,null,null,null,null,null,null,null,null,null,null,null,null,null,null,null,null,null,null,null,null,0]
[null,null,null,null,null,null,null,null,null,null,null,null,null,null,null,null,null,null,null,null,null,null,null,null,null,null,null,null,null,null,null,null,null,0]
[null,null,null,null,null,null,null,null,null,null,null,null,null,null,null,null,null,null,null,null,null,null,null,null,null,null,null,null,null,null,null,null,null,0]
[null,null,null,null,null,null,null,null,null,null,null,null,null,null,null,null,null,null,null,null,null,null,null,null,null,null,null,null,null,null,null,null,null,0]
[null,null,null,null,null,null,null,null,null,null,null,null,null,null,null,null,null,null,null,null,null,null,null,null,null,null,null,null,null,null,null,null,null,0]
[null,null,null,null,null,null,null,null,null,null,null,null,null,null,null,null,null,null,null,null,null,null,null,null,null,null,null,null,null,null,null,null,null,0]
[null,null,null,null,null,null,null,null,null,null,null,null,null,null,null,null,null,null,null,null,null,null,null,null,null,null,null,null,null,null,null,null,null,0]
[null,null,null,null,null,null,null,null,null,null,null,null,null,null,null,null,null,null,null,null,null,null,null,null,null,null,null,null,null,null,null,null,null,0]
[null,null,null,null,null,null,null,null,null,null,null,null,null,null,null,null,null,null,null,null,null,null,null,null,null,null,null,null,null,null,null,null,null,0]
[null,null,null,null,null,null,null,null,null,null,null,null,null,null,null,null,null,null,null,null,null,null,null,null,null,null,null,null,null,null,null,null,null,0]
[null,null,null,null,null,null,null,null,null,null,null,null,null,null,null,null,null,null,null,null,null,null,null,null,null,null,null,null,null,null,null,null,null,0]
[null,null,null,null,null,null,null,null,null,null,null,null,null,null,null,null,null,null,null,null,null,null,null,null,null,null,null,null,null,null,null,null,null,0]
[null,null,null,null,null,null,null,null,null,null,null,null,null,null,null,null,null,null,null,null,null,null,null,null,null,null,null,null,null,null,null,null,null,0]
[null,null,null,null,null,null,null,null,null,null,null,null,null,null,null,null,null,null,null,null,null,null,null,null,null,null,null,null,null,null,null,null,null,0]
[null,null,null,null,null,null,null,null,null,null,null,null,null,null,null,null,null,null,null,null,null,null,null,null,null,null,null,null,null,null,null,null,null,0]
[null,null,null,null,null,null,null,null,null,null,null,null,null,null,null,null,null,null,null,null,null,null,null,null,null,null,null,null,null,null,null,null,null,0]
[null,null,null,null,null,null,null,null,null,null,null,null,null,null,null,null,null,null,null,null,null,null,null,null,null,null,null,null,null,null,null,null,null,0]
[null,null,null,null,null,null,null,null,null,null,null,null,null,null,null,null,null,null,null,null,null,null,null,null,null,null,null,null,null,null,null,null,null,0]
[null,null,null,null,null,null,null,null,null,null,null,null,null,null,null,null,null,null,null,null,null,null,null,null,null,null,null,null,null,null,null,null,null,0]
[null,null,null,null,null,null,null,null,null,null,null,null,null,null,null,null,null,null,null,null,null,null,null,null,null,null,null,null,null,null,null,null,null,0]
[null,null,null,null,null,null,null,null,null,null,null,null,null,null,null,null,null,null,null,null,null,null,null,null,null,null,null,null,null,null,null,null,null,0]
[null,null,null,null,null,null,null,null,null,null,null,null,null,null,null,null,null,null,null,null,null,null,null,null,null,null,null,null,null,null,null,null,null,0]
[null,null,null,null,null,null,null,null,null,null,null,null,null,null,null,null,null,null,null,null,null,null,null,null,null,null,null,null,null,null,null,null,null,0]
[null,null,null,null,null,null,null,null,null,null,null,null,null,null,null,null,null,null,null,null,null,null,null,null,null,null,null,null,null,null,null,null,null,0]
[null,null,null,null,null,null,null,null,null,null,null,null,null,null,null,null,null,null,null,null,null,null,null,null,null,null,null,null,null,null,null,null,null,0]
[null,null,null,null,null,null,null,null,null,null,null,null,null,null,null,null,null,null,null,null,null,null,null,null,null,null,null,null,null,null,null,null,null,0]
[null,null,null,null,null,null,null,null,null,null,null,null,null,null,null,null,null,null,null,null,null,null,null,null,null,null,null,null,null,null,null,null,null,0]
[null,null,null,null,null,null,null,null,null,null,null,null,null,null,null,null,null,null,null,null,null,null,null,null,null,null,null,null,null,null,null,null,null,0]
[null,null,null,null,null,null,null,null,null,null,null,null,null,null,null,null,null,null,null,null,null,null,null,null,null,null,null,null,null,null,null,null,null,0]
[null,null,null,null,null,null,null,null,null,null,null,null,null,null,null,null,null,null,null,null,null,null,null,null,null,null,null,null,null,null,null,null,null,0]
[null,null,null,null,null,null,null,null,null,null,null,null,null,null,null,null,null,null,null,null,null,null,null,null,null,null,null,null,null,null,null,null,null,0]
[null,null,null,null,null,null,null,null,null,null,null,null,null,null,null,null,null,null,null,null,null,null,null,null,null,null,null,null,null,null,null,null,null,0]
[null,null,null,null,null,null,null,null,null,null,null,null,null,null,null,null,null,null,null,null,null,null,null,null,null,null,null,null,null,null,null,null,null,0]
[null,null,null,null,null,null,null,null,null,null,null,null,null,null,null,null,null,null,null,null,null,null,null,null,null,null,null,null,null,null,null,null,null,0]
[null,null,null,null,null,null,null,null,null,null,null,null,null,null,null,null,null,null,null,null,null,null,null,null,null,null,null,null,null,null,null,null,null,0]
[null,null,null,null,null,null,null,null,null,null,null,null,null,null,null,null,null,null,null,null,null,null,null,null,null,null,null,null,null,null,null,null,null,0]
[null,null,null,null,null,null,null,null,null,null,null,null,null,null,null,null,null,null,null,null,null,null,null,null,null,null,null,null,null,null,null,null,null,0]
[null,null,null,null,null,null,null,null,null,null,null,null,null,null,null,null,null,null,null,null,null,null,null,null,null,null,null,null,null,null,null,null,null,0]
[null,null,null,null,null,null,null,null,null,null,null,null,null,null,null,null,null,null,null,null,null,null,null,null,null,null,null,null,null,null,null,null,null,0]
[null,null,null,null,null,null,null,null,null,null,null,null,null,null,null,null,null,null,null,null,null,null,null,null,null,null,null,null,null,null,null,null,null,0]
[null,null,null,null,null,null,null,null,null,null,null,null,null,null,null,null,null,null,null,null,null,null,null,null,null,null,null,null,null,null,null,null,null,0]
[null,null,null,null,null,null,null,null,null,null,null,null,null,null,null,null,null,null,null,null,null,null,null,null,null,null,null,null,null,null,null,null,null,0]
[null,null,null,null,null,null,null,null,null,null,null,null,null,null,null,null,null,null,null,null,null,null,null,null,null,null,null,null,null,null,null,null,null,0]
[null,null,null,null,null,null,null,null,null,null,null,null,null,null,null,null,null,null,null,null,null,null,null,null,null,null,null,null,null,null,null,null,null,0]
[null,null,null,null,null,null,null,null,null,null,null,null,null,null,null,null,null,null,null,null,null,null,null,null,null,null,null,null,null,null,null,null,null,0]
[null,null,null,null,null,null,null,null,null,null,null,null,null,null,null,null,null,null,null,null,null,null,null,null,null,null,null,null,null,null,null,null,null,0]
[null,null,null,null,null,null,null,null,null,null,null,null,null,null,null,null,null,null,null,null,null,null,null,null,null,null,null,null,null,null,null,null,null,0]
[null,null,null,null,null,null,null,null,null,null,null,null,null,null,null,null,null,null,null,null,null,null,null,null,null,null,null,null,null,null,null,null,null,0]
[null,null,null,null,null,null,null,null,null,null,null,null,null,null,null,null,null,null,null,null,null,null,null,null,null,null,null,null,null,null,null,null,null,0]
[null,null,null,null,null,null,null,null,null,null,null,null,null,null,null,null,null,null,null,null,null,null,null,null,null,null,null,null,null,null,null,null,null,0]
[null,null,null,null,null,null,null,null,null,null,null,null,null,null,null,null,null,null,null,null,null,null,null,null,null,null,null,null,null,null,null,null,null,0]
[null,null,null,null,null,null,null,null,null,null,null,null,null,null,null,null,null,null,null,null,null,null,null,null,null,null,null,null,null,null,null,null,null,0]
[null,null,null,null,null,null,null,null,null,null,null,null,null,null,null,null,null,null,null,null,null,null,null,null,null,null,null,null,null,null,null,null,null,0]
[null,null,null,null,null,null,null,null,null,null,null,null,null,null,null,null,null,null,null,null,null,null,null,null,null,null,null,null,null,null,null,null,null,0]
[null,null,null,null,null,null,null,null,null,null,null,null,null,null,null,null,null,null,null,null,null,null,null,null,null,null,null,null,null,null,null,null,null,0]
[null,null,null,null,null,null,null,null,null,null,null,null,null,null,null,null,null,null,null,null,null,null,null,null,null,null,null,null,null,null,null,null,null,0]
[null,null,null,null,null,null,null,null,null,null,null,null,null,null,null,null,null,null,null,null,null,null,null,null,null,null,null,null,null,null,null,null,null,0]
[null,null,null,null,null,null,null,null,null,null,null,null,null,null,null,null,null,null,null,null,null,null,null,null,null,null,null,null,null,null,null,null,null,0]
[null,null,null,null,null,null,null,null,null,null,null,null,null,null,null,null,null,null,null,null,null,null,null,null,null,null,null,null,null,null,null,null,null,0]
[null,null,null,null,null,null,null,null,null,null,null,null,null,null,null,null,null,null,null,null,null,null,null,null,null,null,null,null,null,null,null,null,null,0]
[null,null,null,null,null,null,null,null,null,null,null,null,null,null,null,null,null,null,null,null,null,null,null,null,null,null,null,null,null,null,null,null,null,0]
[null,null,null,null,null,null,null,null,null,null,null,null,null,null,null,null,null,null,null,null,null,null,null,null,null,null,null,null,null,null,null,null,null,0]
[null,null,null,null,null,null,null,null,null,null,null,null,null,null,null,null,null,null,null,null,null,null,null,null,null,null,null,null,null,null,null,null,null,0]
[null,null,null,null,null,null,null,null,null,null,null,null,null,null,null,null,null,null,null,null,null,null,null,null,null,null,null,null,null,null,null,null,null,0]
[null,null,null,null,null,null,null,null,null,null,null,null,null,null,null,null,null,null,null,null,null,null,null,null,null,null,null,null,null,null,null,null,null,0]
[null,null,null,null,null,null,null,null,null,null,null,null,null,null,null,null,null,null,null,null,null,null,null,null,null,null,null,null,null,null,null,null,null,0]
[null,null,null,null,null,null,null,null,null,null,null,null,null,null,null,null,null,null,null,null,null,null,null,null,null,null,null,null,null,null,null,null,null,0]
[null,null,null,null,null,null,null,null,null,null,null,null,null,null,null,null,null,null,null,null,null,null,null,null,null,null,null,null,null,null,null,null,null,0]
[null,null,null,null,null,null,null,null,null,null,null,null,null,null,null,null,null,null,null,null,null,null,null,null,null,null,null,null,null,null,null,null,null,0]
[null,null,null,null,null,null,null,null,null,null,null,null,null,null,null,null,null,null,null,null,null,null,null,null,null,null,null,null,null,null,null,null,null,0]
[null,null,null,null,null,null,null,null,null,null,null,null,null,null,null,null,null,null,null,null,null,null,null,null,null,null,null,null,null,null,null,null,null,0]
[null,null,null,null,null,null,null,null,null,null,null,null,null,null,null,null,null,null,null,null,null,null,null,null,null,null,null,null,null,null,null,null,null,0]
[null,null,null,null,null,null,null,null,null,null,null,null,null,null,null,null,null,null,null,null,null,null,null,null,null,null,null,null,null,null,null,null,null,0]
[null,null,null,null,null,null,null,null,null,null,null,null,null,null,null,null,null,null,null,null,null,null,null,null,null,null,null,null,null,null,null,null,null,0]

{"sheet":"NYS Place finishers","index":1,"n_rows":239,"n_cols":7,"rows_kept":239,"cut":false,"hidden":true,"merged":[]}
["DIVISION ","WT","FIRST NAME  LAST NAME","SCHOOL","GRADE IN 2013-14","state place 2013-14","COMPETION POINTS"]
[null,null,"NO WINS OVER STATE COMPETITION"]
[2,113,"ADIRONDACK - DEREK SPANN","ADIRONDACK",10,2,30]
[2,113,"ADIRONDACK - RYAN O'ROURKE","ADIRONDACK",10,5,18]
[2,99,"AKRON - JOHNNY FIEBELKORN ","AKRON",8,null,12]
[2,99,"ALEXANDER - DANE HEBERLEIN","ALEXANDER",9,1,38]
[2,126,"AMHERST - KELLEN DEVLIN ","AMHERST",10,1,38]
[2,99,"ARDSLEY - EVAN SHLOM","ARDSLEY",11,null,12]
[2,126,"AUSABLE VALLEY - DYLAN BAKER","AUSABLE VALLEY",10,null,12]
[2,195,"AUSABLE VALLEY - KENNY RIVERS ","AUSABLE VALLEY",11,null,12]
[2,120,"BABYLON - DOM MAZZELLA","BABYLON",11,null,12]
[2,285,"BABYLON - BRETT FROLE","BABYLON",10,null,12]
[2,113,"BENJAMIN CARDOZO - STEVEN KIM","BENJAMIN CARDOZO",11,null,12]
[2,120,"BETHPAGE - JAKE EINBINDER","BETHPAGE",11,6,14]
[1,145,"BGAH - CHRIS CIRIGILIANO","BGAH",10,null,12]
[1,138,"BURNT HILLS - CHRISTIAN GRAMUGLIA","BURNT HILLS",9,null,12]
[2,106,"BURNT HILLS - JAKE ASHCRAFT","BURNT HILLS",11,null,12]
[1,99,"BYRAM HILLS - JON ERRICO","BYRAM HILLS",11,4,22]
[1,170,"BYRON BERGEN - DANNY KHOMITCH","BYRON BERGEN",11,null,12]
[1,120,"CAMDEN - GARRETT MITCHELL","CAMDEN",11,null,12]
[2,160,"CANASTOTA - NATE WALKER","CANASTOTA",11,null,12]
[2,138,"CANTON - RYAN BROWN","CANTON",10,null,12]
[2,138,"CANTON - CHAZ AGEN","CANTON",10,null,12]
[1,106,"CANTON - ALAN CLEMENT","CANTON",11,null,12]
[1,120,"CARLE PLACE - JOHN DERIDDER","CARLE PLACE",8,null,12]
[1,182,"CARTHAGE - ANDREW MCFARLAND","CARTHAGE",10,null,12]
[2,106,"CENTRAL SQUARE - BLAKE ENGEBRETSEN","CENTRAL SQUARE",11,null,12]
[1,113,"CENTRAL VALLEY ACAD - CJ WALTZ","CENTRAL VALLEY ACADEMY",9,null,12]
[1,145,"CENTRAL VALLEY ACAD - TANNER COOK","CENTRAL VALLEY ACADEMY",9,4,22]
[2,99,"CHENANGO FORKS - ALLAN MICHAEL RIOS","CHENANGO FORKS",11,null,12]
[2,106,"CICERO N. SYRACUSE - JOE BARBER","CICERO NORTH SYRACUSE",11,null,12]
[1,99,"CLARENCE - DYLAN ARENA","CLARENCE",10,null,12]
[1,160,"CLARENCE - NATE SCHWAB ","CLARENCE",11,null,12]
[1,113,"CLARENCE - RYAN BURNS","CLARENCE",11,null,12]
[1,220,"COLONIE - ISAIAH COOKS","COLONIE",11,null,12]
[1,106,"COLUMBIA - JOHN DEVINE","COLUMBIA",9,null,12]
[1,160,"COMMACK - MIKE D'ANGELO","COMMACK",11,3,26]
[1,99,"CORNWALL - QUINN ZSIDO","CORNWALL",11,6,14]
[1,113,"CORNWALL - ERIK JESSELL","CORNWALL",11,6,14]
[1,182,"CURTIS - MALIK GRANT","CURTIS",11,null,12]
[1,106,"DEER PARK - TOMMY COX","DEER PARK",10,null,12]
[1,126,"DEER PARK - DAVIS HAMIL","DEER PARK",11,5,18]
[1,170,"DEPOSIT-HANCOCK - DEAN RAYMOND","DEPOSIT-HANCOCK",10,3,26]
[1,195,"DOLGEVILLE - TRISTAN ENGLE","DOLGEVILLE",11,3,26]
[1,106,"DUANESBURG - ZACHERY LAWRENCE","DUANESBURG",7,5,18]
[1,99,"DUANESBURG - CONNOR LAWRENCE","DUANESBURG",11,2,30]
[2,106,"DUNKIRK - HECTOR COLOM ","DUNKIRK",8,5,18]
[2,113," DUNKIRK - TITO COLOM ","DUNKIRK",10,4,22]
[1,182,"EAGLE ACADEMY - VANCE CUFFE","EAGLE ACADEMY",10,null,12]
[2,99,"EAGLE ACADEMY - NATHANAEL ROSE","EAGLE ACADEMY",11,1,38]
[2,170,"EAGLE ACADEMY - MIGUEL PEREZ","EAGLE ACADEMY",11,5,18]
[2,220,"EAST AURORA - TYLER HALL ","EAST AURORA",11,null,12]
[2,99,"EAST ISLIP - JESSE DELLAVECCHIA","EAST ISLIP",11,2,30]
[2,160,"EAST ROCHESTER - HUNTER O'LENA","EAST ROCHESTER",10,null,12]
[2,106,"EAST ROCHESTER - KAYDON NEWTON","EAST ROCHESTER",11,null,12]
[2,113,"EASTPORT - ADAM BUSIELLO","EASTPORT",7,2,30]
[2,160,"EDGEMONT - KYLE ASLANIAN ","EDGEMONT",10,6,14]
[2,195,"EDGEMONT - CLIFTON WANG","EDGEMONT",9,null,12]
[2,220,"ELDRED FALLS LIB - KEVIN MORGANS","ELDRED FALLS LIBERTY",10,null,12]
[2,220,"FAIRPORT - ANTHONY BELL","FAIRPORT",11,null,12]
[1,120,"FAYETTEVILLE-MAN - TRISTAN BRODDUS","FAYETTEVILLE MANLIUS",11,null,12]
[2,106,"FORDHAM PREP - ADAM SANTORO","FORDHAM PREP",10,null,12]
[2,138,"FREDONIA - DAKOTA GARDNER","FREDONIA",10,4,22]
[2,138,"FULTON - MITCHELL WOODWORTH","FULTON",11,5,18]
[1,99,"FULTON - TRAVIS RACE","FULTON",9,null,12]
[2,106,"GALWAY - STEVEN CULBERT","GALWAY",11,null,12]
[2,138,"GATES-CHILI - DEREK ST JAMES","GATES CHILI",10,null,12]
[2,182,"GOUVERNEUR - DANIEL MULLIN","GOUVERNEUR",10,null,12]
[1,152,"GOUVERNEUR - JOEY BUSH","GOUVERNEUR",10,null,12]
[1,145,"GOUVERNEUR - AARON BUSH","GOUVERNEUR",11,null,12]
[1,132,"GOUVERNEUR - JUSTIN GARRISON","GOUVERNEUR",11,null,12]
[2,138,"GOUVERNEUR - AARON MCEATHRON","GOUVERNEUR",11,null,12]
[1,120,"GOUVERNEUR - JACOB BECKWITH","GOUVERNEUR",10,null,12]
[1,160,"GRAND STREET - SHANE LEGUILLOW","GRAND STREET CAMPUS",11,null,12]
[2,145,"GREENE - CHRISTIAN DIETRICH","GREENE",10,1,38]
[1,99,"HADLEY LUZERNE - JASON HOFFMAN","HADLEY LUZERNE/LAKE GEORGE",9,4,22]
[2,120,"HAUPPAGE - CHRIS MAURIELLO","HAUPPAUGE",10,1,38]
[2,126,"HEWLETT - OWEN BACHELDER ","HEWLETT",10,null,12]
[2,132,"HIGHLAND - MIKE FELICIANO","HIGHLAND",11,null,12]
[2,182,"HIGHLAND - ANDREW SULEIMAN","HIGHLAND",11,null,12]
[2,195,"HIGHLAND - THEODORE MAPES","HIGHLAND",11,null,12]
[2,220,"HILTON - YIANNI DIAKOMIHALIS","HILTON",9,1,38]
[1,113,"HILTON - LOUIE DEPREZ","HILTON",9,4,22]
[2,182,"HOLLAND PATENT - HUNTER RICHARD","HOLLAND PATENT",9,3,26]
[2,145,"HOLLAND PATENT - ALEX HERRINGSHAW","HOLLAND PATENT",10,1,38]
[1,132,"HOOSICK FALLS - NOLAN FOSTER","HOOSICK FALLS",10,null,12]
[1,132,"HUDSON FALLS - GENO BRANCATI","HUDSON FALLS",11,6,14]
[2,106,"HUNTINGTON - JOHN ARCERI","HUNTINGTON",10,null,12]
[2,132,"INDIAN RIVER - NICHOLAS TOUTANT","INDIAN RIVER",11,null,12]
[2,170,"INDIAN RIVER - SONNY MCPHERSON","INDIAN RIVER",10,null,12]
[1,120,"IROQUOIS - TRISTAN ALMETER ","IROQUOIS",10,null,12]
[1,106,"ISLIP - BRAD WADE ","ISLIP",11,3,26]
[1,138,"ITHACA - RICHIE BURKE ","ITHACA",11,4,22]
[1,152,"JAMESTOWN - DYLAN LUNDMARK ","JAMESTOWN",11,null,12]
[2,126,"JOHN GLENN - MATT PORELLO","JOHN GLENN",11,null,12]
[2,145,"JOHN GLENN - EDWIN RUBIO","JOHN GLENN",10,null,12]
[2,113,"JOHN JAY EAST - JAY ALBIS","JOHN JAY EAST FISHKILL",11,4,22]
[2,170,"JOHNSON CITY - ISAIAH COLGAN","JOHNSON CITY",10,null,12]
[1,113,"KELLENBERRG - JASON JAVIER","KELLENBERG MEMORIAL",10,null,12]
[1,113,"KENMORE WEST - ANTHONY ARGENTIERI ","KENMORE WEST",10,null,12]
[1,126,"LAWRENCE - HAMZA RAMZA","LAWRENCE",11,null,12]
[1,170,"LEVITTOWN - RICKY STAMM","LEVITTOWN DIVISION",10,null,12]
[2,145,"LEWISTON PORTER - ANDREW SHOMERS","LEWISTON PORTER",11,2,30]
[1,126,"LOKCPORT - ANTHONY OREFICE ","LOCKPORT",11,null,12]
[1,145,"LOCKPORT - KIRK FEENEY ","LOCKPORT",11,null,12]
[1,120,"LOCUST VALLEY - JONATHAN GOMEZ","LOCUST VALLEY",9,2,30]
[1,132,"LOCUST VALLEY - HUNTER DUSOLD","LOCUST VALLEY",9,1,38]
[1,126,"LOCUST VALLEY - NICK CASELLA","LOCUST VALLEY",11,5,18]
[1,152,"LOCUST VALLEY - SAM WARD","LOCUST VALLEY",11,3,26]
[1,160,"LOCUST VALLEY - MIKE DUSOLD","LOCUST VALLEY",11,null,12]
[1,285,"LOCUST VALLEY - SPENCER MATTAEI","LOCUST VALLEY",10,null,12]
[1,113,"LONG BEACH - JACORI TEEMER","LONG BEACH",8,1,38]
[1,120,"LYNDONVILLE - ANTHONY RECCO","LYNDONVILLE",11,3,26]
[1,106,"MAINE ENDWELL - KOBE GARREHY","MAINE ENDWELL",10,null,12]
[1,113,"MALONE - CAMERON SEARLES","MALONE",10,null,12]
[1,195,"MAMARONECK - YOUSSIF HEMIDA","MAMARONECK",11,null,12]
[2,120,"MAPLE GROVE - BRADLEY BIHLER ","MAPLE GROVE",10,4,22]
[2,152,"MAPLE GROVE - BRIAN WESTERDAHL ","MAPLE GROVE",11,null,12]
[2,160,"MAPLE GROVE - HOWIE NOLAN ","MAPLE GROVE",11,6,14]
[1,126,"MASSENA - BRIAN PLOURDE","MASSENA",10,null,12]
[2,145,"MASSENA - MICHAEL BROWN","MASSENA",9,null,12]
[1,126,"MASSENA - ALEC DENNY","MASSENA",9,null,12]
[1,145,"MASSENA - GAVIN PERRINE","MASSENA",8,null,12]
[2,99,"MASSENA - AUSTIN AMO","MASSENA",10,null,12]
[2,113,"MASSENA - HUNTER PERRINE","MASSENA",10,null,12]
[2,120,"MASSENA - NOLAN TERRANCE","MASSENA",11,null,12]
[2,138,"MATTITUCK - JACK BOKINA","MATTITUCK",8,null,12]
[2,145,"MATTITUCK - JAMES HOEG","MATTITUCK",9,null,12]
[2,285,"MATTITUCK - ADAM GOODE","MATTITUCK",11,null,12]
[1,99,"MEXICO - THEO POWERS","MEXICO",10,3,26]
[2,113,"MEXICO - AUSTIN WHITNEY","MEXICO",11,null,12]
[2,126,"MEXICO - TREVOR ALLARD","MEXICO",11,1,38]
[2,106,"MEXICO - JACOB WOOLSON","MEXICO",11,4,22]
[1,220,"MIDLAKES - HAMMOND RAES","MIDLAKES",9,null,12]
[2,120,"MIDLAKES - DERIAN WOODARD","MIDLAKES",11,null,12]
[2,152,"MINEOLA - PETER MCCORMICK","MINEOLA",11,null,12]
[2,160,"MINEOLA - EDIEN HINCAPIE","MINEOLA",11,null,12]
[1,99,"MINISINK VALLEY - GERARD DALY","MINISINK VALLEY",11,null,12]
[1,126,"MINISINK VALLEY - CHRIS TRUGLIO","MINISINK VALLEY",11,null,12]
[1,132,"MINISINK VALLEY - MICHAEL RACCIOPPI","MINISINK VALLEY",11,null,12]
[1,138,"MONROE WOODBURY - VINNY VESPA","MONROE WOODBURY",11,3,26]
[1,145,"MONRIE WOODBURY - EVAN BARCZAK","MONROE WOODBURY",9,null,12]
[1,160,"MONROE WOODBURY - NICK MCSHEA","MONROE WOODBURY",10,null,12]
[1,285,"MONSIGNOR FARRELL - KARL WIESNER","MONSIGNOR FARRELL",11,null,12]
[2,99,"MONSIGNOR FARRELL - MICHAEL NEWMAN","MONSIGNOR FARRELL",11,null,12]
[2,145,"MORRISVILLE EATON - ZACH BURKE","MORRISVILLE EATON",10,null,12]
[2,195,"MOUNT SAINT MICHAEL - ADDRIAN FERRARIE","MOUNT SAINT MICHAEL",11,null,12]
[2,106,"NEW HARTFORD - KELLAN MCKENNA","NEW HARTFORD",10,3,26]
[2,132,"NEW HARTFORD - DEMPSEY KING","NEW HARTFORD",11,null,12]
[2,160,"NEW PALTZ - KARL LINNEMAN","NEW PALTZ",11,null,12]
[2,170,"NEWARK VALLEY - BENNIE BAKER","NEWARK VALLEY",7,6,14]
[2,106,"NEWARK VALLEY - VINNIE DARPINO","NEWARK VALLEY",11,null,12]
[2,138,"NEWBURGH - DA'MANI BURNS","NEWBURGH",11,5,18]
[1,106,"NIAGARA FALLS - JEMONE CARTER","NIAGARA FALLS",11,6,14]
[1,120,"NIAGARA FALLS - DONNY MCCOY ","NIAGARA FALLS",11,null,12]
[2,132,"NORTH BABYLON - ANTHONY SPARACIO","NORTH BABYLON",10,4,22]
[2,195,"NORTH ROCKLAND - ALEX D'ANGELO","NORTH ROCKLAND",11,null,12]
[1,113,"NORTH ROCKLAND - BLAISE BENDEROTH","NORTH ROCKLAND",11,3,26]
[1,106,"NORTH TONAWANDA - TROY KELLER ","NORTH TONAWANDA",10,null,12]
[1,132,"N. ADIRONDACK - AUSTIN TROMBLEY","NORTHERN ADIRONDACK",9," ",12]
[1,138,"NORWICH - TRISTAN RIFANBURG","NORWICH",11,1,38]
[1,106,"NORWICH - FRANK GARCIA","NORWICH",11,1,38]
[1,120,"ODESSA MONTOUR - JOE RORICK","ODESSA MONTOUR",11,null,12]
[1,182,"OGDENSBURG - CORDELL DAVID","OGDENSBURG",8,null,12]
[1,145,"OGDENSBURG - TANNER LAPIENE","OGDENSBURG",9,null,12]
[1,195,"OGDENSBURG - BAILEY PHELPS","OGDENSBURG",11,null,12]
[2,120,"ONONDAGA - TYLER FIELD","ONONDAGA",11,null,12]
[1,152,"PAL MAC - ADAM WEST","PAL MAC",10,null,12]
[1,99,"PENFIELD - PARKER KROPMAN","PENFIELD",10,4,22]
[1,126,"PENFIELD - FRANKIE GISSENDANNER","PENFIELD",8,4,22]
[2,145,"PERU - COLIN HOGAN","PERU",9,null,12]
[1,99,"PERU - JORDAN BUSHEY","PERU",11,5,18]
[1,170,"PETRIDES - KEVIN VELEZ","PETRIDES",9,null,12]
[1,126,"PETRIDES - KEVIN MCCOLGAN","PETRIDES",9,null,12]
[1,106,"PETRIDES - JOE DIFORTE","PETRIDES",9,null,12]
[1,120,"PETRIDES - ROBERT WEIGOSS","PETRIDES",10,null,12]
[1,99,"PHOENIX - WILLIAM HILLIARD","PHOENIX",10,5,18]
[1,106,"PINE BUSH - ANTHONY STRAMIELLO","PINE BUSH",10,null,12]
[1,152,"PLAINVIEW JFK - PETER PAPPAS","PLAINVIEW JFK",9,2,30]
[1,106,"PORT BYRON - CHRIS PINCKNEY","PORT BRYON",11,6,14]
[2,132,"PORT JEFFERSON - MATTEO DEVINCENZO","PORT JEFFERSON",10,1,38]
[2,138,"PORT JEFFERSON - TRISTIN DEVINCENZO","PORT JEFFERSON",11,5,18]
[2,152,"PUTNAM VALLEY - MIKEY BRUNO","PUTNAM VALLEY",8,null,12]
[2,120,"PUTNAM VALLEY - WILLIE MESSINGER","PUTNAM VALLEY",11,null,12]
[2,99,"RED HOOK - TAYLOR BENSON","RED HOOK",9,null,12]
[2,113,"RED JACKET - ANDREW OGRODOWSKI","RED JACKET",11,null,12]
[2,152,"ROCKY POINT - TOMMY DUTTON","ROCKY POINT",11,5,18]
[2,132,"SACHEM EAST - JAKOB RESTREPO","SACHEM EAST",11,2,30]
[2,113,"SAHEM EAST - SEAN DEE","SACHEM EAST",11,null,12]
[1,106,"SARANAC - JACOB NOLAN","SARANAC",7,6,14]
[1,132,"SARANAC - JOHN DEVINS","SARANAC",8,null,12]
[2,113,"SARANAC - RAFAEL RIVERA","SARANAC",10,null,12]
[2,160,"SARANAC - COLBY STALEY","SARANAC",10,null,12]
[2,99,"SARANAC - PAUL HERREA","SARANAC",11,null,12]
[2,106,"SARATOGA - DOMINIC INZANA","SARATOGA",11,6,14]
[2,120,"SCHALMONT - NICK GALLO","SCHALMONT",11,4,22]
[2,145,"SCHUYLERVILLE - ANTHONY CARDINUTO","SCHUYLERVILLE",10,null,12]
[2,182,"SHENENDEHOWA - KEVIN PARKER","SHENENDEHOWA",10," ",12]
[1,99,"SHENENDEHOWA - JESSE PORTER","SHENENDEHOWA",11,4,22]
[1,106,"SHERBURNE EARLVILLE - GARRETT DUVALL","SHERBURNE EARLVILLE",11,3,26]
[2,182,"SIDNEY - AUSTIN DEAN","SIDNEY",11,6,14]
[2,106,"SMITHTOWN WEST - LANTZE LANGE","SMITHTOWN WEST",11,null,12]
[2,126,"SOUTH JEFFERSON - TREY LAFLAMME","SOUTH JEFFERSON",9," ",12]
[2,99,"SOUTHWESTERN - SHANE HETRICK","SOUTHWESTERN",8," ",12]
[2,113,"SOUTHWESTERN - RYAN HETRICK","SOUTHWESTERN",10,6,14]
[2,170,"ST. ANTHONY'S - BRIAN KELLY","ST ANTHONYS",9," ",12]
[2,113,"ST. ANTHONY'S - BENJAMIN LAMANTIA","ST ANTHONYS",11,3,26]
[2,195,"ST. ANTHONY'S - PETER CORBETT","ST ANTHONYS",11,null,12]
[1,145,"ST. JOSEPH'S COLL. - RICHIE JONES","ST JOSEPH COLLEGIATE",11," ",12]
[1,145,"SYOSSET - VITO ARUJAU","SYOSSET",9,1,38]
[1,285,"TIOGA - JESSE MANUEL","TIOGA",10," ",12]
[2,132,"TONAWANDA - CODY MCGREGOR","TONAWANDA",11,4,22]
[2,99,"TOTTENVILLE - JOE MARINO","TOTTENVILLE",11,null,12]
[2,106,"TUXEDO - DEAN ARTRIP","TUXEDO",9," ",12]
[2,126,"UNATEGO - RYAN MARSZAL","UNATEGO",11,2,30]
[2,170,"VERNON VERONA SH. - SIMON BRECKINRIDGE","VERNON VERONA SHERRILL",11,5,18]
[2,220,"VESTAL - DEREK OSMAN","VESTAL",9,null,12]
[1,120,"VICTOR - KEVIN MARCANO","VICTOR",11," ",12]
[2,182,"WALT WHITMAN - VIN FEOLA","WALT WHITMAN",11,2,30]
[2,106,"WALTON - LOGAN ROBINSON","WALTON",11,null,12]
[1,138,"WANTAUGH - JONATHAN LOWE","WANTAGH",8," ",12]
[1,152,"WANTAUGH - KYLE QUINN","WANTAGH",11,2,30]
[2,220,"WARD MELVILLE - NICK PICCININNI","WARD MELVILLE",11,1,38]
[2,285,"WARSAW - DYLAN WALKER","WARSAW",9," ",12]
[1,195,"WARSAW - COLIN ROYCE","WARSAW",11,6,14]
[2,99,"WARSAW - COREY FARRELL","WARSAW",11,6,14]
[2,99,"WARSAW - JOSH GRIFFIN","WARSAW",11,null,12]
[2,113,"WARWICK VALLEY - THOMAS WIGHTMAN","WARWICK VALLEY",11,null,12]
[1,99,"WARWICK VALLEY - RYAN FERRO","WARWICK VALLEY",9,null,12]
[1,120,"WATERLOO - JORDAN HAMILTON","WATERLOO",11,null,12]
[1,285,"WATKINS GLEN - BRANDON GOULD","WATKINS GLEN",10,null,12]
[1,170,"WATKINS GLEN - IAN CHEDZOY","WATKINS GLEN",9," ",12]
[1,113,"WAYNE - JOE SLIWOSKI","WAYNE",10,4,22]
[2,132,"WAYNE - LUKE YANKLOSKI","WAYNE",11,2,30]
[2,132,"WEBSTER SHROEDER - JOE LUPISELLA","WEBSTER SCHROEDER",11,null,12]
[1,99,"WESTBURY - RAECO JACKSON","WESTBURY",11,null,12]
[2,99,"WHITESBORO - TYLER HUDSON","WHITESBORO",11,null,12]
[2,170,"WHITNEY POINT - JORDAN TORBITT","WHITNEY POINT",10,null,12]
[2,152,"WILLIAM FLOYD - RYAN GERENA","WILLIAM FLOYD",11,null,12]

{"sheet":"ROSTER REVIEW","index":2,"n_rows":28,"n_cols":17,"rows_kept":28,"cut":false,"hidden":false,"merged":[]}
[]
[]
[]
[null,null,"WT.","WRESTLER","GR",null,"RECORD",null,null,null,"PFR","PP","SCP","NCP","CPP","CBP","TOTAL"]
[1,{"$f":"'COACHES WORKSHEET'!C1","v":"Enter School Here"},{"$f":"IF('COACHES WORKSHEET'!B3=0,\"\",'COACHES WORKSHEET'!B3)","v":""},{"$f":"IF('COACHES WORKSHEET'!C3=0,\"\",'COACHES WORKSHEET'!C3)","v":""},{"$f":"IF('COACHES WORKSHEET'!D3=0,\"\",'COACHES WORKSHEET'!D3)","v":""},null,{"$f":"'COACHES WORKSHEET'!E3","v":0},"-",{"$f":"'COACHES WORKSHEET'!F3","v":0},null,{"$f":"'COACHES WORKSHEET'!G3","v":"0"},{"$f":"'COACHES WORKSHEET'!I3","v":0},{"$f":"SUM('COACHES WORKSHEET'!K3:K10)","v":0},{"$f":"SUM('COACHES WORKSHEET'!M3:M6)","v":0},{"$f":"'COACHES WORKSHEET'!N3","v":0},{"$f":"'COACHES WORKSHEET'!O3","v":0},{"$f":"IFERROR('COACHES WORKSHEET'!P3,\"\")","v":0}]
[2,{"$f":"'COACHES WORKSHEET'!C1","v":"Enter School Here"},{"$f":"IF('COACHES WORKSHEET'!B12=0,\"\",'COACHES WORKSHEET'!B12)","v":""},{"$f":"IF('COACHES WORKSHEET'!C12=0,\"\",'COACHES WORKSHEET'!C12)","v":""},{"$f":"IF('COACHES WORKSHEET'!D12=0,\"\",'COACHES WORKSHEET'!D12)","v":""},null,{"$f":"'COACHES WORKSHEET'!E12","v":0},"-",{"$f":"'COACHES WORKSHEET'!F12","v":0},null,{"$f":"'COACHES WORKSHEET'!G12","v":"0"},{"$f":"'COACHES WORKSHEET'!I12","v":0},{"$f":"SUM('COACHES WORKSHEET'!K12:K19)","v":0},{"$f":"SUM('COACHES WORKSHEET'!M12:M15)","v":0},{"$f":"'COACHES WORKSHEET'!N12","v":0},{"$f":"'COACHES WORKSHEET'!O12","v":0},{"$f":"IFERROR('COACHES WORKSHEET'!P12,\"\")","v":0}]
[3,{"$f":"'COACHES WORKSHEET'!C1","v":"Enter School Here"},{"$f":"IF('COACHES WORKSHEET'!B21=0,\"\",'COACHES WORKSHEET'!B21)","v":""},{"$f":"IF('COACHES WORKSHEET'!C21=0,\"\",'COACHES WORKSHEET'!C21)","v":""},{"$f":"IF('COACHES WORKSHEET'!D21=0,\"\",'COACHES WORKSHEET'!D21)","v":""},null,{"$f":"'COACHES WORKSHEET'!E21","v":0},"-",{"$f":"'COACHES WORKSHEET'!F21","v":0},null,{"$f":"'COACHES WORKSHEET'!G21","v":"0"},{"$f":"'COACHES WORKSHEET'!I21","v":0},{"$f":"SUM('COACHES WORKSHEET'!K21:K28)","v":0},{"$f":"SUM('COACHES WORKSHEET'!M21:M24)","v":0},{"$f":"'COACHES WORKSHEET'!N21","v":0},{"$f":"'COACHES WORKSHEET'!O21","v":0},{"$f":"IFERROR('COACHES WORKSHEET'!P21,\"\")","v":0}]
[4,{"$f":"'COACHES WORKSHEET'!C1","v":"Enter School Here"},{"$f":"IF('COACHES WORKSHEET'!B30=0,\"\",'COACHES WORKSHEET'!B30)","v":""},{"$f":"IF('COACHES WORKSHEET'!C30=0,\"\",'COACHES WORKSHEET'!C30)","v":""},{"$f":"IF('COACHES WORKSHEET'!D30=0,\"\",'COACHES WORKSHEET'!D30)","v":""},null,{"$f":"'COACHES WORKSHEET'!E30","v":0},"-",{"$f":"'COACHES WORKSHEET'!F30","v":0},null,{"$f":"'COACHES WORKSHEET'!G30","v":"0"},{"$f":"'COACHES WORKSHEET'!I30","v":0},{"$f":"SUM('COACHES WORKSHEET'!K30:K37)","v":0},{"$f":"SUM('COACHES WORKSHEET'!M30:M33)","v":0},{"$f":"'COACHES WORKSHEET'!N30","v":0},{"$f":"'COACHES WORKSHEET'!O30","v":0},{"$f":"IFERROR('COACHES WORKSHEET'!P30,\"\")","v":0}]
[5,{"$f":"'COACHES WORKSHEET'!C1","v":"Enter School Here"},{"$f":"IF('COACHES WORKSHEET'!B39=0,\"\",'COACHES WORKSHEET'!B39)","v":""},{"$f":"IF('COACHES WORKSHEET'!C39=0,\"\",'COACHES WORKSHEET'!C39)","v":""},{"$f":"IF('COACHES WORKSHEET'!D39=0,\"\",'COACHES WORKSHEET'!D39)","v":""},null,{"$f":"'COACHES WORKSHEET'!E39","v":0},"-",{"$f":"'COACHES WORKSHEET'!F39","v":0},null,{"$f":"'COACHES WORKSHEET'!G39","v":"0"},{"$f":"'COACHES WORKSHEET'!I39","v":0},{"$f":"SUM('COACHES WORKSHEET'!K39:K46)","v":0},{"$f":"SUM('COACHES WORKSHEET'!M39:M42)","v":0},{"$f":"'COACHES WORKSHEET'!N39","v":0},{"$f":"'COACHES WORKSHEET'!O39","v":0},{"$f":"IFERROR('COACHES WORKSHEET'!P39,\"\")","v":0}]
[6,{"$f":"'COACHES WORKSHEET'!C1","v":"Enter School Here"},{"$f":"IF('COACHES WORKSHEET'!B48=0,\"\",'COACHES WORKSHEET'!B48)","v":""},{"$f":"IF('COACHES WORKSHEET'!C48=0,\"\",'COACHES WORKSHEET'!C48)","v":""},{"$f":"IF('COACHES WORKSHEET'!D48=0,\"\",'COACHES WORKSHEET'!D48)","v":""},null,{"$f":"'COACHES WORKSHEET'!E48","v":0},"-",{"$f":"'COACHES WORKSHEET'!F48","v":0},null,{"$f":"'COACHES WORKSHEET'!G48","v":"0"},{"$f":"'COACHES WORKSHEET'!I48","v":0},{"$f":"SUM('COACHES WORKSHEET'!K48:K55)","v":0},{"$f":"SUM('COACHES WORKSHEET'!M48:M51)","v":0},{"$f":"'COACHES WORKSHEET'!N48","v":0},{"$f":"'COACHES WORKSHEET'!O48","v":0},{"$f":"IFERROR('COACHES WORKSHEET'!P48,\"\")","v":0}]
[7,{"$f":"'COACHES WORKSHEET'!C1","v":"Enter School Here"},{"$f":"IF('COACHES WORKSHEET'!B57=0,\"\",'COACHES WORKSHEET'!B57)","v":""},{"$f":"IF('COACHES WORKSHEET'!C57=0,\"\",'COACHES WORKSHEET'!C57)","v":""},{"$f":"IF('COACHES WORKSHEET'!D57=0,\"\",'COACHES WORKSHEET'!D57)","v":""},null,{"$f":"'COACHES WORKSHEET'!E57","v":0},"-",{"$f":"'COACHES WORKSHEET'!F57","v":0},null,{"$f":"'COACHES WORKSHEET'!G57","v":"0"},{"$f":"'COACHES WORKSHEET'!I57","v":0},{"$f":"SUM('COACHES WORKSHEET'!K57:K64)","v":0},{"$f":"SUM('COACHES WORKSHEET'!M57:M60)","v":0},{"$f":"'COACHES WORKSHEET'!N57","v":0},{"$f":"'COACHES WORKSHEET'!O57","v":0},{"$f":"IFERROR('COACHES WORKSHEET'!P57,\"\")","v":0}]
[8,{"$f":"'COACHES WORKSHEET'!C1","v":"Enter School Here"},{"$f":"IF('COACHES WORKSHEET'!B66=0,\"\",'COACHES WORKSHEET'!B66)","v":""},{"$f":"IF('COACHES WORKSHEET'!C66=0,\"\",'COACHES WORKSHEET'!C66)","v":""},{"$f":"IF('COACHES WORKSHEET'!D66=0,\"\",'COACHES WORKSHEET'!D66)","v":""},null,{"$f":"'COACHES WORKSHEET'!E66","v":0},"-",{"$f":"'COACHES WORKSHEET'!F66","v":0},null,{"$f":"'COACHES WORKSHEET'!G66","v":"0"},{"$f":"'COACHES WORKSHEET'!I66","v":0},{"$f":"SUM('COACHES WORKSHEET'!K66:K73)","v":0},{"$f":"SUM('COACHES WORKSHEET'!M66:M69)","v":0},{"$f":"'COACHES WORKSHEET'!N66","v":0},{"$f":"'COACHES WORKSHEET'!O66","v":0},{"$f":"IFERROR('COACHES WORKSHEET'!P66,\"\")","v":0}]
[9,{"$f":"'COACHES WORKSHEET'!C1","v":"Enter School Here"},{"$f":"IF('COACHES WORKSHEET'!B75=0,\"\",'COACHES WORKSHEET'!B75)","v":""},{"$f":"IF('COACHES WORKSHEET'!C75=0,\"\",'COACHES WORKSHEET'!C75)","v":""},{"$f":"IF('COACHES WORKSHEET'!D75=0,\"\",'COACHES WORKSHEET'!D75)","v":""},null,{"$f":"'COACHES WORKSHEET'!E75","v":0},"-",{"$f":"'COACHES WORKSHEET'!F75","v":0},null,{"$f":"'COACHES WORKSHEET'!G75","v":"0"},{"$f":"'COACHES WORKSHEET'!I75","v":0},{"$f":"SUM('COACHES WORKSHEET'!K75:K82)","v":0},{"$f":"SUM('COACHES WORKSHEET'!M75:M78)","v":0},{"$f":"'COACHES WORKSHEET'!N75","v":0},{"$f":"'COACHES WORKSHEET'!O75","v":0},{"$f":"IFERROR('COACHES WORKSHEET'!P75,\"\")","v":0}]
[10,{"$f":"'COACHES WORKSHEET'!C1","v":"Enter School Here"},{"$f":"IF('COACHES WORKSHEET'!B84=0,\"\",'COACHES WORKSHEET'!B84)","v":""},{"$f":"IF('COACHES WORKSHEET'!C84=0,\"\",'COACHES WORKSHEET'!C84)","v":""},{"$f":"IF('COACHES WORKSHEET'!D84=0,\"\",'COACHES WORKSHEET'!D84)","v":""},null,{"$f":"'COACHES WORKSHEET'!E84","v":0},"-",{"$f":"'COACHES WORKSHEET'!F84","v":0},null,{"$f":"'COACHES WORKSHEET'!G84","v":"0"},{"$f":"'COACHES WORKSHEET'!I84","v":0},{"$f":"SUM('COACHES WORKSHEET'!K84:K91)","v":0},{"$f":"SUM('COACHES WORKSHEET'!M84:M87)","v":0},{"$f":"'COACHES WORKSHEET'!N84","v":0},{"$f":"'COACHES WORKSHEET'!O84","v":0},{"$f":"IFERROR('COACHES WORKSHEET'!P84,\"\")","v":0}]
[11,{"$f":"'COACHES WORKSHEET'!C1","v":"Enter School Here"},{"$f":"IF('COACHES WORKSHEET'!B93=0,\"\",'COACHES WORKSHEET'!B93)","v":""},{"$f":"IF('COACHES WORKSHEET'!C93=0,\"\",'COACHES WORKSHEET'!C93)","v":""},{"$f":"IF('COACHES WORKSHEET'!D93=0,\"\",'COACHES WORKSHEET'!D93)","v":""},null,{"$f":"'COACHES WORKSHEET'!E93","v":0},"-",{"$f":"'COACHES WORKSHEET'!F93","v":0},null,{"$f":"'COACHES WORKSHEET'!G93","v":"0"},{"$f":"'COACHES WORKSHEET'!I93","v":0},{"$f":"SUM('COACHES WORKSHEET'!K93:K100)","v":0},{"$f":"SUM('COACHES WORKSHEET'!M93:M96)","v":0},{"$f":"'COACHES WORKSHEET'!N93","v":0},{"$f":"'COACHES WORKSHEET'!O93","v":0},{"$f":"IFERROR('COACHES WORKSHEET'!P93,\"\")","v":0}]
[12,{"$f":"'COACHES WORKSHEET'!C1","v":"Enter School Here"},{"$f":"IF('COACHES WORKSHEET'!B102=0,\"\",'COACHES WORKSHEET'!B102)","v":""},{"$f":"IF('COACHES WORKSHEET'!C102=0,\"\",'COACHES WORKSHEET'!C102)","v":""},{"$f":"IF('COACHES WORKSHEET'!D102=0,\"\",'COACHES WORKSHEET'!D102)","v":""},null,{"$f":"'COACHES WORKSHEET'!E102","v":0},"-",{"$f":"'COACHES WORKSHEET'!F102","v":0},null,{"$f":"'COACHES WORKSHEET'!G102","v":"0"},{"$f":"'COACHES WORKSHEET'!I102","v":0},{"$f":"SUM('COACHES WORKSHEET'!K102:K109)","v":0},{"$f":"SUM('COACHES WORKSHEET'!M102:M105)","v":0},{"$f":"'COACHES WORKSHEET'!N102","v":0},{"$f":"'COACHES WORKSHEET'!O102","v":0},{"$f":"IFERROR('COACHES WORKSHEET'!P102,\"\")","v":0}]
[13,{"$f":"'COACHES WORKSHEET'!C1","v":"Enter School Here"},{"$f":"IF('COACHES WORKSHEET'!B111=0,\"\",'COACHES WORKSHEET'!B111)","v":""},{"$f":"IF('COACHES WORKSHEET'!C111=0,\"\",'COACHES WORKSHEET'!C111)","v":""},{"$f":"IF('COACHES WORKSHEET'!D111=0,\"\",'COACHES WORKSHEET'!D111)","v":""},null,{"$f":"'COACHES WORKSHEET'!E111","v":0},"-",{"$f":"'COACHES WORKSHEET'!F111","v":0},null,{"$f":"'COACHES WORKSHEET'!G111","v":"0"},{"$f":"'COACHES WORKSHEET'!I111","v":0},{"$f":"SUM('COACHES WORKSHEET'!K111:K118)","v":0},{"$f":"SUM('COACHES WORKSHEET'!M111:M114)","v":0},{"$f":"'COACHES WORKSHEET'!N111","v":0},{"$f":"'COACHES WORKSHEET'!O111","v":0},{"$f":"IFERROR('COACHES WORKSHEET'!P111,\"\")","v":0}]
[14,{"$f":"'COACHES WORKSHEET'!C1","v":"Enter School Here"},{"$f":"IF('COACHES WORKSHEET'!B120=0,\"\",'COACHES WORKSHEET'!B120)","v":""},{"$f":"IF('COACHES WORKSHEET'!C120=0,\"\",'COACHES WORKSHEET'!C120)","v":""},{"$f":"IF('COACHES WORKSHEET'!D120=0,\"\",'COACHES WORKSHEET'!D120)","v":""},null,{"$f":"'COACHES WORKSHEET'!E120","v":0},"-",{"$f":"'COACHES WORKSHEET'!F120","v":0},null,{"$f":"'COACHES WORKSHEET'!G120","v":"0"},{"$f":"'COACHES WORKSHEET'!I120","v":0},{"$f":"SUM('COACHES WORKSHEET'!K120:K127)","v":0},{"$f":"SUM('COACHES WORKSHEET'!M120:M123)","v":0},{"$f":"'COACHES WORKSHEET'!N120","v":0},{"$f":"'COACHES WORKSHEET'!O120","v":0},{"$f":"IFERROR('COACHES WORKSHEET'!P120,\"\")","v":0}]
[15,{"$f":"'COACHES WORKSHEET'!C1","v":"Enter School Here"},{"$f":"IF('COACHES WORKSHEET'!B129=0,\"\",'COACHES WORKSHEET'!B129)","v":""},{"$f":"IF('COACHES WORKSHEET'!C129=0,\"\",'COACHES WORKSHEET'!C129)","v":""},{"$f":"IF('COACHES WORKSHEET'!D129=0,\"\",'COACHES WORKSHEET'!D129)","v":""},null,{"$f":"'COACHES WORKSHEET'!E129","v":0},"-",{"$f":"'COACHES WORKSHEET'!F129","v":0},null,{"$f":"'COACHES WORKSHEET'!G129","v":"0"},{"$f":"'COACHES WORKSHEET'!I129","v":0},{"$f":"SUM('COACHES WORKSHEET'!K129:K136)","v":0},{"$f":"SUM('COACHES WORKSHEET'!M129:M132)","v":0},{"$f":"'COACHES WORKSHEET'!N129","v":0},{"$f":"'COACHES WORKSHEET'!O129","v":0},{"$f":"IFERROR('COACHES WORKSHEET'!P129,\"\")","v":0}]
[]
[]
[null,null,null,"KEY"]
[null,null,null,"PFR - Points from Record"]
[null,null,null,"PP - Placement Points"]
[null,null,null,"SCP - Section Competition Points"]
[null,null,null,"NCP - NYS Competition Points"]
[null,null,null,"CPP - Class Place Points from prior season"]
[null,null,null,"CPB - Class Bonus points from current season"]

{"sheet":"Points Verification","index":3,"n_rows":139,"n_cols":20,"rows_kept":139,"cut":false,"hidden":false,"merged":[]}
[]
[]
[null,null,null,null,null,null,"SCHOOL:  ",null,{"$f":"'COACHES WORKSHEET'!C1","v":"Enter School Here"}]
[]
["WT","       NAME",null,"RECORD",null,null,null,"WT","       NAME",null,"RECORD",null,null,null,"WT","       NAME",null,"RECORD"]
[{"$f":"'ROSTER REVIEW'!C5","v":""},{"$f":"'ROSTER REVIEW'!D5","v":""},null,{"$f":"'ROSTER REVIEW'!G5","v":0},"-",{"$f":"'ROSTER REVIEW'!I5","v":0},null,{"$f":"'ROSTER REVIEW'!C6","v":""},{"$f":"'ROSTER REVIEW'!D6","v":""},null,{"$f":"'ROSTER REVIEW'!G6","v":0},"-",{"$f":"'ROSTER REVIEW'!I6","v":0},null,{"$f":"'ROSTER REVIEW'!C7","v":""},{"$f":"'ROSTER REVIEW'!D7","v":""},null,{"$f":"'ROSTER REVIEW'!G7","v":0},"-",{"$f":"'ROSTER REVIEW'!I7","v":0}]
["POINTS FROM RECORD",null,null,null,null,{"$f":"'ROSTER REVIEW'!K5","v":"0"},null,"POINTS FROM RECORD",null,null,null,null,{"$f":"'ROSTER REVIEW'!K6","v":"0"},null,"POINTS FROM RECORD",null,null,null,null,{"$f":"'ROSTER REVIEW'!K7","v":"0"}]
[{"$f":"'COACHES WORKSHEET'!H3","v":"Did Not Place"},null,null,null,null,{"$f":"'ROSTER REVIEW'!L5","v":0},null,{"$f":"'COACHES WORKSHEET'!H12","v":"Did Not Place"},null,null,null,null,{"$f":"'ROSTER REVIEW'!L6","v":0},null,{"$f":"'COACHES WORKSHEET'!H21","v":"Did Not Place"},null,null,null,null,{"$f":"'ROSTER REVIEW'!L7","v":0}]
[{"$f":"'COACHES WORKSHEET'!J3","v":"NO WINS OVER SEC 6 PLACERS"},null,null,null,null,{"$f":"'COACHES WORKSHEET'!K3","v":0},null,{"$f":"'COACHES WORKSHEET'!J12","v":"NO WINS OVER SEC 6 PLACERS"},null,null,null,null,{"$f":"'COACHES WORKSHEET'!K12","v":0},null,{"$f":"'COACHES WORKSHEET'!J21","v":"NO WINS OVER SEC 6 PLACERS"},null,null,null,null,{"$f":"'COACHES WORKSHEET'!K21","v":0}]
[{"$f":"'COACHES WORKSHEET'!J4","v":"NO WINS OVER SEC 6 PLACERS"},null,null,null,null,{"$f":"'COACHES WORKSHEET'!K4","v":0},null,{"$f":"'COACHES WORKSHEET'!J13","v":"NO WINS OVER SEC 6 PLACERS"},null,null,null,null,{"$f":"'COACHES WORKSHEET'!K13","v":0},null,{"$f":"'COACHES WORKSHEET'!J22","v":"NO WINS OVER SEC 6 PLACERS"},null,null,null,null,{"$f":"'COACHES WORKSHEET'!K22","v":0}]
[{"$f":"'COACHES WORKSHEET'!J5","v":"NO WINS OVER SEC 6 PLACERS"},null,null,null,null,{"$f":"'COACHES WORKSHEET'!K5","v":0},null,{"$f":"'COACHES WORKSHEET'!J14","v":"NO WINS OVER SEC 6 PLACERS"},null,null,null,null,{"$f":"'COACHES WORKSHEET'!K14","v":0},null,{"$f":"'COACHES WORKSHEET'!J23","v":"NO WINS OVER SEC 6 PLACERS"},null,null,null,null,{"$f":"'COACHES WORKSHEET'!K23","v":0}]
[{"$f":"'COACHES WORKSHEET'!J6","v":"NO WINS OVER SEC 6 PLACERS"},null,null,null,null,{"$f":"'COACHES WORKSHEET'!K6","v":0},null,{"$f":"'COACHES WORKSHEET'!J15","v":"NO WINS OVER SEC 6 PLACERS"},null,null,null,null,{"$f":"'COACHES WORKSHEET'!K15","v":0},null,{"$f":"'COACHES WORKSHEET'!J24","v":"NO WINS OVER SEC 6 PLACERS"},null,null,null,null,{"$f":"'COACHES WORKSHEET'!K24","v":0}]
[{"$f":"'COACHES WORKSHEET'!J7","v":"NO WINS OVER SEC 6 PLACERS"},null,null,null,null,{"$f":"'COACHES WORKSHEET'!K7","v":0},null,{"$f":"'COACHES WORKSHEET'!J16","v":"NO WINS OVER SEC 6 PLACERS"},null,null,null,null,{"$f":"'COACHES WORKSHEET'!K16","v":0},null,{"$f":"'COACHES WORKSHEET'!J25","v":"NO WINS OVER SEC 6 PLACERS"},null,null,null,null,{"$f":"'COACHES WORKSHEET'!K25","v":0}]
[{"$f":"'COACHES WORKSHEET'!J8","v":"NO WINS OVER SEC 6 PLACERS"},null,null,null,null,{"$f":"'COACHES WORKSHEET'!K8","v":0},null,{"$f":"'COACHES WORKSHEET'!J17","v":"NO WINS OVER SEC 6 PLACERS"},null,null,null,null,{"$f":"'COACHES WORKSHEET'!K17","v":0},null,{"$f":"'COACHES WORKSHEET'!J26","v":"NO WINS OVER SEC 6 PLACERS"},null,null,null,null,{"$f":"'COACHES WORKSHEET'!K26","v":0}]
[{"$f":"'COACHES WORKSHEET'!J9","v":"NO WINS OVER SEC 6 PLACERS"},null,null,null,null,{"$f":"'COACHES WORKSHEET'!K9","v":0},null,{"$f":"'COACHES WORKSHEET'!J18","v":"NO WINS OVER SEC 6 PLACERS"},null,null,null,null,{"$f":"'COACHES WORKSHEET'!K18","v":0},null,{"$f":"'COACHES WORKSHEET'!J27","v":"NO WINS OVER SEC 6 PLACERS"},null,null,null,null,{"$f":"'COACHES WORKSHEET'!K27","v":0}]
[{"$f":"'COACHES WORKSHEET'!J10","v":"NO WINS OVER SEC 6 PLACERS"},null,null,null,null,{"$f":"'COACHES WORKSHEET'!K10","v":0},null,{"$f":"'COACHES WORKSHEET'!J19","v":"NO WINS OVER SEC 6 PLACERS"},null,null,null,null,{"$f":"'COACHES WORKSHEET'!K19","v":0},null,{"$f":"'COACHES WORKSHEET'!J28","v":"NO WINS OVER SEC 6 PLACERS"},null,null,null,null,{"$f":"'COACHES WORKSHEET'!K28","v":0}]
[{"$f":"'COACHES WORKSHEET'!L3","v":"NO WINS OVER STATE COMPETITION"},null,null,null,null,{"$f":"'COACHES WORKSHEET'!M3","v":0},null,{"$f":"'COACHES WORKSHEET'!L12","v":"NO WINS OVER STATE COMPETITION"},null,null,null,null,{"$f":"'COACHES WORKSHEET'!M12","v":0},null,{"$f":"'COACHES WORKSHEET'!L21","v":"NO WINS OVER STATE COMPETITION"},null,null,null,null,{"$f":"'COACHES WORKSHEET'!M21","v":0}]
[{"$f":"'COACHES WORKSHEET'!L4","v":"NO WINS OVER STATE COMPETITION"},null,null,null,null,{"$f":"'COACHES WORKSHEET'!M4","v":0},null,{"$f":"'COACHES WORKSHEET'!L13","v":"NO WINS OVER STATE COMPETITION"},null,null,null,null,{"$f":"'COACHES WORKSHEET'!M13","v":0},null,{"$f":"'COACHES WORKSHEET'!L22","v":"NO WINS OVER STATE COMPETITION"},null,null,null,null,{"$f":"'COACHES WORKSHEET'!M22","v":0}]
[{"$f":"'COACHES WORKSHEET'!L5","v":"NO WINS OVER STATE COMPETITION"},null,null,null,null,{"$f":"'COACHES WORKSHEET'!M5","v":0},null,{"$f":"'COACHES WORKSHEET'!L14","v":"NO WINS OVER STATE COMPETITION"},null,null,null,null,{"$f":"'COACHES WORKSHEET'!M14","v":0},null,{"$f":"'COACHES WORKSHEET'!L23","v":"NO WINS OVER STATE COMPETITION"},null,null,null,null,{"$f":"'COACHES WORKSHEET'!M23","v":0}]
[{"$f":"'COACHES WORKSHEET'!L6","v":"NO WINS OVER STATE COMPETITION"},null,null,null,null,{"$f":"'COACHES WORKSHEET'!M6","v":0},null,{"$f":"'COACHES WORKSHEET'!L15","v":"NO WINS OVER STATE COMPETITION"},null,null,null,null,{"$f":"'COACHES WORKSHEET'!M15","v":0},null,{"$f":"'COACHES WORKSHEET'!L24","v":"NO WINS OVER STATE COMPETITION"},null,null,null,null,{"$f":"'COACHES WORKSHEET'!M24","v":0}]
["Class Tournament Place Points",null,null,null,null,{"$f":"'COACHES WORKSHEET'!N3","v":0},null,"Class Tournament Place Points",null,null,null,null,{"$f":"'COACHES WORKSHEET'!N12","v":0},null,"Class Tournament Place Points",null,null,null,null,{"$f":"'COACHES WORKSHEET'!N21","v":0}]
["Class Tournament Bonus Points",null,null,null,null,{"$f":"'COACHES WORKSHEET'!O3","v":0},null,"Class Tournament Bonus Points",null,null,null,null,{"$f":"'COACHES WORKSHEET'!O12","v":0},null,"Class Tournament Bonus Points",null,null,null,null,{"$f":"'COACHES WORKSHEET'!O21","v":0}]
[null,"Head to Head Wins",null,null,null,null,null,null,"Head to Head Wins",null,null,null,null,null,null,"Head to Head Wins"]
[1,{"$f":"IF('COACHES WORKSHEET'!H4=0,\"\",'COACHES WORKSHEET'!H4)","v":""},null,null,null,null,null,1,{"$f":"IF('COACHES WORKSHEET'!H13=0,\"\",'COACHES WORKSHEET'!H13)","v":""},null,null,null,null,null,1,{"$f":"IF('COACHES WORKSHEET'!H22=0,\"\",'COACHES WORKSHEET'!H22)","v":""}]
[2,{"$f":"IF('COACHES WORKSHEET'!H5=0,\"\",'COACHES WORKSHEET'!H5)","v":""},null,null,null,null,null,2,{"$f":"IF('COACHES WORKSHEET'!H14=0,\"\",'COACHES WORKSHEET'!H14)","v":""},null,null,null,null,null,2,{"$f":"IF('COACHES WORKSHEET'!H23=0,\"\",'COACHES WORKSHEET'!H23)","v":""}]
[3,{"$f":"IF('COACHES WORKSHEET'!H6=0,\"\",'COACHES WORKSHEET'!H6)","v":""},null,null,null,null,null,3,{"$f":"IF('COACHES WORKSHEET'!H15=0,\"\",'COACHES WORKSHEET'!H15)","v":""},null,null,null,null,null,3,{"$f":"IF('COACHES WORKSHEET'!H24=0,\"\",'COACHES WORKSHEET'!H24)","v":""}]
[4,{"$f":"IF('COACHES WORKSHEET'!H7=0,\"\",'COACHES WORKSHEET'!H7)","v":""},null,null,null,null,null,4,{"$f":"IF('COACHES WORKSHEET'!H16=0,\"\",'COACHES WORKSHEET'!H16)","v":""},null,null,null,null,null,4,{"$f":"IF('COACHES WORKSHEET'!H25=0,\"\",'COACHES WORKSHEET'!H25)","v":""}]
[5,{"$f":"IF('COACHES WORKSHEET'!H8=0,\"\",'COACHES WORKSHEET'!H8)","v":""},null,null,null,null,null,5,{"$f":"IF('COACHES WORKSHEET'!H17=0,\"\",'COACHES WORKSHEET'!H17)","v":""},null,null,null,null,null,5,{"$f":"IF('COACHES WORKSHEET'!H26=0,\"\",'COACHES WORKSHEET'!H26)","v":""}]
["TOTAL PTS:",null,null,{"$f":"'ROSTER REVIEW'!Q5","v":0},null,null,null,"TOTAL PTS:",null,null,{"$f":"'ROSTER REVIEW'!Q6","v":0},null,null,null,"TOTAL PTS:",null,null,{"$f":"'ROSTER REVIEW'!Q7","v":0}]
[]
["WT","       NAME",null,"RECORD",null,null,null,"WT","       NAME",null,"RECORD",null,null,null,"WT","       NAME",null,"RECORD"]
[{"$f":"'ROSTER REVIEW'!C8","v":""},{"$f":"'ROSTER REVIEW'!D8","v":""},null,{"$f":"'ROSTER REVIEW'!G8","v":0},"-",{"$f":"'ROSTER REVIEW'!I8","v":0},null,{"$f":"'ROSTER REVIEW'!C9","v":""},{"$f":"'ROSTER REVIEW'!D9","v":""},null,{"$f":"'ROSTER REVIEW'!G9","v":0},"-",{"$f":"'ROSTER REVIEW'!I9","v":0},null,{"$f":"'ROSTER REVIEW'!C10","v":""},{"$f":"'ROSTER REVIEW'!D10","v":""},null,{"$f":"'ROSTER REVIEW'!G10","v":0},"-",{"$f":"'ROSTER REVIEW'!I10","v":0}]
["POINTS FROM RECORD",null,null,null,null,{"$f":"'ROSTER REVIEW'!K8","v":"0"},null,"POINTS FROM RECORD",null,null,null,null,{"$f":"'ROSTER REVIEW'!K9","v":"0"},null,"POINTS FROM RECORD",null,null,null,null,{"$f":"'ROSTER REVIEW'!K10","v":"0"}]
[{"$f":"'COACHES WORKSHEET'!H30","v":"Did Not Place"},null,null,null,null,{"$f":"'ROSTER REVIEW'!L8","v":0},null,{"$f":"'COACHES WORKSHEET'!H39","v":"Did Not Place"},null,null,null,null,{"$f":"'COACHES WORKSHEET'!I39","v":0},null,{"$f":"'COACHES WORKSHEET'!H48","v":"Did Not Place"},null,null,null,null,{"$f":"'COACHES WORKSHEET'!I48","v":0}]
[{"$f":"'COACHES WORKSHEET'!J30","v":"NO WINS OVER SEC 6 PLACERS"},null,null,null,null,{"$f":"'COACHES WORKSHEET'!K30","v":0},null,{"$f":"'COACHES WORKSHEET'!J39","v":"NO WINS OVER SEC 6 PLACERS"},null,null,null,null,{"$f":"'COACHES WORKSHEET'!K39","v":0},null,{"$f":"'COACHES WORKSHEET'!J48","v":"NO WINS OVER SEC 6 PLACERS"},null,null,null,null,{"$f":"'COACHES WORKSHEET'!K48","v":0}]
[{"$f":"'COACHES WORKSHEET'!J31","v":"NO WINS OVER SEC 6 PLACERS"},null,null,null,null,{"$f":"'COACHES WORKSHEET'!K31","v":0},null,{"$f":"'COACHES WORKSHEET'!J40","v":"NO WINS OVER SEC 6 PLACERS"},null,null,null,null,{"$f":"'COACHES WORKSHEET'!K40","v":0},null,{"$f":"'COACHES WORKSHEET'!J49","v":"NO WINS OVER SEC 6 PLACERS"},null,null,null,null,{"$f":"'COACHES WORKSHEET'!K49","v":0}]
[{"$f":"'COACHES WORKSHEET'!J32","v":"NO WINS OVER SEC 6 PLACERS"},null,null,null,null,{"$f":"'COACHES WORKSHEET'!K32","v":0},null,{"$f":"'COACHES WORKSHEET'!J41","v":"NO WINS OVER SEC 6 PLACERS"},null,null,null,null,{"$f":"'COACHES WORKSHEET'!K41","v":0},null,{"$f":"'COACHES WORKSHEET'!J50","v":"NO WINS OVER SEC 6 PLACERS"},null,null,null,null,{"$f":"'COACHES WORKSHEET'!K50","v":0}]
[{"$f":"'COACHES WORKSHEET'!J33","v":"NO WINS OVER SEC 6 PLACERS"},null,null,null,null,{"$f":"'COACHES WORKSHEET'!K33","v":0},null,{"$f":"'COACHES WORKSHEET'!J42","v":"NO WINS OVER SEC 6 PLACERS"},null,null,null,null,{"$f":"'COACHES WORKSHEET'!K42","v":0},null,{"$f":"'COACHES WORKSHEET'!J51","v":"NO WINS OVER SEC 6 PLACERS"},null,null,null,null,{"$f":"'COACHES WORKSHEET'!K51","v":0}]
[{"$f":"'COACHES WORKSHEET'!J34","v":"NO WINS OVER SEC 6 PLACERS"},null,null,null,null,{"$f":"'COACHES WORKSHEET'!K34","v":0},null,{"$f":"'COACHES WORKSHEET'!J43","v":"NO WINS OVER SEC 6 PLACERS"},null,null,null,null,{"$f":"'COACHES WORKSHEET'!K43","v":0},null,{"$f":"'COACHES WORKSHEET'!J52","v":"NO WINS OVER SEC 6 PLACERS"},null,null,null,null,{"$f":"'COACHES WORKSHEET'!K52","v":0}]
[{"$f":"'COACHES WORKSHEET'!J35","v":"NO WINS OVER SEC 6 PLACERS"},null,null,null,null,{"$f":"'COACHES WORKSHEET'!K35","v":0},null,{"$f":"'COACHES WORKSHEET'!J44","v":"NO WINS OVER SEC 6 PLACERS"},null,null,null,null,{"$f":"'COACHES WORKSHEET'!K44","v":0},null,{"$f":"'COACHES WORKSHEET'!J53","v":"NO WINS OVER SEC 6 PLACERS"},null,null,null,null,{"$f":"'COACHES WORKSHEET'!K53","v":0}]
[{"$f":"'COACHES WORKSHEET'!J36","v":"NO WINS OVER SEC 6 PLACERS"},null,null,null,null,{"$f":"'COACHES WORKSHEET'!K36","v":0},null,{"$f":"'COACHES WORKSHEET'!J45","v":"NO WINS OVER SEC 6 PLACERS"},null,null,null,null,{"$f":"'COACHES WORKSHEET'!K45","v":0},null,{"$f":"'COACHES WORKSHEET'!J54","v":"NO WINS OVER SEC 6 PLACERS"},null,null,null,null,{"$f":"'COACHES WORKSHEET'!K54","v":0}]
[{"$f":"'COACHES WORKSHEET'!J37","v":"NO WINS OVER SEC 6 PLACERS"},null,null,null,null,{"$f":"'COACHES WORKSHEET'!K35","v":0},null,{"$f":"'COACHES WORKSHEET'!J46","v":"NO WINS OVER SEC 6 PLACERS"},null,null,null,null,{"$f":"'COACHES WORKSHEET'!K44","v":0},null,{"$f":"'COACHES WORKSHEET'!J55","v":"NO WINS OVER SEC 6 PLACERS"},null,null,null,null,{"$f":"'COACHES WORKSHEET'!K53","v":0}]
[{"$f":"'COACHES WORKSHEET'!L30","v":"NO WINS OVER STATE COMPETITION"},null,null,null,null,{"$f":"'COACHES WORKSHEET'!M30","v":0},null,{"$f":"'COACHES WORKSHEET'!L39","v":"NO WINS OVER STATE COMPETITION"},null,null,null,null,{"$f":"'COACHES WORKSHEET'!M39","v":0},null,{"$f":"'COACHES WORKSHEET'!L48","v":"NO WINS OVER STATE COMPETITION"},null,null,null,null,{"$f":"'COACHES WORKSHEET'!M48","v":0}]
[{"$f":"'COACHES WORKSHEET'!L31","v":"NO WINS OVER STATE COMPETITION"},null,null,null,null,{"$f":"'COACHES WORKSHEET'!M31","v":0},null,{"$f":"'COACHES WORKSHEET'!L40","v":"NO WINS OVER STATE COMPETITION"},null,null,null,null,{"$f":"'COACHES WORKSHEET'!M40","v":0},null,{"$f":"'COACHES WORKSHEET'!L49","v":"NO WINS OVER STATE COMPETITION"},null,null,null,null,{"$f":"'COACHES WORKSHEET'!M49","v":0}]
[{"$f":"'COACHES WORKSHEET'!L32","v":"NO WINS OVER STATE COMPETITION"},null,null,null,null,{"$f":"'COACHES WORKSHEET'!M32","v":0},null,{"$f":"'COACHES WORKSHEET'!L41","v":"NO WINS OVER STATE COMPETITION"},null,null,null,null,{"$f":"'COACHES WORKSHEET'!M41","v":0},null,{"$f":"'COACHES WORKSHEET'!L50","v":"NO WINS OVER STATE COMPETITION"},null,null,null,null,{"$f":"'COACHES WORKSHEET'!M50","v":0}]
[{"$f":"'COACHES WORKSHEET'!L33","v":"NO WINS OVER STATE COMPETITION"},null,null,null,null,{"$f":"'COACHES WORKSHEET'!M33","v":0},null,{"$f":"'COACHES WORKSHEET'!L42","v":"NO WINS OVER STATE COMPETITION"},null,null,null,null,{"$f":"'COACHES WORKSHEET'!M42","v":0},null,{"$f":"'COACHES WORKSHEET'!L51","v":"NO WINS OVER STATE COMPETITION"},null,null,null,null,{"$f":"'COACHES WORKSHEET'!M51","v":0}]
["Class Tournament Place Points",null,null,null,null,{"$f":"'COACHES WORKSHEET'!N30","v":0},null,"Class Tournament Place Points",null,null,null,null,{"$f":"'COACHES WORKSHEET'!N39","v":0},null,"Class Tournament Place Points",null,null,null,null,{"$f":"'COACHES WORKSHEET'!N48","v":0}]
["Class Tournament Bonus Points",null,null,null,null,{"$f":"'COACHES WORKSHEET'!O30","v":0},null,"Class Tournament Bonus Points",null,null,null,null,{"$f":"'COACHES WORKSHEET'!O39","v":0},null,"Class Tournament Bonus Points",null,null,null,null,{"$f":"'COACHES WORKSHEET'!O48","v":0}]
[null,"Head to Head Wins",null,null,null,null,null,null,"Head to Head Wins",null,null,null,null,null,null,"Head to Head Wins"]
[1,{"$f":"IF('COACHES WORKSHEET'!H31=0,\"\",'COACHES WORKSHEET'!H31)","v":""},null,null,null,null,null,1,{"$f":"IF('COACHES WORKSHEET'!H40=0,\"\",'COACHES WORKSHEET'!H40)","v":""},null,null,null,null,null,1,{"$f":"IF('COACHES WORKSHEET'!H49=0,\"\",'COACHES WORKSHEET'!H49)","v":""}]
[2,{"$f":"IF('COACHES WORKSHEET'!H32=0,\"\",'COACHES WORKSHEET'!H32)","v":""},null,null,null,null,null,2,{"$f":"IF('COACHES WORKSHEET'!H41=0,\"\",'COACHES WORKSHEET'!H41)","v":""},null,null,null,null,null,2,{"$f":"IF('COACHES WORKSHEET'!H50=0,\"\",'COACHES WORKSHEET'!H50)","v":""}]
[3,{"$f":"IF('COACHES WORKSHEET'!H33=0,\"\",'COACHES WORKSHEET'!H33)","v":""},null,null,null,null,null,3,{"$f":"IF('COACHES WORKSHEET'!H42=0,\"\",'COACHES WORKSHEET'!H42)","v":""},null,null,null,null,null,3,{"$f":"IF('COACHES WORKSHEET'!H51=0,\"\",'COACHES WORKSHEET'!H51)","v":""}]
[4,{"$f":"IF('COACHES WORKSHEET'!H34=0,\"\",'COACHES WORKSHEET'!H34)","v":""},null,null,null,null,null,4,{"$f":"IF('COACHES WORKSHEET'!H43=0,\"\",'COACHES WORKSHEET'!H43)","v":""},null,null,null,null,null,4,{"$f":"IF('COACHES WORKSHEET'!H52=0,\"\",'COACHES WORKSHEET'!H52)","v":""}]
[5,{"$f":"IF('COACHES WORKSHEET'!H35=0,\"\",'COACHES WORKSHEET'!H35)","v":""},null,null,null,null,null,5,{"$f":"IF('COACHES WORKSHEET'!H44=0,\"\",'COACHES WORKSHEET'!H44)","v":""},null,null,null,null,null,5,{"$f":"IF('COACHES WORKSHEET'!H53=0,\"\",'COACHES WORKSHEET'!H53)","v":""}]
["TOTAL PTS:",null,null,{"$f":"'ROSTER REVIEW'!Q8","v":0},null,null,null,"TOTAL PTS:",null,null,{"$f":"'ROSTER REVIEW'!Q9","v":0},null,null,null,"TOTAL PTS:",null,null,{"$f":"'ROSTER REVIEW'!Q10","v":0}]
[]
[null,null,null,null,null,null,"SCHOOL:  ",null,{"$f":"'COACHES WORKSHEET'!C1","v":"Enter School Here"}]
[]
["WT","       NAME",null,"RECORD",null,null,null,"WT","       NAME",null,"RECORD",null,null,null,"WT","       NAME",null,"RECORD"]
[{"$f":"'ROSTER REVIEW'!C11","v":""},{"$f":"'ROSTER REVIEW'!D11","v":""},null,{"$f":"'ROSTER REVIEW'!G11","v":0},"-",{"$f":"'ROSTER REVIEW'!I11","v":0},null,{"$f":"'ROSTER REVIEW'!C12","v":""},{"$f":"'ROSTER REVIEW'!D12","v":""},null,{"$f":"'ROSTER REVIEW'!G12","v":0},"-",{"$f":"'ROSTER REVIEW'!I12","v":0},null,{"$f":"'ROSTER REVIEW'!C13","v":""},{"$f":"'ROSTER REVIEW'!D13","v":""},null,{"$f":"'ROSTER REVIEW'!G13","v":0},"-",{"$f":"'ROSTER REVIEW'!I13","v":0}]
["POINTS FROM RECORD",null,null,null,null,{"$f":"'ROSTER REVIEW'!K11","v":"0"},null,"POINTS FROM RECORD",null,null,null,null,{"$f":"'ROSTER REVIEW'!K12","v":"0"},null,"POINTS FROM RECORD",null,null,null,null,{"$f":"'ROSTER REVIEW'!K13","v":"0"}]
[{"$f":"'COACHES WORKSHEET'!H57","v":"Did Not Place"},null,null,null,null,{"$f":"'ROSTER REVIEW'!L11","v":0},null,{"$f":"'COACHES WORKSHEET'!H66","v":"Did Not Place"},null,null,null,null,{"$f":"'ROSTER REVIEW'!L12","v":0},null,{"$f":"'COACHES WORKSHEET'!H75","v":"Did Not Place"},null,null,null,null,{"$f":"'ROSTER REVIEW'!L13","v":0}]
[{"$f":"'COACHES WORKSHEET'!J57","v":"NO WINS OVER SEC 6 PLACERS"},null,null,null,null,{"$f":"'COACHES WORKSHEET'!K57","v":0},null,{"$f":"'COACHES WORKSHEET'!J66","v":"NO WINS OVER SEC 6 PLACERS"},null,null,null,null,{"$f":"'COACHES WORKSHEET'!K66","v":0},null,{"$f":"'COACHES WORKSHEET'!J75","v":"NO WINS OVER SEC 6 PLACERS"},null,null,null,null,{"$f":"'COACHES WORKSHEET'!K75","v":0}]
[{"$f":"'COACHES WORKSHEET'!J58","v":"NO WINS OVER SEC 6 PLACERS"},null,null,null,null,{"$f":"'COACHES WORKSHEET'!K58","v":0},null,{"$f":"'COACHES WORKSHEET'!J67","v":"NO WINS OVER SEC 6 PLACERS"},null,null,null,null,{"$f":"'COACHES WORKSHEET'!K67","v":0},null,{"$f":"'COACHES WORKSHEET'!J76","v":"NO WINS OVER SEC 6 PLACERS"},null,null,null,null,{"$f":"'COACHES WORKSHEET'!K76","v":0}]
[{"$f":"'COACHES WORKSHEET'!J59","v":"NO WINS OVER SEC 6 PLACERS"},null,null,null,null,{"$f":"'COACHES WORKSHEET'!K59","v":0},null,{"$f":"'COACHES WORKSHEET'!J68","v":"NO WINS OVER SEC 6 PLACERS"},null,null,null,null,{"$f":"'COACHES WORKSHEET'!K68","v":0},null,{"$f":"'COACHES WORKSHEET'!J77","v":"NO WINS OVER SEC 6 PLACERS"},null,null,null,null,{"$f":"'COACHES WORKSHEET'!K77","v":0}]
[{"$f":"'COACHES WORKSHEET'!J60","v":"NO WINS OVER SEC 6 PLACERS"},null,null,null,null,{"$f":"'COACHES WORKSHEET'!K60","v":0},null,{"$f":"'COACHES WORKSHEET'!J69","v":"NO WINS OVER SEC 6 PLACERS"},null,null,null,null,{"$f":"'COACHES WORKSHEET'!K69","v":0},null,{"$f":"'COACHES WORKSHEET'!J78","v":"NO WINS OVER SEC 6 PLACERS"},null,null,null,null,{"$f":"'COACHES WORKSHEET'!K78","v":0}]
[{"$f":"'COACHES WORKSHEET'!J61","v":"NO WINS OVER SEC 6 PLACERS"},null,null,null,null,{"$f":"'COACHES WORKSHEET'!K61","v":0},null,{"$f":"'COACHES WORKSHEET'!J70","v":"NO WINS OVER SEC 6 PLACERS"},null,null,null,null,{"$f":"'COACHES WORKSHEET'!K70","v":0},null,{"$f":"'COACHES WORKSHEET'!J79","v":"NO WINS OVER SEC 6 PLACERS"},null,null,null,null,{"$f":"'COACHES WORKSHEET'!K79","v":0}]
[{"$f":"'COACHES WORKSHEET'!J62","v":"NO WINS OVER SEC 6 PLACERS"},null,null,null,null,{"$f":"'COACHES WORKSHEET'!K62","v":0},null,{"$f":"'COACHES WORKSHEET'!J71","v":"NO WINS OVER SEC 6 PLACERS"},null,null,null,null,{"$f":"'COACHES WORKSHEET'!K71","v":0},null,{"$f":"'COACHES WORKSHEET'!J80","v":"NO WINS OVER SEC 6 PLACERS"},null,null,null,null,{"$f":"'COACHES WORKSHEET'!K80","v":0}]
[{"$f":"'COACHES WORKSHEET'!J63","v":"NO WINS OVER SEC 6 PLACERS"},null,null,null,null,{"$f":"'COACHES WORKSHEET'!K63","v":0},null,{"$f":"'COACHES WORKSHEET'!J72","v":"NO WINS OVER SEC 6 PLACERS"},null,null,null,null,{"$f":"'COACHES WORKSHEET'!K72","v":0},null,{"$f":"'COACHES WORKSHEET'!J81","v":"NO WINS OVER SEC 6 PLACERS"},null,null,null,null,{"$f":"'COACHES WORKSHEET'!K81","v":0}]
[{"$f":"'COACHES WORKSHEET'!J64","v":"NO WINS OVER SEC 6 PLACERS"},null,null,null,null,{"$f":"'COACHES WORKSHEET'!K62","v":0},null,{"$f":"'COACHES WORKSHEET'!J73","v":"NO WINS OVER SEC 6 PLACERS"},null,null,null,null,{"$f":"'COACHES WORKSHEET'!K71","v":0},null,{"$f":"'COACHES WORKSHEET'!J82","v":"NO WINS OVER SEC 6 PLACERS"},null,null,null,null,{"$f":"'COACHES WORKSHEET'!K80","v":0}]
[{"$f":"'COACHES WORKSHEET'!L57","v":"NO WINS OVER STATE COMPETITION"},null,null,null,null,{"$f":"'COACHES WORKSHEET'!M57","v":0},null,{"$f":"'COACHES WORKSHEET'!L66","v":"NO WINS OVER STATE COMPETITION"},null,null,null,null,{"$f":"'COACHES WORKSHEET'!M66","v":0},null,{"$f":"'COACHES WORKSHEET'!L75","v":"NO WINS OVER STATE COMPETITION"},null,null,null,null,{"$f":"'COACHES WORKSHEET'!M75","v":0}]
[{"$f":"'COACHES WORKSHEET'!L58","v":"NO WINS OVER STATE COMPETITION"},null,null,null,null,{"$f":"'COACHES WORKSHEET'!M58","v":0},null,{"$f":"'COACHES WORKSHEET'!L67","v":"NO WINS OVER STATE COMPETITION"},null,null,null,null,{"$f":"'COACHES WORKSHEET'!M67","v":0},null,{"$f":"'COACHES WORKSHEET'!L76","v":"NO WINS OVER STATE COMPETITION"},null,null,null,null,{"$f":"'COACHES WORKSHEET'!M76","v":0}]
[{"$f":"'COACHES WORKSHEET'!L59","v":"NO WINS OVER STATE COMPETITION"},null,null,null,null,{"$f":"'COACHES WORKSHEET'!M59","v":0},null,{"$f":"'COACHES WORKSHEET'!L68","v":"NO WINS OVER STATE COMPETITION"},null,null,null,null,{"$f":"'COACHES WORKSHEET'!M68","v":0},null,{"$f":"'COACHES WORKSHEET'!L77","v":"NO WINS OVER STATE COMPETITION"},null,null,null,null,{"$f":"'COACHES WORKSHEET'!M77","v":0}]
[{"$f":"'COACHES WORKSHEET'!L60","v":"NO WINS OVER STATE COMPETITION"},null,null,null,null,{"$f":"'COACHES WORKSHEET'!M60","v":0},null,{"$f":"'COACHES WORKSHEET'!L69","v":"NO WINS OVER STATE COMPETITION"},null,null,null,null,{"$f":"'COACHES WORKSHEET'!M69","v":0},null,{"$f":"'COACHES WORKSHEET'!L78","v":"NO WINS OVER STATE COMPETITION"},null,null,null,null,{"$f":"'COACHES WORKSHEET'!M78","v":0}]
["Class Tournament Place Points",null,null,null,null,{"$f":"'COACHES WORKSHEET'!N57","v":0},null,"Class Tournament Place Points",null,null,null,null,{"$f":"'COACHES WORKSHEET'!N66","v":0},null,"Class Tournament Place Points",null,null,null,null,{"$f":"'COACHES WORKSHEET'!N75","v":0}]
["Class Tournament Bonus Points",null,null,null,null,{"$f":"'COACHES WORKSHEET'!O57","v":0},null,"Class Tournament Bonus Points",null,null,null,null,{"$f":"'COACHES WORKSHEET'!O66","v":0},null,"Class Tournament Bonus Points",null,null,null,null,{"$f":"'COACHES WORKSHEET'!O75","v":0}]
[null,"Head to Head Wins",null,null,null,null,null,null,"Head to Head Wins",null,null,null,null,null,null,"Head to Head Wins"]
[1,{"$f":"IF('COACHES WORKSHEET'!H58=0,\"\",'COACHES WORKSHEET'!H58)","v":""},null,null,null,null,null,1,{"$f":"IF('COACHES WORKSHEET'!H67=0,\"\",'COACHES WORKSHEET'!H67)","v":""},null,null,null,null,null,1,{"$f":"IF('COACHES WORKSHEET'!H76=0,\"\",'COACHES WORKSHEET'!H76)","v":""}]
[2,{"$f":"IF('COACHES WORKSHEET'!H59=0,\"\",'COACHES WORKSHEET'!H59)","v":""},null,null,null,null,null,2,{"$f":"IF('COACHES WORKSHEET'!H68=0,\"\",'COACHES WORKSHEET'!H68)","v":""},null,null,null,null,null,2,{"$f":"IF('COACHES WORKSHEET'!H77=0,\"\",'COACHES WORKSHEET'!H77)","v":""}]
[3,{"$f":"IF('COACHES WORKSHEET'!H60=0,\"\",'COACHES WORKSHEET'!H60)","v":""},null,null,null,null,null,3,{"$f":"IF('COACHES WORKSHEET'!H69=0,\"\",'COACHES WORKSHEET'!H69)","v":""},null,null,null,null,null,3,{"$f":"IF('COACHES WORKSHEET'!H78=0,\"\",'COACHES WORKSHEET'!H78)","v":""}]
[4,{"$f":"IF('COACHES WORKSHEET'!H61=0,\"\",'COACHES WORKSHEET'!H61)","v":""},null,null,null,null,null,4,{"$f":"IF('COACHES WORKSHEET'!H70=0,\"\",'COACHES WORKSHEET'!H70)","v":""},null,null,null,null,null,4,{"$f":"IF('COACHES WORKSHEET'!H79=0,\"\",'COACHES WORKSHEET'!H79)","v":""}]
[5,{"$f":"IF('COACHES WORKSHEET'!H62=0,\"\",'COACHES WORKSHEET'!H62)","v":""},null,null,null,null,null,5,{"$f":"IF('COACHES WORKSHEET'!H71=0,\"\",'COACHES WORKSHEET'!H71)","v":""},null,null,null,null,null,5,{"$f":"IF('COACHES WORKSHEET'!H80=0,\"\",'COACHES WORKSHEET'!H80)","v":""}]
["TOTAL PTS:",null,null,{"$f":"'ROSTER REVIEW'!Q11","v":0},null,null,null,"TOTAL PTS:",null,null,{"$f":"'ROSTER REVIEW'!Q12","v":0},null,null,null,"TOTAL PTS:",null,null,{"$f":"'ROSTER REVIEW'!Q13","v":0}]
[]
["WT","       NAME",null,"RECORD",null,null,null,"WT","       NAME",null,"RECORD",null,null,null,"WT","       NAME",null,"RECORD"]
[{"$f":"'ROSTER REVIEW'!C14","v":""},{"$f":"'ROSTER REVIEW'!D14","v":""},null,{"$f":"'ROSTER REVIEW'!G14","v":0},"-",{"$f":"'ROSTER REVIEW'!I14","v":0},null,{"$f":"'ROSTER REVIEW'!C15","v":""},{"$f":"'ROSTER REVIEW'!D15","v":""},null,{"$f":"'ROSTER REVIEW'!G15","v":0},"-",{"$f":"'ROSTER REVIEW'!I15","v":0},null,{"$f":"'ROSTER REVIEW'!C16","v":""},{"$f":"'ROSTER REVIEW'!D16","v":""},null,{"$f":"'ROSTER REVIEW'!G16","v":0},"-",{"$f":"'ROSTER REVIEW'!I16","v":0}]
["POINTS FROM RECORD",null,null,null,null,{"$f":"'ROSTER REVIEW'!K14","v":"0"},null,"POINTS FROM RECORD",null,null,null,null,{"$f":"'ROSTER REVIEW'!K15","v":"0"},null,"POINTS FROM RECORD",null,null,null,null,{"$f":"'ROSTER REVIEW'!K16","v":"0"}]
[{"$f":"'COACHES WORKSHEET'!H84","v":"Did Not Place"},null,null,null,null,{"$f":"'COACHES WORKSHEET'!I84","v":0},null,{"$f":"'COACHES WORKSHEET'!H93","v":"Did Not Place"},null,null,null,null,{"$f":"'ROSTER REVIEW'!L15","v":0},null,{"$f":"'COACHES WORKSHEET'!H102","v":"Did Not Place"},null,null,null,null,{"$f":"'ROSTER REVIEW'!L16","v":0}]
[{"$f":"'COACHES WORKSHEET'!J84","v":"NO WINS OVER SEC 6 PLACERS"},null,null,null,null,{"$f":"'COACHES WORKSHEET'!K84","v":0},null,{"$f":"'COACHES WORKSHEET'!J93","v":"NO WINS OVER SEC 6 PLACERS"},null,null,null,null,{"$f":"'COACHES WORKSHEET'!K93","v":0},null,{"$f":"'COACHES WORKSHEET'!J102","v":"NO WINS OVER SEC 6 PLACERS"},null,null,null,null,{"$f":"'COACHES WORKSHEET'!K102","v":0}]
[{"$f":"'COACHES WORKSHEET'!J85","v":"NO WINS OVER SEC 6 PLACERS"},null,null,null,null,{"$f":"'COACHES WORKSHEET'!K85","v":0},null,{"$f":"'COACHES WORKSHEET'!J94","v":"NO WINS OVER SEC 6 PLACERS"},null,null,null,null,{"$f":"'COACHES WORKSHEET'!K94","v":0},null,{"$f":"'COACHES WORKSHEET'!J103","v":"NO WINS OVER SEC 6 PLACERS"},null,null,null,null,{"$f":"'COACHES WORKSHEET'!K103","v":0}]
[{"$f":"'COACHES WORKSHEET'!J86","v":"NO WINS OVER SEC 6 PLACERS"},null,null,null,null,{"$f":"'COACHES WORKSHEET'!K86","v":0},null,{"$f":"'COACHES WORKSHEET'!J95","v":"NO WINS OVER SEC 6 PLACERS"},null,null,null,null,{"$f":"'COACHES WORKSHEET'!K95","v":0},null,{"$f":"'COACHES WORKSHEET'!J104","v":"NO WINS OVER SEC 6 PLACERS"},null,null,null,null,{"$f":"'COACHES WORKSHEET'!K104","v":0}]
[{"$f":"'COACHES WORKSHEET'!J87","v":"NO WINS OVER SEC 6 PLACERS"},null,null,null,null,{"$f":"'COACHES WORKSHEET'!K87","v":0},null,{"$f":"'COACHES WORKSHEET'!J96","v":"NO WINS OVER SEC 6 PLACERS"},null,null,null,null,{"$f":"'COACHES WORKSHEET'!K96","v":0},null,{"$f":"'COACHES WORKSHEET'!J105","v":"NO WINS OVER SEC 6 PLACERS"},null,null,null,null,{"$f":"'COACHES WORKSHEET'!K105","v":0}]
[{"$f":"'COACHES WORKSHEET'!J88","v":"NO WINS OVER SEC 6 PLACERS"},null,null,null,null,{"$f":"'COACHES WORKSHEET'!K88","v":0},null,{"$f":"'COACHES WORKSHEET'!J97","v":"NO WINS OVER SEC 6 PLACERS"},null,null,null,null,{"$f":"'COACHES WORKSHEET'!K97","v":0},null,{"$f":"'COACHES WORKSHEET'!J106","v":"NO WINS OVER SEC 6 PLACERS"},null,null,null,null,{"$f":"'COACHES WORKSHEET'!K106","v":0}]
[{"$f":"'COACHES WORKSHEET'!J89","v":"NO WINS OVER SEC 6 PLACERS"},null,null,null,null,{"$f":"'COACHES WORKSHEET'!K89","v":0},null,{"$f":"'COACHES WORKSHEET'!J98","v":"NO WINS OVER SEC 6 PLACERS"},null,null,null,null,{"$f":"'COACHES WORKSHEET'!K98","v":0},null,{"$f":"'COACHES WORKSHEET'!J107","v":"NO WINS OVER SEC 6 PLACERS"},null,null,null,null,{"$f":"'COACHES WORKSHEET'!K107","v":0}]
[{"$f":"'COACHES WORKSHEET'!J90","v":"NO WINS OVER SEC 6 PLACERS"},null,null,null,null,{"$f":"'COACHES WORKSHEET'!K90","v":0},null,{"$f":"'COACHES WORKSHEET'!J99","v":"NO WINS OVER SEC 6 PLACERS"},null,null,null,null,{"$f":"'COACHES WORKSHEET'!K99","v":0},null,{"$f":"'COACHES WORKSHEET'!J108","v":"NO WINS OVER SEC 6 PLACERS"},null,null,null,null,{"$f":"'COACHES WORKSHEET'!K108","v":0}]
[{"$f":"'COACHES WORKSHEET'!J91","v":"NO WINS OVER SEC 6 PLACERS"},null,null,null,null,{"$f":"'COACHES WORKSHEET'!K91","v":0},null,{"$f":"'COACHES WORKSHEET'!J100","v":"NO WINS OVER SEC 6 PLACERS"},null,null,null,null,{"$f":"'COACHES WORKSHEET'!K100","v":0},null,{"$f":"'COACHES WORKSHEET'!J109","v":"NO WINS OVER SEC 6 PLACERS"},null,null,null,null,{"$f":"'COACHES WORKSHEET'!K109","v":0}]
[{"$f":"'COACHES WORKSHEET'!L84","v":"NO WINS OVER STATE COMPETITION"},null,null,null,null,{"$f":"'COACHES WORKSHEET'!M84","v":0},null,{"$f":"'COACHES WORKSHEET'!L93","v":"NO WINS OVER STATE COMPETITION"},null,null,null,null,{"$f":"'COACHES WORKSHEET'!M93","v":0},null,{"$f":"'COACHES WORKSHEET'!L102","v":"NO WINS OVER STATE COMPETITION"},null,null,null,null,{"$f":"'COACHES WORKSHEET'!M102","v":0}]
[{"$f":"'COACHES WORKSHEET'!L85","v":"NO WINS OVER STATE COMPETITION"},null,null,null,null,{"$f":"'COACHES WORKSHEET'!M85","v":0},null,{"$f":"'COACHES WORKSHEET'!L94","v":"NO WINS OVER STATE COMPETITION"},null,null,null,null,{"$f":"'COACHES WORKSHEET'!M94","v":0},null,{"$f":"'COACHES WORKSHEET'!L103","v":"NO WINS OVER STATE COMPETITION"},null,null,null,null,{"$f":"'COACHES WORKSHEET'!M103","v":0}]
[{"$f":"'COACHES WORKSHEET'!L86","v":"NO WINS OVER STATE COMPETITION"},null,null,null,null,{"$f":"'COACHES WORKSHEET'!M86","v":0},null,{"$f":"'COACHES WORKSHEET'!L95","v":"NO WINS OVER STATE COMPETITION"},null,null,null,null,{"$f":"'COACHES WORKSHEET'!M95","v":0},null,{"$f":"'COACHES WORKSHEET'!L104","v":"NO WINS OVER STATE COMPETITION"},null,null,null,null,{"$f":"'COACHES WORKSHEET'!M104","v":0}]
[{"$f":"'COACHES WORKSHEET'!L87","v":"NO WINS OVER STATE COMPETITION"},null,null,null,null,{"$f":"'COACHES WORKSHEET'!M87","v":0},null,{"$f":"'COACHES WORKSHEET'!L96","v":"NO WINS OVER STATE COMPETITION"},null,null,null,null,{"$f":"'COACHES WORKSHEET'!M96","v":0},null,{"$f":"'COACHES WORKSHEET'!L105","v":"NO WINS OVER STATE COMPETITION"},null,null,null,null,{"$f":"'COACHES WORKSHEET'!M105","v":0}]
["Class Tournament Place Points",null,null,null,null,{"$f":"'COACHES WORKSHEET'!N84","v":0},null,"Class Tournament Place Points",null,null,null,null,{"$f":"'COACHES WORKSHEET'!N93","v":0},null,"Class Tournament Place Points",null,null,null,null,{"$f":"'COACHES WORKSHEET'!N102","v":0}]
["Class Tournament Bonus Points",null,null,null,null,{"$f":"'COACHES WORKSHEET'!O84","v":0},null,"Class Tournament Bonus Points",null,null,null,null,{"$f":"'COACHES WORKSHEET'!O93","v":0},null,"Class Tournament Bonus Points",null,null,null,null,{"$f":"'COACHES WORKSHEET'!O102","v":0}]
[null,"Head to Head Wins",null,null,null,null,null,null,"Head to Head Wins",null,null,null,null,null,null,"Head to Head Wins"]
[1,{"$f":"IF('COACHES WORKSHEET'!H85=0,\"\",'COACHES WORKSHEET'!H85)","v":""},null,null,null,null,null,1,{"$f":"IF('COACHES WORKSHEET'!H94=0,\"\",'COACHES WORKSHEET'!H94)","v":""},null,null,null,null,null,1,{"$f":"IF('COACHES WORKSHEET'!H103=0,\"\",'COACHES WORKSHEET'!H103)","v":""}]
[2,{"$f":"IF('COACHES WORKSHEET'!H86=0,\"\",'COACHES WORKSHEET'!H86)","v":""},null,null,null,null,null,2,{"$f":"IF('COACHES WORKSHEET'!H95=0,\"\",'COACHES WORKSHEET'!H95)","v":""},null,null,null,null,null,2,{"$f":"IF('COACHES WORKSHEET'!H104=0,\"\",'COACHES WORKSHEET'!H104)","v":""}]
[3,{"$f":"IF('COACHES WORKSHEET'!H87=0,\"\",'COACHES WORKSHEET'!H87)","v":""},null,null,null,null,null,3,{"$f":"IF('COACHES WORKSHEET'!H96=0,\"\",'COACHES WORKSHEET'!H96)","v":""},null,null,null,null,null,3,{"$f":"IF('COACHES WORKSHEET'!H105=0,\"\",'COACHES WORKSHEET'!H105)","v":""}]
[4,{"$f":"IF('COACHES WORKSHEET'!H88=0,\"\",'COACHES WORKSHEET'!H88)","v":""},null,null,null,null,null,4,{"$f":"IF('COACHES WORKSHEET'!H97=0,\"\",'COACHES WORKSHEET'!H97)","v":""},null,null,null,null,null,4,{"$f":"IF('COACHES WORKSHEET'!H106=0,\"\",'COACHES WORKSHEET'!H106)","v":""}]
[5,{"$f":"IF('COACHES WORKSHEET'!H89=0,\"\",'COACHES WORKSHEET'!H89)","v":""},null,null,null,null,null,5,{"$f":"IF('COACHES WORKSHEET'!H98=0,\"\",'COACHES WORKSHEET'!H98)","v":""},null,null,null,null,null,5,{"$f":"IF('COACHES WORKSHEET'!H107=0,\"\",'COACHES WORKSHEET'!H107)","v":""}]
["TOTAL PTS:",null,null,{"$f":"'ROSTER REVIEW'!Q14","v":0},null,null,null,"TOTAL PTS:",null,null,{"$f":"'ROSTER REVIEW'!Q15","v":0},null,null,null,"TOTAL PTS:",null,null,{"$f":"'ROSTER REVIEW'!Q16","v":0}]
[]
[]
[]
[null,null,null,null,null,null,"SCHOOL:  ",null,{"$f":"'COACHES WORKSHEET'!C1","v":"Enter School Here"}]
[]
["WT","       NAME",null,"RECORD",null,null,null,"WT","       NAME",null,"RECORD",null,null,null,"WT","       NAME",null,"RECORD"]
[{"$f":"'ROSTER REVIEW'!C17","v":""},{"$f":"'ROSTER REVIEW'!D17","v":""},null,{"$f":"'ROSTER REVIEW'!G17","v":0},"-",{"$f":"'ROSTER REVIEW'!I17","v":0},null,{"$f":"'ROSTER REVIEW'!C18","v":""},{"$f":"'ROSTER REVIEW'!D18","v":""},null,{"$f":"'ROSTER REVIEW'!G18","v":0},"-",{"$f":"'ROSTER REVIEW'!I18","v":0},null,{"$f":"'ROSTER REVIEW'!C19","v":""},{"$f":"'ROSTER REVIEW'!D19","v":""},null,{"$f":"'ROSTER REVIEW'!G19","v":0},"-",{"$f":"'ROSTER REVIEW'!I19","v":0}]
["POINTS FROM RECORD",null,null,null,null,{"$f":"'ROSTER REVIEW'!K17","v":"0"},null,"POINTS FROM RECORD",null,null,null,null,{"$f":"'ROSTER REVIEW'!K18","v":"0"},null,"POINTS FROM RECORD",null,null,null,null,{"$f":"'ROSTER REVIEW'!K19","v":"0"}]
[{"$f":"'COACHES WORKSHEET'!H111","v":"Did Not Place"},null,null,null,null,{"$f":"'COACHES WORKSHEET'!I111","v":0},null,{"$f":"'COACHES WORKSHEET'!H120","v":"Did Not Place"},null,null,null,null,{"$f":"'ROSTER REVIEW'!L18","v":0},null,{"$f":"'COACHES WORKSHEET'!H129","v":"Did Not Place"},null,null,null,null,{"$f":"'COACHES WORKSHEET'!I129","v":0}]
[{"$f":"'COACHES WORKSHEET'!J111","v":"NO WINS OVER SEC 6 PLACERS"},null,null,null,null,{"$f":"'COACHES WORKSHEET'!K111","v":0},null,{"$f":"'COACHES WORKSHEET'!J120","v":"NO WINS OVER SEC 6 PLACERS"},null,null,null,null,{"$f":"'COACHES WORKSHEET'!K120","v":0},null,{"$f":"'COACHES WORKSHEET'!J129","v":"NO WINS OVER SEC 6 PLACERS"},null,null,null,null,{"$f":"'COACHES WORKSHEET'!K129","v":0}]
[{"$f":"'COACHES WORKSHEET'!J112","v":"NO WINS OVER SEC 6 PLACERS"},null,null,null,null,{"$f":"'COACHES WORKSHEET'!K112","v":0},null,{"$f":"'COACHES WORKSHEET'!J121","v":"NO WINS OVER SEC 6 PLACERS"},null,null,null,null,{"$f":"'COACHES WORKSHEET'!K121","v":0},null,{"$f":"'COACHES WORKSHEET'!J130","v":"NO WINS OVER SEC 6 PLACERS"},null,null,null,null,{"$f":"'COACHES WORKSHEET'!K130","v":0}]
[{"$f":"'COACHES WORKSHEET'!J113","v":"NO WINS OVER SEC 6 PLACERS"},null,null,null,null,{"$f":"'COACHES WORKSHEET'!K113","v":0},null,{"$f":"'COACHES WORKSHEET'!J122","v":"NO WINS OVER SEC 6 PLACERS"},null,null,null,null,{"$f":"'COACHES WORKSHEET'!K122","v":0},null,{"$f":"'COACHES WORKSHEET'!J131","v":"NO WINS OVER SEC 6 PLACERS"},null,null,null,null,{"$f":"'COACHES WORKSHEET'!K131","v":0}]
[{"$f":"'COACHES WORKSHEET'!J114","v":"NO WINS OVER SEC 6 PLACERS"},null,null,null,null,{"$f":"'COACHES WORKSHEET'!K114","v":0},null,{"$f":"'COACHES WORKSHEET'!J123","v":"NO WINS OVER SEC 6 PLACERS"},null,null,null,null,{"$f":"'COACHES WORKSHEET'!K123","v":0},null,{"$f":"'COACHES WORKSHEET'!J132","v":"NO WINS OVER SEC 6 PLACERS"},null,null,null,null,{"$f":"'COACHES WORKSHEET'!K132","v":0}]
[{"$f":"'COACHES WORKSHEET'!J115","v":"NO WINS OVER SEC 6 PLACERS"},null,null,null,null,{"$f":"'COACHES WORKSHEET'!K115","v":0},null,{"$f":"'COACHES WORKSHEET'!J124","v":"NO WINS OVER SEC 6 PLACERS"},null,null,null,null,{"$f":"'COACHES WORKSHEET'!K124","v":0},null,{"$f":"'COACHES WORKSHEET'!J133","v":"NO WINS OVER SEC 6 PLACERS"},null,null,null,null,{"$f":"'COACHES WORKSHEET'!K133","v":0}]
[{"$f":"'COACHES WORKSHEET'!J116","v":"NO WINS OVER SEC 6 PLACERS"},null,null,null,null,{"$f":"'COACHES WORKSHEET'!K116","v":0},null,{"$f":"'COACHES WORKSHEET'!J125","v":"NO WINS OVER SEC 6 PLACERS"},null,null,null,null,{"$f":"'COACHES WORKSHEET'!K125","v":0},null,{"$f":"'COACHES WORKSHEET'!J134","v":"NO WINS OVER SEC 6 PLACERS"},null,null,null,null,{"$f":"'COACHES WORKSHEET'!K134","v":0}]
[{"$f":"'COACHES WORKSHEET'!J117","v":"NO WINS OVER SEC 6 PLACERS"},null,null,null,null,{"$f":"'COACHES WORKSHEET'!K117","v":0},null,{"$f":"'COACHES WORKSHEET'!J126","v":"NO WINS OVER SEC 6 PLACERS"},null,null,null,null,{"$f":"'COACHES WORKSHEET'!K126","v":0},null,{"$f":"'COACHES WORKSHEET'!J135","v":"NO WINS OVER SEC 6 PLACERS"},null,null,null,null,{"$f":"'COACHES WORKSHEET'!K135","v":0}]
[{"$f":"'COACHES WORKSHEET'!J118","v":"NO WINS OVER SEC 6 PLACERS"},null,null,null,null,{"$f":"'COACHES WORKSHEET'!K118","v":0},null,{"$f":"'COACHES WORKSHEET'!J127","v":"NO WINS OVER SEC 6 PLACERS"},null,null,null,null,{"$f":"'COACHES WORKSHEET'!K127","v":0},null,{"$f":"'COACHES WORKSHEET'!J136","v":"NO WINS OVER SEC 6 PLACERS"},null,null,null,null,{"$f":"'COACHES WORKSHEET'!K136","v":0}]
[{"$f":"'COACHES WORKSHEET'!L111","v":"NO WINS OVER STATE COMPETITION"},null,null,null,null,{"$f":"'COACHES WORKSHEET'!M111","v":0},null,{"$f":"'COACHES WORKSHEET'!L120","v":"NO WINS OVER STATE COMPETITION"},null,null,null,null,{"$f":"'COACHES WORKSHEET'!M120","v":0},null,{"$f":"'COACHES WORKSHEET'!L129","v":"NO WINS OVER STATE COMPETITION"},null,null,null,null,{"$f":"'COACHES WORKSHEET'!M129","v":0}]
[{"$f":"'COACHES WORKSHEET'!L112","v":"NO WINS OVER STATE COMPETITION"},null,null,null,null,{"$f":"'COACHES WORKSHEET'!M112","v":0},null,{"$f":"'COACHES WORKSHEET'!L121","v":"NO WINS OVER STATE COMPETITION"},null,null,null,null,{"$f":"'COACHES WORKSHEET'!M121","v":0},null,{"$f":"'COACHES WORKSHEET'!L130","v":"NO WINS OVER STATE COMPETITION"},null,null,null,null,{"$f":"'COACHES WORKSHEET'!M130","v":0}]
[{"$f":"'COACHES WORKSHEET'!L113","v":"NO WINS OVER STATE COMPETITION"},null,null,null,null,{"$f":"'COACHES WORKSHEET'!M113","v":0},null,{"$f":"'COACHES WORKSHEET'!L122","v":"NO WINS OVER STATE COMPETITION"},null,null,null,null,{"$f":"'COACHES WORKSHEET'!M122","v":0},null,{"$f":"'COACHES WORKSHEET'!L131","v":"NO WINS OVER STATE COMPETITION"},null,null,null,null,{"$f":"'COACHES WORKSHEET'!M131","v":0}]
[{"$f":"'COACHES WORKSHEET'!L114","v":"NO WINS OVER STATE COMPETITION"},null,null,null,null,{"$f":"'COACHES WORKSHEET'!M114","v":0},null,{"$f":"'COACHES WORKSHEET'!L123","v":"NO WINS OVER STATE COMPETITION"},null,null,null,null,{"$f":"'COACHES WORKSHEET'!M123","v":0},null,{"$f":"'COACHES WORKSHEET'!L132","v":"NO WINS OVER STATE COMPETITION"},null,null,null,null,{"$f":"'COACHES WORKSHEET'!M132","v":0}]
["Class Tournament Place Points",null,null,null,null,{"$f":"'COACHES WORKSHEET'!N111","v":0},null,"Class Tournament Place Points",null,null,null,null,{"$f":"'COACHES WORKSHEET'!N120","v":0},null,"Class Tournament Place Points",null,null,null,null,{"$f":"'COACHES WORKSHEET'!N129","v":0}]
["Class Tournament Bonus Points",null,null,null,null,{"$f":"'COACHES WORKSHEET'!O111","v":0},null,"Class Tournament Bonus Points",null,null,null,null,{"$f":"'COACHES WORKSHEET'!O120","v":0},null,"Class Tournament Bonus Points",null,null,null,null,{"$f":"'COACHES WORKSHEET'!O129","v":0}]
[null,"Head to Head Wins",null,null,null,null,null,null,"Head to Head Wins",null,null,null,null,null,null,"Head to Head Wins"]
[1,{"$f":"IF('COACHES WORKSHEET'!H112=0,\"\",'COACHES WORKSHEET'!H112)","v":""},null,null,null,null,null,1,{"$f":"IF('COACHES WORKSHEET'!H121=0,\"\",'COACHES WORKSHEET'!H121)","v":""},null,null,null,null,null,1,{"$f":"IF('COACHES WORKSHEET'!H130=0,\"\",'COACHES WORKSHEET'!H130)","v":""}]
[2,{"$f":"IF('COACHES WORKSHEET'!H113=0,\"\",'COACHES WORKSHEET'!H113)","v":""},null,null,null,null,null,2,{"$f":"IF('COACHES WORKSHEET'!H122=0,\"\",'COACHES WORKSHEET'!H122)","v":""},null,null,null,null,null,2,{"$f":"IF('COACHES WORKSHEET'!H131=0,\"\",'COACHES WORKSHEET'!H131)","v":""}]
[3,{"$f":"IF('COACHES WORKSHEET'!H114=0,\"\",'COACHES WORKSHEET'!H114)","v":""},null,null,null,null,null,3,{"$f":"IF('COACHES WORKSHEET'!H123=0,\"\",'COACHES WORKSHEET'!H123)","v":""},null,null,null,null,null,3,{"$f":"IF('COACHES WORKSHEET'!H132=0,\"\",'COACHES WORKSHEET'!H132)","v":""}]
[4,{"$f":"IF('COACHES WORKSHEET'!H115=0,\"\",'COACHES WORKSHEET'!H115)","v":""},null,null,null,null,null,4,{"$f":"IF('COACHES WORKSHEET'!H124=0,\"\",'COACHES WORKSHEET'!H124)","v":""},null,null,null,null,null,4,{"$f":"IF('COACHES WORKSHEET'!H133=0,\"\",'COACHES WORKSHEET'!H133)","v":""}]
[5,{"$f":"IF('COACHES WORKSHEET'!H116=0,\"\",'COACHES WORKSHEET'!H116)","v":""},null,null,null,null,null,5,{"$f":"IF('COACHES WORKSHEET'!H125=0,\"\",'COACHES WORKSHEET'!H125)","v":""},null,null,null,null,null,5,{"$f":"IF('COACHES WORKSHEET'!H134=0,\"\",'COACHES WORKSHEET'!H134)","v":""}]
["TOTAL PTS:",null,null,{"$f":"'ROSTER REVIEW'!Q17","v":0},null,null,null,"TOTAL PTS:",null,null,{"$f":"'COACHES WORKSHEET'!P120","v":0},null,null,null,"TOTAL PTS:",null,null,{"$f":"'COACHES WORKSHEET'!P129","v":0}]

{"sheet":"Sec 6 Place Finishers 2022-23","index":4,"n_rows":152,"n_cols":11,"rows_kept":152,"cut":false,"hidden":false,"merged":[]}
[null,null,null,null,null,"2012-13","2022-23","2012-13"," Sec. 6 SEEDING"," Sec. 6 SEEDING"]
["NAME","SCHOOL","DIVISION","2023-24 GRADE","WT","Class Place Finish","SECTION PLACE","NYS PLACE ","  COMPETITION PTS","  PLACEMENT PTS *","NYS Place finish 2023"]
["CLICK ON THIS CELL",null,null,null,null,null,null,null,0]
["NO WINS OVER SEC 6 PLACERS",null,null,null,null,null,null,null,0]
["NATE COHEN - AMH","AHMERST",1,12,132,null,6,null,2]
["MUSTAFA NATIQ - AMH","AMHERST",1,11,110,null,4,null,6]
["JOE MAGNANO - AMH","AMHERST",1,12,126,null,5,null,4]
["RILEY KIRST - AMH","AMHERST",1,12,138,null,4,null,6]
["ZAK SAEED - AMH","AMHERST",1,12,145,null,5,null,4]
["CALE MENEGAUX - AMH","AMHERST",1,12,152,null,"7/8",null,1]
["KILLIAN SIMONSON - AMH","AMHERST",1,12,172,null,"7/8",null,1]
["JOSH KNOBLACH - AMH","AMHERST",1,12,215,null,"5",null,4]
["TREVOR MUELLER - CLAR","CLARENCE",1,8,118,null,4,null,6]
["AJ DIDAS - CLAR","CLARENCE",1,11,132,null,2,null,10]
["JOEY KELLER - CLAR","CLARENCE",1,12,152,null,3,null,8]
["CLAYTON FELTZ - CLAR","CLARENCE",1,12,152,null,5,null,4]
["BRYCE HAWES - CLAR","CLARENCE",1,12,285,null,2,null,10]
["ZACK DIDAS - CLAR","CLARENCE",1,8,102,null,"7/8",null,1]
["BEN GOMBOS - FRONT","FRONTIER",1,11,152,null,4,null,6]
["DAVID SEBRING - FRONT","FRONTIER",1,10,215,null,6,null,2]
["TREY ABRAMS - FRONT","FRONTIER",1,9,110,null,"7/8",null,1]
["ZAK MASSARO - GI","GRAND ISLAND",1,9,102,null,4,null,6]
["DYLAN CASTIGLIA - GI","GRAND ISLAND",1,11,110,null,3,null,8]
["ELIJAH LINSENFELSER - GI","GRAND ISLAND",1,12,132,null,5,null,4]
["TIM BENTLEY - GI","GRAND ISLAND",1,12,160,null,"7/8",null,1]
["SAM BERTI - HAM","HAMBURG",1,12,126,null,3,null,8]
["EVAN BRAUNSCHEIDEL - HAM","HAMBURG",1,11,160,null,3,null,8]
["ROBBIE SCHAEFER - HAM","HAMBURG",1,12,132,null,"7/8",null,1]
["LEO HALEY - HAM","HAMBURG",1,10,285,null,"7/8",null,1]
["CONNOR BUSH - JAMES","JAMESTOWN",1,12,126,null,6,null,2]
["COLE BLOOMQUIST - JAMES","JAMESTOWN",1,11,132,null,4,null,6]
["CARSEN BANE - JAMES","JAMESTOWN",1,12,172,null,4,null,6]
["KEITH MILLER - JAMES","JAMESTOWN",1,12,172,null,"7/8",null,1]
["ZANE ELIFRITZ - JAMES","JAMESTOWN",1,10,215,null,"7/8",null,1]
["SAWYER DICKINSON - KENTON","KEN TON",1,10,138,null,3,null,8]
["ALEX GROHMAN - KENTON","KEN TON",1,12,160,null,5,null,4]
["RICKY ANDRES - LANC","LANCASTER",1,11,118,null,5,null,4]
["JOEY FRIEBERG - LANC","LANCASTER",1,12,138,null,6,null,2]
["MIKEY SCHAEFER - LANC","LANCASTER",1,12,172,null,2,null,10]
["LIAM WHALEN - LOCK","LOCKPORT",1,12,172,null,3,null,8]
["VINCENZO FALSETTI - NF","NIAGARA FALLS",1,12,145,null,6,null,2]
["GABRIELLA BARONE - NW","NIAGARA WHEATFIELD",1,8,102,null,6,null,2]
["JACOB SWEENEY - NW","NIAGARA WHEATFIELD",1,9,102,null,"7/8",null,1]
["EVAN AZBELL - NW","NIAGARA WHEATFIELD",1,9,110,null,2,null,10]
["EIAN PETERSON - NW","NIAGARA WHEATFIELD",1,11,110,null,1,null,12]
["MUNTATHAR ABBAS - NW","NIAGARA WHEATFIELD",1,11,118,null,3,null,8]
["TE'SHAUN MATHEWS - NW","NIAGARA WHEATFIELD",1,12,138,null,1,null,22,null,5]
["CHASE RICHARDS - NW","NIAGARA WHEATFIELD",1,10,138,null,2,null,10]
["GARRETT CHASE - NW","NIAGARA WHEATFIELD",1,11,145,null,2,null,10]
["JOSEPH CICCO - NW","NIAGARA WHEATFIELD",1,12,160,null,2,null,10]
["DANTE DIFIGLIA - NW","NIAGARA WHEATFIELD",1,12,172,null,5,null,4]
["IAIN O'DONNELL - NW","NIAGARA WHEATFIELD",1,12,172,null,6,null,2]
["JOHN FIKE - NW","NIAGARA WHEATFIELD",1,10,189,null,6,null,2]
["ETHAN AZBELL - NW","NIAGARA WHEATFIELD",1,10,126,null,"7/8",null,1]
["DYLAN GAGNON - NT","NORTH TONAWANDA",1,12,152,null,1,null,12]
["AARON BATCH - NT","NORTH TONAWANDA",1,12,138,null,"7/8",null,1]
["JONATHAN LANDON - NT","NORTH TONAWANDA",1,9,160,null,"7/8",null,1]
["BILAL MUHKTASIMOV - NT","NORTH TONAWANDA",1,12,215,null,"7/8",null,1]
["CHAD HIMMLEBACK - NT","NORTH TONAWANDA",1,12,285,null,"7/8",null,1]
["LUCAS ACUNA - OP","ORCHARD PARK",1,12,160,null,4,null,6]
["JACK MACDONALD - OP","ORCHARD PARK",1,12,189,null,1,null,16,null,7]
["BLAKE PAPKE - OP","ORCHARD PARK",1,12,118,null,"7/8",null,1]
["JONATHAN LOPEZ - SWEET","SWEET HOME",1,12,145,null,"7/8",null,1]
["JONATHAN JONES - SWEET","SWEET HOME",1,12,189,null,"7/8",null,1]
["LUKE OSMANSKI - WSWE","WEST SENECA WEST/EAST",1,12,189,null,3,null,8]
["ROBERT MUNDORFF - WSWE","WEST SENECA WEST/EAST",1,12,189,null,"7/8",null,1]
["TANNER CATRABONE - WILLNE","WILLIAMSVILLE NORTH/EAST",1,8,102,null,3,null,8]
["NICK RODRIGUEZ - WILLNE","WILLIAMSVILLE NORTH/EAST",1,11,110,null,5,null,4]
["CAMERON CATRABONE - WILLNE","WILLIAMSVILLE NORTH/EAST",1,12,145,null,1,null,40,null,1]
["JOSEPH SANKOH JR - WILLNE","WILLIAMSVILLE NORTH/EAST",1,12,152,null,6,null,2]
["MAX SMITH - WILLNE","WILLIAMSVILLE NORTH/EAST",1,11,215,null,3,null,8]
["ZAID NASSER - WILLNE","WILLIAMSVILLE NORTH/EAST",1,12,285,null,3,null,8]
["ROCCO URBANZYCK - WILLNE","WILLIAMSVILLE NORTH/EAST",1,12,138,null,"7/8",null,1]
["HUSSEIN ZENKI - WILLNE","WILLIAMSVILLE NORTH/EAST",1,12,145,null,"7/8",null,1]
["BRADY CROSETTA - WILLSO","WILLIAMSVILLE SOUTH",1,10,110,null,6,null,2]
["JOSEPH LIPSKI - WILLSO","WILLIAMSVILLE SOUTH",1,11,285,null,5,null,4]
["JACKSON HEWSON - WILLSO","WILLIAMSVILLE SOUTH",1,12,152,null,"7/8",null,1]
["DIVISION 2","DIVISION 2"]
["CHRISTIAN KLONOWSKI - AKRON","AKRON",2,12,145,null,6,null,2]
["GAVIN BURCHANOWSKI - CHAUT","CHAUTAUQUA LAKE",2,9,102,null,3,null,8]
["THANDON BENSINK - CHAUT","CHAUTAUQUA LAKE",2,9,110,null,3,null,8]
["JORDAN JOSLYN - CHAUT","CHAUTAUQUA LAKE",2,12,126,null,1,null,40,null,1]
["JOHN WATSON - CHAUT","CHAUTAUQUA LAKE",2,12,152,null,1,null,18,null,6]
["JAYDEN MALECKI - CHAUT","CHAUTAUQUA LAKE",2,12,172,null,3,null,8]
["MASON MARING - CHAUT","CHAUTAUQUA LAKE",2,11,189,null,2,null,10]
["ISON SHIRLEY - CHAUT","CHAUTAUQUA LAKE",2,12,215,null,2,null,10]
["MOHAMMAD NOOR - CHEEK","CHEEKTOWAGA",2,10,138,null,6,null,2]
["JERMAINE PARSONS - CHEEK","CHEEKTOWAGA",2,12,285,null,6,null,2]
["MICHAEL HANLON - DUNK","DUNKIRK",2,12,160,null,6,null,2]
["CHRISTIAN HERNANDEZ - DUNK","DUNKIRK",2,12,215,null,6,null,2]
["CONOR JAKUBOWICZ - DUNK","DUNKIRK",2,12,215,null,"7/8",null,1]
["RHETT KRIEGER - EAHOLLAND","EA HOLLAND",2,12,152,null,"7/8",null,1]
["TREVOR DELLAPENTA - EDEN","EDEN",2,10,102,null,2,null,14,null,8]
["BRYCE DELLAPENTA - EDEN","EDEN",2,10,118,null,2,null,10]
["DYLAN NEWMAN - FALC","FALCONER",2,9,102,null,2,null,10]
["EVAN NEWMAN - FALC","FALCONER",2,12,102,null,6,null,2]
["KARSEN LUNDGREN - FALC","FALCONER",2,12,110,null,4,null,6]
["GABE LUNDMARK - FALC","FALCONER",2,11,118,null,"7/8",null,1]
["HUNTER PAULISICK - FALC","FALCONER",2,12,126,null,"7/8",null,1]
["CHARLIE REICHENBACH - FALC","FALCONER",2,11,145,null,"7/8",null,1]
["THI VANGUILDER - FALC","FALCONER",2,12,285,null,5,null,4]
["EVAN LEONARD - FRANK","FRANKLINVILLE",2,12,160,null,4,null,6]
["CAMERON INGRAM - FRED","FREDONIA",2,11,132,null,"7/8",null,1]
["ISSIAH RUIZ - DUNK","FREDONIA",2,10,110,null,5,null,4]
["QINLAND SMATHERS - FREWS","FREWBURG",2,11,160,null,5,null,4]
["GREG REID - GOW","GOWANDA",2,11,118,null,6,null,2]
["NATHAN WARRIOR - GOW","GOWANDA",2,10,145,null,"7/8",null,1]
["MICHAEL HORTH - GOW","GOWANDA",2,12,145,null,5,null,4]
["JOSH PFEIFFER - IRQ","IROQUOIS",2,10,102,null,"7/8",null,1]
["TREY PFEIFFER - IRQ","IROQUOIS",2,8,110,null,"7/8",null,1]
["SAM DONOVAN - IRQ","IROQUOIS",2,11,132,null,4,null,6]
["BRADY WILKINSON - IRQ","IROQUOIS",2,11,145,null,3,null,8]
["ALEX SCHIFFHAUER - IRQ","IROQUOIS",2,10,152,null,2,null,10]
["TREVOR BARRY - IRQ","IROQUOIS",2,12,215,null,1,null,30,null,3]
["ADAM ALGAWANI - LACK","LACKAWANNA",2,11,132,null,"7/8",null,1]
["JAYKWON TORRES - LACK","LACKAWANNA",2,11,285,null,"7/8",null,1]
["JAXON KRAFT - MAPLE","MAPLE GROVE",2,8,126,null,"7/8",null,1]
["MATT TRIM - MAPLE","MAPLE GROVE",2,12,189,null,1,null,14,null,8]
["CODY FREYBURGER - MARY","MARYVALE",2,11,126,null,5,null,4]
["REECE SENSKE - MED","MEDINA",2,11,102,null,4,null,6]
["LUKE DUFFINA - MED","MEDINA",2,10,110,null,"7/8",null,1]
["CONOR CRANDALL - MED","MEDINA",2,12,189,null,"7/8",null,1]
["BRODY FRY - MED","MEDINA",2,11,189,null,6,null,2]
["SAWYER KINGSBURY - MED","MEDINA",2,12,215,null,5,null,4]
["JAKOB LUCINSKI - NEW","NEWFANE",2,12,102,null,1,null,26,null,4]
["AIDAN GILLINGS - NEW","NEWFANE",2,11,132,null,1,null,34,null,2]
["AYDEN BUTTERY - NEW","NEWFANE",2,11,132,null,2,null,18,null,6]
["DOMINICK HIRLIMAN - OLEAN","OLEAN",2,10,118,null,"7/8",null,1]
["EVAN WRIGHT - PION","PIONEER",2,8,110,null,6,null,2]
["WYATT OPFERBECK - PION","PIONEER",2,11,126,null,4,null,6]
["BRANDON DOYLE - PION","PIONEER",2,12,152,null,6,null,2]
["TAKOTA SMITH - PION","PIONEER",2,10,172,null,"7/8",null,1]
["CHRIS HOWATT - PION","PIONEER",2,11,285,null,"7/8",null,1]
["LUKE MATHEIS - PION","PIONEER",2,12,215,null,3,null,8]
["MEKHI MUHYEE - PORT","PORTVILLE",2,11,118,null,4,null,6]
["MAXX DEYOE - PORT","PORTVILLE",2,11,138,null,4,null,6]
["HAYDEN EMLEY - PORT","PORTVILLE",2,12,172,null,"7/8",null,1]
["HENRY CHAMBERLAIN - PORT","PORTVILLE",2,11,215,null,4,null,6]
["CADEN INKLEY - RAND","RANDOLPH",2,11,132,null,3,null,8]
["DOMANIK CLARK - RAND","RANDOLPH",2,11,138,null,"7/8",null,1]
["LUCAS KIMBER - ROYHART","ROY HART",2,10,102,null,5,null,4]
["LUKE FAY - ROYHART","ROY HART",2,10,126,null,6,null,2]
["KENJI WALTERS - SOUTH","SOUTHWESTERN",2,12,110,null,1,null,12]
["CARMINE CALIMERI - SOUTH","SOUTHWESTERN",2,10,118,null,1,null,16,null,7]
["NEVES HOOSE - SOUTH","SOUTHWESTERN",2,12,160,null,"3",null,8]
["TAVIO HOOSE - SOUTH","SOUTHWESTERN",2,10,172,null,1,null,40,null,1]
["BRAYDEN POTTER - SOUTH","SOUTHWESTERN",2,10,189,null,5,null,4]
["GRIFFIN MCKINSEY - SPRING","SPRINGVILLE",2,11,138,null,5,null,4]
["VICTOR CUSATIS - WILSON","WILSON",2,10,118,null,2,null,10]
["JACOB STEPHENSON - WILSON","WILSON",2,11,160,null,1,null,12]
["HAMZA MERRICK - WILSON","WILSON",2,11,285,null,2,null,14,null,8]
["WILLIAM WORTKOETTER - WILSON","WILSON",2,10,285,null,4,null,6]

{"sheet":"Class Tournament info","index":5,"n_rows":18,"n_cols":13,"rows_kept":18,"cut":false,"hidden":true,"merged":[]}
[null,null,null,null,null,"       Record",null,null,"       Place Finishes",null,null," "]
[null,null,null,null,"       Sect. 6",null,"     Overall",null,"NYS","S6","Class","    Win Percentage"]
["WT.","Name","Gr","School","W","L","W","L","2014","2014","2014","S6 %","%"]
[{"$f":"IF('COACHES WORKSHEET'!B3=0,\"\",'COACHES WORKSHEET'!B3)","v":""},{"$f":"IF('COACHES WORKSHEET'!C3=0,\"\",'COACHES WORKSHEET'!C3)","v":""},{"$f":"IF('COACHES WORKSHEET'!D3=0,\"\",'COACHES WORKSHEET'!D3)","v":""},{"$f":"'COACHES WORKSHEET'!C1","v":"Enter School Here"},null,null,{"$f":"'COACHES WORKSHEET'!E3","v":0},{"$f":"'COACHES WORKSHEET'!F3","v":0},null,null,null,{"$f":"IF(E4=0,\"\",E4/(E4+F4))","v":""},{"$f":"IF(G4=0,\"\",G4/(G4+H4))","v":""}]
[{"$f":"IF('COACHES WORKSHEET'!B12=0,\"\",'COACHES WORKSHEET'!B12)","v":""},{"$f":"IF('COACHES WORKSHEET'!C12=0,\"\",'COACHES WORKSHEET'!C12)","v":""},{"$f":"IF('COACHES WORKSHEET'!D12=0,\"\",'COACHES WORKSHEET'!D12)","v":""},{"$f":"'COACHES WORKSHEET'!C1","v":"Enter School Here"},null,null,{"$f":"'COACHES WORKSHEET'!E12","v":0},{"$f":"'COACHES WORKSHEET'!F12","v":0},null,null,null,{"$f":"IF(E5=0,\"\",E5/(E5+F5))","v":""},{"$f":"IF(G5=0,\"\",G5/(G5+H5))","v":""}]
[{"$f":"IF('COACHES WORKSHEET'!B21=0,\"\",'COACHES WORKSHEET'!B21)","v":""},{"$f":"IF('COACHES WORKSHEET'!C21=0,\"\",'COACHES WORKSHEET'!C21)","v":""},{"$f":"IF('COACHES WORKSHEET'!D21=0,\"\",'COACHES WORKSHEET'!D21)","v":""},{"$f":"'COACHES WORKSHEET'!C1","v":"Enter School Here"},null,null,{"$f":"'COACHES WORKSHEET'!E21","v":0},{"$f":"'COACHES WORKSHEET'!F21","v":0},null,null,null,"",""]
[{"$f":"IF('COACHES WORKSHEET'!B30=0,\"\",'COACHES WORKSHEET'!B30)","v":""},{"$f":"IF('COACHES WORKSHEET'!C30=0,\"\",'COACHES WORKSHEET'!C30)","v":""},{"$f":"IF('COACHES WORKSHEET'!D30=0,\"\",'COACHES WORKSHEET'!D30)","v":""},{"$f":"'COACHES WORKSHEET'!C1","v":"Enter School Here"},null,null,{"$f":"'COACHES WORKSHEET'!E30","v":0},{"$f":"'COACHES WORKSHEET'!F30","v":0},null,null,null,"",""]
[{"$f":"IF('COACHES WORKSHEET'!B39=0,\"\",'COACHES WORKSHEET'!B39)","v":""},{"$f":"IF('COACHES WORKSHEET'!C39=0,\"\",'COACHES WORKSHEET'!C39)","v":""},{"$f":"IF('COACHES WORKSHEET'!D39=0,\"\",'COACHES WORKSHEET'!D39)","v":""},{"$f":"'COACHES WORKSHEET'!C1","v":"Enter School Here"},null,null,{"$f":"'COACHES WORKSHEET'!E39","v":0},{"$f":"'COACHES WORKSHEET'!F39","v":0},null,null,null,"",""]
[{"$f":"IF('COACHES WORKSHEET'!B48=0,\"\",'COACHES WORKSHEET'!B48)","v":""},{"$f":"IF('COACHES WORKSHEET'!C48=0,\"\",'COACHES WORKSHEET'!C48)","v":""},{"$f":"IF('COACHES WORKSHEET'!D48=0,\"\",'COACHES WORKSHEET'!D48)","v":""},{"$f":"'COACHES WORKSHEET'!C1","v":"Enter School Here"},null,null,{"$f":"'COACHES WORKSHEET'!E48","v":0},{"$f":"'COACHES WORKSHEET'!F48","v":0},null,null,null,"",""]
[{"$f":"IF('COACHES WORKSHEET'!B57=0,\"\",'COACHES WORKSHEET'!B57)","v":""},{"$f":"IF('COACHES WORKSHEET'!C57=0,\"\",'COACHES WORKSHEET'!C57)","v":""},{"$f":"IF('COACHES WORKSHEET'!D57=0,\"\",'COACHES WORKSHEET'!D57)","v":""},{"$f":"'COACHES WORKSHEET'!C1","v":"Enter School Here"},null,null,{"$f":"'COACHES WORKSHEET'!E57","v":0},{"$f":"'COACHES WORKSHEET'!F57","v":0},null,null,null,"",""]
[{"$f":"IF('COACHES WORKSHEET'!B66=0,\"\",'COACHES WORKSHEET'!B66)","v":""},{"$f":"IF('COACHES WORKSHEET'!C66=0,\"\",'COACHES WORKSHEET'!C66)","v":""},{"$f":"IF('COACHES WORKSHEET'!D66=0,\"\",'COACHES WORKSHEET'!D66)","v":""},{"$f":"'COACHES WORKSHEET'!C1","v":"Enter School Here"},null,null,{"$f":"'COACHES WORKSHEET'!E66","v":0},{"$f":"'COACHES WORKSHEET'!F66","v":0},null,null,null,"",""]
[{"$f":"IF('COACHES WORKSHEET'!B75=0,\"\",'COACHES WORKSHEET'!B75)","v":""},{"$f":"IF('COACHES WORKSHEET'!C75=0,\"\",'COACHES WORKSHEET'!C75)","v":""},{"$f":"IF('COACHES WORKSHEET'!D75=0,\"\",'COACHES WORKSHEET'!D75)","v":""},{"$f":"'COACHES WORKSHEET'!C1","v":"Enter School Here"},null,null,{"$f":"'COACHES WORKSHEET'!E75","v":0},{"$f":"'COACHES WORKSHEET'!F75","v":0},null,null,null,"",""]
[{"$f":"IF('COACHES WORKSHEET'!B84=0,\"\",'COACHES WORKSHEET'!B84)","v":""},{"$f":"IF('COACHES WORKSHEET'!C84=0,\"\",'COACHES WORKSHEET'!C84)","v":""},{"$f":"IF('COACHES WORKSHEET'!D84=0,\"\",'COACHES WORKSHEET'!D84)","v":""},{"$f":"'COACHES WORKSHEET'!C1","v":"Enter School Here"},null,null,{"$f":"'COACHES WORKSHEET'!E84","v":0},{"$f":"'COACHES WORKSHEET'!F84","v":0},null,null,null,"",""]
[{"$f":"IF('COACHES WORKSHEET'!B93=0,\"\",'COACHES WORKSHEET'!B93)","v":""},{"$f":"IF('COACHES WORKSHEET'!C93=0,\"\",'COACHES WORKSHEET'!C93)","v":""},{"$f":"IF('COACHES WORKSHEET'!D93=0,\"\",'COACHES WORKSHEET'!D93)","v":""},{"$f":"'COACHES WORKSHEET'!C1","v":"Enter School Here"},null,null,{"$f":"'COACHES WORKSHEET'!E93","v":0},{"$f":"'COACHES WORKSHEET'!F93","v":0},null,null,null,"",""]
[{"$f":"IF('COACHES WORKSHEET'!B102=0,\"\",'COACHES WORKSHEET'!B102)","v":""},{"$f":"IF('COACHES WORKSHEET'!C102=0,\"\",'COACHES WORKSHEET'!C102)","v":""},{"$f":"IF('COACHES WORKSHEET'!D102=0,\"\",'COACHES WORKSHEET'!D102)","v":""},{"$f":"'COACHES WORKSHEET'!C1","v":"Enter School Here"},null,null,{"$f":"'COACHES WORKSHEET'!E102","v":0},{"$f":"'COACHES WORKSHEET'!F102","v":0},null,null,null,"",""]
[{"$f":"IF('COACHES WORKSHEET'!B111=0,\"\",'COACHES WORKSHEET'!B111)","v":""},{"$f":"IF('COACHES WORKSHEET'!C111=0,\"\",'COACHES WORKSHEET'!C111)","v":""},{"$f":"IF('COACHES WORKSHEET'!D111=0,\"\",'COACHES WORKSHEET'!D111)","v":""},{"$f":"'COACHES WORKSHEET'!C1","v":"Enter School Here"},null,null,{"$f":"'COACHES WORKSHEET'!E111","v":0},{"$f":"'COACHES WORKSHEET'!F111","v":0},null,null,null,"",""]
[{"$f":"IF('COACHES WORKSHEET'!B120=0,\"\",'COACHES WORKSHEET'!B120)","v":""},{"$f":"IF('COACHES WORKSHEET'!C120=0,\"\",'COACHES WORKSHEET'!C120)","v":""},{"$f":"IF('COACHES WORKSHEET'!D120=0,\"\",'COACHES WORKSHEET'!D120)","v":""},{"$f":"'COACHES WORKSHEET'!C1","v":"Enter School Here"},null,null,{"$f":"'COACHES WORKSHEET'!E120","v":0},{"$f":"'COACHES WORKSHEET'!F120","v":0},null,null,null,"",""]
[{"$f":"IF('COACHES WORKSHEET'!B129=0,\"\",'COACHES WORKSHEET'!B129)","v":""},{"$f":"IF('COACHES WORKSHEET'!C129=0,\"\",'COACHES WORKSHEET'!C129)","v":""},{"$f":"IF('COACHES WORKSHEET'!D129=0,\"\",'COACHES WORKSHEET'!D129)","v":""},{"$f":"'COACHES WORKSHEET'!C1","v":"Enter School Here"},null,null,{"$f":"'COACHES WORKSHEET'!E129","v":0},{"$f":"'COACHES WORKSHEET'!F129","v":0},null,null,null,"",""]